BODY,BODY NAME,SERVICE CODE,ORGANISATIONAL UNIT,ORGANISATIONAL UNIT CODE,EXPENDITURE CATEGORY,EXPENDITURE CODE,DATE (POSTING DATE),TRANSACTION NUMBER,AMOUNT,SUPPLIER NAME,SUPPLIER ID
WARRINGTON BOROUGH COUNCIL,http://opendatacommunities.org/id/unitary-authority/warrington ,FWB,Care Purchase Budget,54490,CP Free Nursing Care External,443500,10-Jan-18,1900281998,620.00,Barchester Homes Westvale House,105246
WARRINGTON BOROUGH COUNCIL,http://opendatacommunities.org/id/unitary-authority/warrington ,FWB,Care Purchase West Team,54080,CP-Nursing Care-External,441200,10-Jan-18,1900281985,2136.00,Barchester Homes Westvale House,105246
WARRINGTON BOROUGH COUNCIL,http://opendatacommunities.org/id/unitary-authority/warrington ,FWB,Care Purchase Budget,54490,CP Free Nursing Care External,443500,10-Jan-18,1900281886,620.00,Barchester Homes Westvale House,105246
WARRINGTON BOROUGH COUNCIL,http://opendatacommunities.org/id/unitary-authority/warrington ,FWB,Care Purchase East Team,54060,CP-Nursing Care-External,441200,10-Jan-18,1900281916,25274.00,Barchester Homes Westvale House,105246
WARRINGTON BOROUGH COUNCIL,http://opendatacommunities.org/id/unitary-authority/warrington ,FWB,Care Purchase East Team,54060,CP Free Nursing Care External,443500,10-Jan-18,1900281916,3876.00,Barchester Homes Westvale House,105246
WARRINGTON BOROUGH COUNCIL,http://opendatacommunities.org/id/unitary-authority/warrington ,FWB,Care Purchase Budget,54490,CP Free Nursing Care External,443500,22-Jan-18,1900285776,9325.00,Barchester Homes Westvale House,105246
WARRINGTON BOROUGH COUNCIL,http://opendatacommunities.org/id/unitary-authority/warrington ,FWB,Fostering Placements,30003,Fostering Accommodation,441050,22-Jan-18,1900285908,900.00,Barnardos,108136
WARRINGTON BOROUGH COUNCIL,http://opendatacommunities.org/id/unitary-authority/warrington ,FWB,Homelessness,43650,Legal Costs Incurred,440200,18-Jan-18,1900284006,3185.00,Berrymans Lace Mawer,108304
WARRINGTON BOROUGH COUNCIL,http://opendatacommunities.org/id/unitary-authority/warrington ,FWB,Homelessness,43650,Legal Costs Incurred,440200,18-Jan-18,1900284005,681.00,Berrymans Lace Mawer,108304
WARRINGTON BOROUGH COUNCIL,http://opendatacommunities.org/id/unitary-authority/warrington ,FWB,Homelessness,43650,Legal Costs Incurred,440200,18-Jan-18,1900284007,1700.00,Berrymans Lace Mawer,108304
WARRINGTON BOROUGH COUNCIL,http://opendatacommunities.org/id/unitary-authority/warrington ,FWB,Penketh Court,43631,Legal Costs Incurred,440200,18-Jan-18,1900284008,1742.00,Berrymans Lace Mawer,108304
WARRINGTON BOROUGH COUNCIL,http://opendatacommunities.org/id/unitary-authority/warrington ,FWB,DSG 2 Year Old Fund,31601,Payment of Grants,470050,12-Jan-18,1900282987,3389.00,Birch Grove Day Nursery Ltd,101367
WARRINGTON BOROUGH COUNCIL,http://opendatacommunities.org/id/unitary-authority/warrington ,FWB,DSG Early Years PVI Settings,32417,Private & Voluntary 3 Year Olds,470100,12-Jan-18,1900283005,5544.00,Birch Grove Day Nursery Ltd,101367
WARRINGTON BOROUGH COUNCIL,http://opendatacommunities.org/id/unitary-authority/warrington ,FWB,DSG Early Years PVI Settings,32417,Private & Voluntary 4 Year Olds,470150,12-Jan-18,1900283042,756.00,Birch Grove Day Nursery Ltd,101367
WARRINGTON BOROUGH COUNCIL,http://opendatacommunities.org/id/unitary-authority/warrington ,FWB,Contracts - SM Commissioning Team 2,55920,Public Health Contract Payments,540000,02-Jan-18,1900277996,1474.00,Birchwood Medical Centre,100402
WARRINGTON BOROUGH COUNCIL,http://opendatacommunities.org/id/unitary-authority/warrington ,FWB,Contracts - SM Commissioning Team 2,55920,Public Health Contract Payments,540000,02-Jan-18,1900277996,856.00,Birchwood Medical Centre,100402
WARRINGTON BOROUGH COUNCIL,http://opendatacommunities.org/id/unitary-authority/warrington ,FWB,Contracts - SM Commissioning Team 2,55920,Public Health Contract Payments,540000,02-Jan-18,1900277996,722.00,Birchwood Medical Centre,100402
WARRINGTON BOROUGH COUNCIL,http://opendatacommunities.org/id/unitary-authority/warrington ,FWB,Contracts - SM Commissioning Team 2,55920,Public Health Contract Payments,540000,02-Jan-18,1900278077,2360.00,Bolton NHS Foundation Trust,113092
WARRINGTON BOROUGH COUNCIL,http://opendatacommunities.org/id/unitary-authority/warrington ,FWB,Contracts - SM Commissioning Team 2,55920,Public Health Contract Payments,540000,02-Jan-18,1900278079,1918.00,Bolton NHS Foundation Trust,113092
WARRINGTON BOROUGH COUNCIL,http://opendatacommunities.org/id/unitary-authority/warrington ,FWB,Contracts - SM Commissioning Team 2,55920,Public Health Contract Payments,540000,02-Jan-18,1900278075,2048.00,Bolton NHS Foundation Trust,113092
WARRINGTON BOROUGH COUNCIL,http://opendatacommunities.org/id/unitary-authority/warrington ,FWB,Contracts - SM Commissioning Team 2,55920,Public Health Contract Payments,540000,02-Jan-18,1900278074,2688.00,Bolton NHS Foundation Trust,113092
WARRINGTON BOROUGH COUNCIL,http://opendatacommunities.org/id/unitary-authority/warrington ,FWB,Contracts - SM Commissioning Team 2,55920,Public Health Contract Payments,540000,02-Jan-18,1900278072,1548.00,Bolton NHS Foundation Trust,113092
WARRINGTON BOROUGH COUNCIL,http://opendatacommunities.org/id/unitary-authority/warrington ,FWB,Contracts - SM Commissioning Team 2,55920,Public Health Contract Payments,540000,02-Jan-18,1900278076,1528.00,Bolton NHS Foundation Trust,113092
WARRINGTON BOROUGH COUNCIL,http://opendatacommunities.org/id/unitary-authority/warrington ,FWB,Contracts - SM Commissioning Team 2,55920,Public Health Contract Payments,540000,02-Jan-18,1900278073,1160.00,Bolton NHS Foundation Trust,113092
WARRINGTON BOROUGH COUNCIL,http://opendatacommunities.org/id/unitary-authority/warrington ,FWB,Contracts - SM Commissioning Team 2,55920,Public Health Contract Payments,540000,02-Jan-18,1900278078,1452.00,Bolton NHS Foundation Trust,113092
WARRINGTON BOROUGH COUNCIL,http://opendatacommunities.org/id/unitary-authority/warrington ,FWB,Contracts - SM Commissioning Team 2,55920,Public Health Contract Payments,540000,02-Jan-18,1900277997,1424.00,Bolton NHS Foundation Trust,113092
WARRINGTON BOROUGH COUNCIL,http://opendatacommunities.org/id/unitary-authority/warrington ,FWB,Care Purchase South Team,54070,CP-LongStayExternal,441150,04-Jan-18,1900278746,1765.00,Bondcare (Spinney),102023
WARRINGTON BOROUGH COUNCIL,http://opendatacommunities.org/id/unitary-authority/warrington ,FWB,Residential Placements,30102,Intermediate Care Expenditure,441310,04-Jan-18,1900278804,18000.00,Branas Isaf Ltd,115665
WARRINGTON BOROUGH COUNCIL,http://opendatacommunities.org/id/unitary-authority/warrington ,FWB,IC ext allocation,53205,Joint Arrangements,505200,18-Jan-18,1900284012,186445.00,Bridgewater Community Healthcare,108932
WARRINGTON BOROUGH COUNCIL,http://opendatacommunities.org/id/unitary-authority/warrington ,FWB,IC ext allocation,53205,Joint Arrangements,505200,18-Jan-18,1900284011,186445.00,Bridgewater Community Healthcare,108932
WARRINGTON BOROUGH COUNCIL,http://opendatacommunities.org/id/unitary-authority/warrington ,FWB,IC ext allocation,53205,Joint Arrangements,505200,16-Jan-18,1900283815,186445.00,Bridgewater Community Healthcare,108932
WARRINGTON BOROUGH COUNCIL,http://opendatacommunities.org/id/unitary-authority/warrington ,FWB,Care Purchase South Team,54070,CP-Domicil.External,440950,09-Jan-18,1900280686,742.00,Bridgewater Home Care,113753
WARRINGTON BOROUGH COUNCIL,http://opendatacommunities.org/id/unitary-authority/warrington ,FWB,Care Purchase South Team,54070,CP-Domicil.External,440950,09-Jan-18,1900280928,742.00,Bridgewater Home Care,113753
WARRINGTON BOROUGH COUNCIL,http://opendatacommunities.org/id/unitary-authority/warrington ,FWB,Care Purchase South Team,54070,CP-Domicil.External,440950,11-Jan-18,1900282905,742.00,Bridgewater Home Care,113753
WARRINGTON BOROUGH COUNCIL,http://opendatacommunities.org/id/unitary-authority/warrington ,FWB,Care Purchase South Team,54070,CP-Domicil.External,440950,11-Jan-18,1900282906,742.00,Bridgewater Home Care,113753
WARRINGTON BOROUGH COUNCIL,http://opendatacommunities.org/id/unitary-authority/warrington ,FWB,Care Purchase South Team,54070,CP-Domicil.External,440950,23-Jan-18,1900286145,742.00,Bridgewater Home Care,113753
WARRINGTON BOROUGH COUNCIL,http://opendatacommunities.org/id/unitary-authority/warrington ,FWB,Residential Placements,30102,CP-LongStayExternal,441150,04-Jan-18,1900278783,10240.00,Bright Futures Care Ltd,114579
WARRINGTON BOROUGH COUNCIL,http://opendatacommunities.org/id/unitary-authority/warrington ,FWB,Care Purchase West Team,54080,CP-LongStayExternal,441150,10-Jan-18,1900281646,10228.00,Bright Futures Care Ltd,114579
WARRINGTON BOROUGH COUNCIL,http://opendatacommunities.org/id/unitary-authority/warrington ,FWB,Care Purchase South Team,54070,CP-LongStayExternal,441150,10-Jan-18,1900281706,8288.00,Bright Futures Care Ltd,114579
WARRINGTON BOROUGH COUNCIL,http://opendatacommunities.org/id/unitary-authority/warrington ,FWB,DSG 2 Year Old Fund,31601,Payment of Grants,470050,12-Jan-18,1900282988,1540.00,Bright Futures Day Nursery,400376
WARRINGTON BOROUGH COUNCIL,http://opendatacommunities.org/id/unitary-authority/warrington ,FWB,DSG Early Years PVI Settings,32417,Private & Voluntary 3 Year Olds,470100,12-Jan-18,1900283006,4015.00,Bright Futures Day Nursery,400376
WARRINGTON BOROUGH COUNCIL,http://opendatacommunities.org/id/unitary-authority/warrington ,FWB,DSG Early Years PVI Settings,32417,Private & Voluntary 4 Year Olds,470150,12-Jan-18,1900283043,1008.00,Bright Futures Day Nursery,400376
WARRINGTON BOROUGH COUNCIL,http://opendatacommunities.org/id/unitary-authority/warrington ,FWB,DSG Early Years PVI Settings,32417,Private & Voluntary 3 Year Olds,470100,12-Jan-18,1900283007,13608.00,Bright Horizons Callands,400121
WARRINGTON BOROUGH COUNCIL,http://opendatacommunities.org/id/unitary-authority/warrington ,FWB,DSG Early Years PVI Settings,32417,Private & Voluntary 4 Year Olds,470150,12-Jan-18,1900283044,1512.00,Bright Horizons Callands,400121
WARRINGTON BOROUGH COUNCIL,http://opendatacommunities.org/id/unitary-authority/warrington ,RSC,Council Tax & Recovery,10320,Bailiff Fees,441400,19-Jan-18,1900284082,1208.00,Bristow & Sutor,102723
WARRINGTON BOROUGH COUNCIL,http://opendatacommunities.org/id/unitary-authority/warrington ,EE0,New Town House,43119,Gas,210050,16-Jan-18,1900283785,995.00,British Gas Business,104540
WARRINGTON BOROUGH COUNCIL,http://opendatacommunities.org/id/unitary-authority/warrington ,FWB,Contracts - SM Commissioning Team 2,55920,Public Health Contract Payments,540000,23-Jan-18,1900285946,1260.00,Brookfield Surgery,108155
WARRINGTON BOROUGH COUNCIL,http://opendatacommunities.org/id/unitary-authority/warrington ,EE0,Urban Traffic Management Control,44370,Signal Management,531600,24-Jan-18,1900286382,979.00,BT,104542
WARRINGTON BOROUGH COUNCIL,http://opendatacommunities.org/id/unitary-authority/warrington ,FWB,Care Purchase West Team,54080,CP Nursing EMI,441105,10-Jan-18,1900281576,1824.00,BUPA - Bedford Res,104569
WARRINGTON BOROUGH COUNCIL,http://opendatacommunities.org/id/unitary-authority/warrington ,FWB,Care Purchase West Team,54080,CP-Nursing Care-External,441200,10-Jan-18,1900281849,1992.00,Bupa Care Homes - Broadoak Manor,104546
WARRINGTON BOROUGH COUNCIL,http://opendatacommunities.org/id/unitary-authority/warrington ,FWB,Care Purchase Central Team,54050,CP-Nursing Care-External,441200,10-Jan-18,1900281956,1760.00,BUPA Mill View Care Home,116039
WARRINGTON BOROUGH COUNCIL,http://opendatacommunities.org/id/unitary-authority/warrington ,FWB,DSG 2 Year Old Fund,31601,Payment of Grants,470050,07-Dec-17,1900271363,513.00,Burnett Nursery,440143
WARRINGTON BOROUGH COUNCIL,http://opendatacommunities.org/id/unitary-authority/warrington ,FWB,DSG Early Years PVI Settings,32417,Private & Voluntary 3 Year Olds,470100,22-Dec-17,1900277748,2587.00,Burnett Nursery,440143
WARRINGTON BOROUGH COUNCIL,http://opendatacommunities.org/id/unitary-authority/warrington ,FWB,DSG Early Years PVI Settings,32417,Private & Voluntary 4 Year Olds,470150,22-Dec-17,1900277866,2553.00,Burnett Nursery,440143
WARRINGTON BOROUGH COUNCIL,http://opendatacommunities.org/id/unitary-authority/warrington ,FWB,Care Purchase South Team,54070,CP Residential EMI,441110,10-Jan-18,1900281768,1840.00,Burrswood House Nursing & Residenti,109619
WARRINGTON BOROUGH COUNCIL,http://opendatacommunities.org/id/unitary-authority/warrington ,FWB,Neighbourhood Co-o West,51307,Payment of Grants,470050,19-Jan-18,1900284042,676.00,Burtonwood Community Centre Assoc,109568
WARRINGTON BOROUGH COUNCIL,http://opendatacommunities.org/id/unitary-authority/warrington ,FWB,Neighbourhood Co-o West,51307,Payment of Grants,470050,15-Jan-18,1900283661,676.00,Burtonwood Community Centre Assoc,109568
WARRINGTON BOROUGH COUNCIL,http://opendatacommunities.org/id/unitary-authority/warrington ,FWB,DSG 2 Year Old Fund,31601,Payment of Grants,470050,22-Dec-17,1900277678,1232.00,Busy 0 To 5S (St Nicolas House),400119
WARRINGTON BOROUGH COUNCIL,http://opendatacommunities.org/id/unitary-authority/warrington ,FWB,DSG Early Years PVI Settings,32417,Private & Voluntary 3 Year Olds,470100,22-Dec-17,1900277750,13507.00,Busy 0 To 5S (St Nicolas House),400119
WARRINGTON BOROUGH COUNCIL,http://opendatacommunities.org/id/unitary-authority/warrington ,FWB,DSG Early Years PVI Settings,32417,Private & Voluntary 4 Year Olds,470150,22-Dec-17,1900277868,4401.00,Busy 0 To 5S (St Nicolas House),400119
WARRINGTON BOROUGH COUNCIL,http://opendatacommunities.org/id/unitary-authority/warrington ,FWB,DSG Early Years PVI Settings,32417,Private & Voluntary 3 Year Olds,470100,22-Dec-17,1900277749,7207.00,Busy Nought To Fives,400120
WARRINGTON BOROUGH COUNCIL,http://opendatacommunities.org/id/unitary-authority/warrington ,FWB,DSG Early Years PVI Settings,32417,Private & Voluntary 4 Year Olds,470150,22-Dec-17,1900277867,5443.00,Busy Nought To Fives,400120
WARRINGTON BOROUGH COUNCIL,http://opendatacommunities.org/id/unitary-authority/warrington ,FWB,DSG 2 Year Old Fund,31601,Payment of Grants,470050,22-Dec-17,1900277679,3697.00,Butterflys Nursery,107718
WARRINGTON BOROUGH COUNCIL,http://opendatacommunities.org/id/unitary-authority/warrington ,FWB,DSG Early Years PVI Settings,32417,Private & Voluntary 3 Year Olds,470100,22-Dec-17,1900277751,6938.00,Butterflys Nursery,107718
WARRINGTON BOROUGH COUNCIL,http://opendatacommunities.org/id/unitary-authority/warrington ,FWB,DSG Early Years PVI Settings,32417,Private & Voluntary 4 Year Olds,470150,22-Dec-17,1900277869,1293.00,Butterflys Nursery,107718
WARRINGTON BOROUGH COUNCIL,http://opendatacommunities.org/id/unitary-authority/warrington ,FWB,Fostering Placements,30003,Fostering Accommodation,441050,04-Jan-18,1900278871,3980.00,By The Bridge UK,103173
WARRINGTON BOROUGH COUNCIL,http://opendatacommunities.org/id/unitary-authority/warrington ,FWB,Fostering Placements,30003,Fostering Accommodation,441050,04-Jan-18,1900278799,3980.00,By The Bridge UK,103173
WARRINGTON BOROUGH COUNCIL,http://opendatacommunities.org/id/unitary-authority/warrington ,FWB,Contracts - SM Commissioning Team 2,55920,Public Health Contract Payments,540000,18-Dec-17,1900276044,1000.00,C Manchester Uni Hos NHS FT,115043
WARRINGTON BOROUGH COUNCIL,http://opendatacommunities.org/id/unitary-authority/warrington ,FWB,Residential Placements,30102,Intermediate Care Expenditure,441310,04-Jan-18,1900278836,17000.00,Care 4 Children,114784
WARRINGTON BOROUGH COUNCIL,http://opendatacommunities.org/id/unitary-authority/warrington ,FWB,Care Purchase Central Team,54050,CP-Domicil.External,440950,09-Jan-18,1900280893,884.00,Care and Share Associates know as C,114790
WARRINGTON BOROUGH COUNCIL,http://opendatacommunities.org/id/unitary-authority/warrington ,FWB,Care Purchase Central Team,54050,CP-Domicil.External,440950,09-Jan-18,1900280894,1329.00,Care and Share Associates know as C,114790
WARRINGTON BOROUGH COUNCIL,http://opendatacommunities.org/id/unitary-authority/warrington ,FWB,Care Purchase Central Team,54050,CP-Domicil.External,440950,19-Jan-18,1900285356,884.00,Care and Share Associates know as C,114790
WARRINGTON BOROUGH COUNCIL,http://opendatacommunities.org/id/unitary-authority/warrington ,FWB,Care Purchase Central Team,54050,CP-Domicil.External,440950,19-Jan-18,1900285357,884.00,Care and Share Associates know as C,114790
WARRINGTON BOROUGH COUNCIL,http://opendatacommunities.org/id/unitary-authority/warrington ,FWB,Intermediate Care at Home,54520,Equipment Purchase & Contract,400000,10-Jan-18,1900281431,2596.00,Care Monitoring 2000 Ltd,112298
WARRINGTON BOROUGH COUNCIL,http://opendatacommunities.org/id/unitary-authority/warrington ,FWB,Residential Placements,30102,Intermediate Care Expenditure,441310,11-Jan-18,1900282656,6101.00,Care Today,103283
WARRINGTON BOROUGH COUNCIL,http://opendatacommunities.org/id/unitary-authority/warrington ,FWB,Residential Placements,30102,Intermediate Care Expenditure,441310,11-Jan-18,1900282644,3754.00,Care Today,103283
WARRINGTON BOROUGH COUNCIL,http://opendatacommunities.org/id/unitary-authority/warrington ,FWB,Care Purchase East Team,54060,CP Nursing EMI,441105,10-Jan-18,1900281790,3364.00,Care Uk Care Solutions Ltd,102263
WARRINGTON BOROUGH COUNCIL,http://opendatacommunities.org/id/unitary-authority/warrington ,FWB,Int Care Premises,53280,ICT Comms - Line Rental,450200,10-Jan-18,1900281505,1000.00,CareConcepts (Appleton) Ltd,105804
WARRINGTON BOROUGH COUNCIL,http://opendatacommunities.org/id/unitary-authority/warrington ,FWB,Care Purchase Budget,54490,CP Free Nursing Care External,443500,22-Jan-18,1900285774,532.00,CareConcepts (Appleton) Ltd,105804
WARRINGTON BOROUGH COUNCIL,http://opendatacommunities.org/id/unitary-authority/warrington ,FWB,Care Purchase Budget,54490,CP ExternalOther Exp,440800,03-Jan-18,1900278182,17640.00,CareConcepts (Appleton) Ltd,105804
WARRINGTON BOROUGH COUNCIL,http://opendatacommunities.org/id/unitary-authority/warrington ,FWB,Care Purchase - Intermediate Care,54290,CP - Intermediate Care - External,441300,03-Jan-18,1900278183,42915.00,CareConcepts (Appleton) Ltd,105804
WARRINGTON BOROUGH COUNCIL,http://opendatacommunities.org/id/unitary-authority/warrington ,FWB,Care Purchase South Team,54070,CP Residential EMI,441110,10-Jan-18,1900282112,2204.00,CareConcepts (Appleton) Ltd,105804
WARRINGTON BOROUGH COUNCIL,http://opendatacommunities.org/id/unitary-authority/warrington ,FWB,Care Purchase South Team,54070,CP Residential EMI,441110,10-Jan-18,1900282520,2204.00,CareConcepts (Appleton) Ltd,105804
WARRINGTON BOROUGH COUNCIL,http://opendatacommunities.org/id/unitary-authority/warrington ,FWB,Care Purchase South Team,54070,CP-Nursing Care-External,441200,10-Jan-18,1900282050,2136.00,CareConcepts (Appleton) Ltd,105804
WARRINGTON BOROUGH COUNCIL,http://opendatacommunities.org/id/unitary-authority/warrington ,FWB,Care Purchase Budget,54490,CP Free Nursing Care External,443500,10-Jan-18,1900282080,620.00,CareConcepts (Appleton) Ltd,105804
WARRINGTON BOROUGH COUNCIL,http://opendatacommunities.org/id/unitary-authority/warrington ,FWB,Care Purchase South Team,54070,CP Nursing EMI,441105,10-Jan-18,1900282425,2260.00,CareConcepts (Appleton) Ltd,105804
WARRINGTON BOROUGH COUNCIL,http://opendatacommunities.org/id/unitary-authority/warrington ,FWB,Care Purchase Budget,54490,CP Free Nursing Care External,443500,10-Jan-18,1900282432,620.00,CareConcepts (Appleton) Ltd,105804
WARRINGTON BOROUGH COUNCIL,http://opendatacommunities.org/id/unitary-authority/warrington ,FWB,Care Purchase South Team,54070,CP Nursing EMI,441105,10-Jan-18,1900282200,2880.00,CareConcepts (Appleton) Ltd,105804
WARRINGTON BOROUGH COUNCIL,http://opendatacommunities.org/id/unitary-authority/warrington ,FWB,Care Purchase Central Team,54050,CP Nursing EMI,441105,10-Jan-18,1900282493,2500.00,CareConcepts (Appleton) Ltd,105804
WARRINGTON BOROUGH COUNCIL,http://opendatacommunities.org/id/unitary-authority/warrington ,FWB,Care Purchase Budget,54490,CP Free Nursing Care External,443500,10-Jan-18,1900282469,620.00,CareConcepts (Appleton) Ltd,105804
WARRINGTON BOROUGH COUNCIL,http://opendatacommunities.org/id/unitary-authority/warrington ,FWB,Care Purchase South Team,54070,CP-Nursing Care-External,441200,10-Jan-18,1900282492,2136.00,CareConcepts (Appleton) Ltd,105804
WARRINGTON BOROUGH COUNCIL,http://opendatacommunities.org/id/unitary-authority/warrington ,FWB,Care Purchase Budget,54490,CP Free Nursing Care External,443500,10-Jan-18,1900282522,620.00,CareConcepts (Appleton) Ltd,105804
WARRINGTON BOROUGH COUNCIL,http://opendatacommunities.org/id/unitary-authority/warrington ,FWB,Care Purchase East Team,54060,CP Nursing EMI,441105,10-Jan-18,1900282533,2880.00,CareConcepts (Appleton) Ltd,105804
WARRINGTON BOROUGH COUNCIL,http://opendatacommunities.org/id/unitary-authority/warrington ,FWB,Care Purchase South Team,54070,CP Nursing EMI,441105,10-Jan-18,1900282351,2260.00,CareConcepts (Appleton) Ltd,105804
WARRINGTON BOROUGH COUNCIL,http://opendatacommunities.org/id/unitary-authority/warrington ,FWB,Care Purchase Budget,54490,CP Free Nursing Care External,443500,10-Jan-18,1900282294,620.00,CareConcepts (Appleton) Ltd,105804
WARRINGTON BOROUGH COUNCIL,http://opendatacommunities.org/id/unitary-authority/warrington ,FWB,Care Purchase Central Team,54050,CP Nursing EMI,441105,10-Jan-18,1900282353,2880.00,CareConcepts (Appleton) Ltd,105804
WARRINGTON BOROUGH COUNCIL,http://opendatacommunities.org/id/unitary-authority/warrington ,FWB,Care Purchase South Team,54070,CP-Nursing Care-External,441200,10-Jan-18,1900282355,2136.00,CareConcepts (Appleton) Ltd,105804
WARRINGTON BOROUGH COUNCIL,http://opendatacommunities.org/id/unitary-authority/warrington ,FWB,Care Purchase Budget,54490,CP Free Nursing Care External,443500,10-Jan-18,1900282271,620.00,CareConcepts (Appleton) Ltd,105804
WARRINGTON BOROUGH COUNCIL,http://opendatacommunities.org/id/unitary-authority/warrington ,FWB,Care Purchase South Team,54070,CP Nursing EMI,441105,10-Jan-18,1900282314,2260.00,CareConcepts (Appleton) Ltd,105804
WARRINGTON BOROUGH COUNCIL,http://opendatacommunities.org/id/unitary-authority/warrington ,FWB,Care Purchase Budget,54490,CP Free Nursing Care External,443500,10-Jan-18,1900282277,620.00,CareConcepts (Appleton) Ltd,105804
WARRINGTON BOROUGH COUNCIL,http://opendatacommunities.org/id/unitary-authority/warrington ,FWB,Care Purchase South Team,54070,CP-Nursing Care-External,441200,10-Jan-18,1900282315,2136.00,CareConcepts (Appleton) Ltd,105804
WARRINGTON BOROUGH COUNCIL,http://opendatacommunities.org/id/unitary-authority/warrington ,FWB,Care Purchase Budget,54490,CP Free Nursing Care External,443500,10-Jan-18,1900282316,620.00,CareConcepts (Appleton) Ltd,105804
WARRINGTON BOROUGH COUNCIL,http://opendatacommunities.org/id/unitary-authority/warrington ,FWB,Care Purchase South Team,54070,CP-Nursing Care-External,441200,10-Jan-18,1900282421,2376.00,CareConcepts (Appleton) Ltd,105804
WARRINGTON BOROUGH COUNCIL,http://opendatacommunities.org/id/unitary-authority/warrington ,FWB,Care Purchase Budget,54490,CP Free Nursing Care External,443500,10-Jan-18,1900282491,620.00,CareConcepts (Appleton) Ltd,105804
WARRINGTON BOROUGH COUNCIL,http://opendatacommunities.org/id/unitary-authority/warrington ,FWB,Care Purchase South Team,54070,CP Residential EMI,441110,10-Jan-18,1900282324,2204.00,CareConcepts (Appleton) Ltd,105804
WARRINGTON BOROUGH COUNCIL,http://opendatacommunities.org/id/unitary-authority/warrington ,FWB,Care Purchase Central Team,54050,CP-Nursing Care-External,441200,10-Jan-18,1900282438,2296.00,CareConcepts (Appleton) Ltd,105804
WARRINGTON BOROUGH COUNCIL,http://opendatacommunities.org/id/unitary-authority/warrington ,FWB,Care Purchase Budget,54490,CP Free Nursing Care External,443500,10-Jan-18,1900282439,620.00,CareConcepts (Appleton) Ltd,105804
WARRINGTON BOROUGH COUNCIL,http://opendatacommunities.org/id/unitary-authority/warrington ,FWB,Care Purchase Central Team,54050,CP Nursing EMI,441105,10-Jan-18,1900282403,3040.00,CareConcepts (Appleton) Ltd,105804
WARRINGTON BOROUGH COUNCIL,http://opendatacommunities.org/id/unitary-authority/warrington ,FWB,Care Purchase South Team,54070,CP Nursing EMI,441105,10-Jan-18,1900282409,2880.00,CareConcepts (Appleton) Ltd,105804
WARRINGTON BOROUGH COUNCIL,http://opendatacommunities.org/id/unitary-authority/warrington ,FWB,Care Purchase Central Team,54050,CP Nursing EMI,441105,10-Jan-18,1900282382,2260.00,CareConcepts (Appleton) Ltd,105804
WARRINGTON BOROUGH COUNCIL,http://opendatacommunities.org/id/unitary-authority/warrington ,FWB,Care Purchase Budget,54490,CP Free Nursing Care External,443500,10-Jan-18,1900282584,620.00,CareConcepts (Appleton) Ltd,105804
WARRINGTON BOROUGH COUNCIL,http://opendatacommunities.org/id/unitary-authority/warrington ,FWB,Care Purchase East Team,54060,CP-Nursing Care-External,441200,10-Jan-18,1900282585,2256.00,CareConcepts (Appleton) Ltd,105804
WARRINGTON BOROUGH COUNCIL,http://opendatacommunities.org/id/unitary-authority/warrington ,FWB,Care Purchase Budget,54490,CP Free Nursing Care External,443500,10-Jan-18,1900282597,620.00,CareConcepts (Appleton) Ltd,105804
WARRINGTON BOROUGH COUNCIL,http://opendatacommunities.org/id/unitary-authority/warrington ,FWB,Care Purchase Budget,54490,CP Free Nursing Care External,443500,04-Jan-18,1900278747,6202.00,CareConcepts (Appleton) Ltd,105804
WARRINGTON BOROUGH COUNCIL,http://opendatacommunities.org/id/unitary-authority/warrington ,FWB,Care Purchase West Team,54080,CP-Domicil.External,440950,12-Jan-18,1900283250,518.00,Carewatch North Cheshire,104573
WARRINGTON BOROUGH COUNCIL,http://opendatacommunities.org/id/unitary-authority/warrington ,FWB,Care Purchase South Team,54070,CP-Domicil.External,440950,18-Jan-18,1900284031,1344.00,Caring Hands,102486
WARRINGTON BOROUGH COUNCIL,http://opendatacommunities.org/id/unitary-authority/warrington ,FWB,Child Disability,32212,CP-Domicil.External,440950,02-Jan-18,1900278004,718.00,Castlerock Recruitment Group,105279
WARRINGTON BOROUGH COUNCIL,http://opendatacommunities.org/id/unitary-authority/warrington ,FWB,Catalyst Choices,54495,Management Fee,525550,26-Jan-18,1900286807,633504.00,Catalyst Choice Management Services,115078
WARRINGTON BOROUGH COUNCIL,http://opendatacommunities.org/id/unitary-authority/warrington ,FWB,Catalyst Choices,54495,CP Adult Placement,443450,22-Jan-18,1900285809,38060.00,Catalyst Choices Community Interest,114235
WARRINGTON BOROUGH COUNCIL,http://opendatacommunities.org/id/unitary-authority/warrington ,FWB,Care Purchase South Team,54070,CP-Domicil.External,440950,22-Jan-18,1900285803,1554.00,Catalyst Choices Community Interest,114235
WARRINGTON BOROUGH COUNCIL,http://opendatacommunities.org/id/unitary-authority/warrington ,FWB,Catalyst Choices,54495,Gen. Personal Needs,490850,26-Jan-18,1900286776,3000.00,Catalyst Choices Community Interest,114235
WARRINGTON BOROUGH COUNCIL,http://opendatacommunities.org/id/unitary-authority/warrington ,FWB,Catalyst Choices,54495,Gen. Personal Needs,490850,26-Jan-18,1900286778,3000.00,Catalyst Choices Community Interest,114235
WARRINGTON BOROUGH COUNCIL,http://opendatacommunities.org/id/unitary-authority/warrington ,FWB,Catalyst Choices,54495,Gen. Personal Needs,490850,26-Jan-18,1900286774,3000.00,Catalyst Choices Community Interest,114235
WARRINGTON BOROUGH COUNCIL,http://opendatacommunities.org/id/unitary-authority/warrington ,FWB,Catalyst Choices,54495,Gen. Personal Needs,490850,26-Jan-18,1900286773,3000.00,Catalyst Choices Community Interest,114235
WARRINGTON BOROUGH COUNCIL,http://opendatacommunities.org/id/unitary-authority/warrington ,FWB,Catalyst Choices,54495,Equipment Purchase & Contract,400000,22-Jan-18,1900285849,16476.00,Catalyst Choices Community Interest,114235
WARRINGTON BOROUGH COUNCIL,http://opendatacommunities.org/id/unitary-authority/warrington ,FWB,Catalyst Choices,54495,Equipment Purchase & Contract,400000,22-Jan-18,1900285839,13181.00,Catalyst Choices Community Interest,114235
WARRINGTON BOROUGH COUNCIL,http://opendatacommunities.org/id/unitary-authority/warrington ,FWB,Catalyst Choices,54495,CP Adult Placement,443450,22-Jan-18,1900285837,2292.00,Catalyst Choices Community Interest,114235
WARRINGTON BOROUGH COUNCIL,http://opendatacommunities.org/id/unitary-authority/warrington ,FWB,Catalyst Choices,54495,Gen. Personal Needs,490850,26-Jan-18,1900286772,3000.00,Catalyst Choices Community Interest,114235
WARRINGTON BOROUGH COUNCIL,http://opendatacommunities.org/id/unitary-authority/warrington ,FWB,Catalyst Choices,54495,Gen. Personal Needs,490850,26-Jan-18,1900286777,3000.00,Catalyst Choices Community Interest,114235
WARRINGTON BOROUGH COUNCIL,http://opendatacommunities.org/id/unitary-authority/warrington ,FWB,Catalyst Choices,54495,Gen. Personal Needs,490850,26-Jan-18,1900286775,3000.00,Catalyst Choices Community Interest,114235
WARRINGTON BOROUGH COUNCIL,http://opendatacommunities.org/id/unitary-authority/warrington ,FWB,Catalyst Choices,54495,CP Adult Placement,443450,22-Jan-18,1900285807,33000.00,Catalyst Choices Community Interest,114235
WARRINGTON BOROUGH COUNCIL,http://opendatacommunities.org/id/unitary-authority/warrington ,FWB,Catalyst Choices,54495,CP Adult Placement,443450,22-Jan-18,1900285806,33000.00,Catalyst Choices Community Interest,114235
WARRINGTON BOROUGH COUNCIL,http://opendatacommunities.org/id/unitary-authority/warrington ,FWB,Care Purchase West Team,54080,CP-Domicil.External,440950,22-Jan-18,1900285842,11284.00,Catalyst Choices Community Interest,114235
WARRINGTON BOROUGH COUNCIL,http://opendatacommunities.org/id/unitary-authority/warrington ,FWB,Catalyst Choices,54495,CP Adult Placement,443450,22-Jan-18,1900285808,33000.00,Catalyst Choices Community Interest,114235
WARRINGTON BOROUGH COUNCIL,http://opendatacommunities.org/id/unitary-authority/warrington ,FWB,Catalyst Choices,54495,CP Adult Placement,443450,22-Jan-18,1900285804,33000.00,Catalyst Choices Community Interest,114235
WARRINGTON BOROUGH COUNCIL,http://opendatacommunities.org/id/unitary-authority/warrington ,FWB,Catalyst Choices,54495,CP Adult Placement,443450,22-Jan-18,1900285810,33000.00,Catalyst Choices Community Interest,114235
WARRINGTON BOROUGH COUNCIL,http://opendatacommunities.org/id/unitary-authority/warrington ,FWB,Catalyst Choices,54495,Equipment Purchase & Contract,400000,10-Jan-18,1900281476,4288.00,Catalyst Choices Community Interest,114235
WARRINGTON BOROUGH COUNCIL,http://opendatacommunities.org/id/unitary-authority/warrington ,FWB,Catalyst Choices,54495,Equipment Purchase & Contract,400000,10-Jan-18,1900281475,3854.00,Catalyst Choices Community Interest,114235
WARRINGTON BOROUGH COUNCIL,http://opendatacommunities.org/id/unitary-authority/warrington ,FWB,Care Purchase South Team,54070,CP-Domicil.External,440950,22-Jan-18,1900285778,2066.00,Catalyst Choices Community Interest,114235
WARRINGTON BOROUGH COUNCIL,http://opendatacommunities.org/id/unitary-authority/warrington ,FWB,Catalyst Choices,54495,CP Adult Placement,443450,22-Jan-18,1900285805,33000.00,Catalyst Choices Community Interest,114235
WARRINGTON BOROUGH COUNCIL,http://opendatacommunities.org/id/unitary-authority/warrington ,FWB,Child Disability,32212,CP-Domicil.External,440950,02-Jan-18,1900277999,1064.00,Catholic Blind Institute,112964
WARRINGTON BOROUGH COUNCIL,http://opendatacommunities.org/id/unitary-authority/warrington ,FWB,Contracts - SM Commissioning Team 2,55920,Public Health Contract Payments,540000,02-Jan-18,1900277998,770.00,Causeway Medical Centre,109278
WARRINGTON BOROUGH COUNCIL,http://opendatacommunities.org/id/unitary-authority/warrington ,FWB,Contracts - SM Commissioning Team 2,55920,Public Health Contract Payments,540000,02-Jan-18,1900277998,722.00,Causeway Medical Centre,109278
WARRINGTON BOROUGH COUNCIL,http://opendatacommunities.org/id/unitary-authority/warrington ,FWB,Contracts - SM Commissioning Team 2,55920,Public Health Contract Payments,540000,02-Jan-18,1900277998,696.00,Causeway Medical Centre,109278
WARRINGTON BOROUGH COUNCIL,http://opendatacommunities.org/id/unitary-authority/warrington ,FWB,Residential Placements,30102,CP-LongStayExternal,441150,11-Jan-18,1900282645,2400.00,CCATS Ltd,114158
WARRINGTON BOROUGH COUNCIL,http://opendatacommunities.org/id/unitary-authority/warrington ,FWB,Care Purchase East Team,54060,CP-Nursing Care-External,441200,10-Jan-18,1900281607,2910.00,Chadderton Total-Care Unit Ltd,100425
WARRINGTON BOROUGH COUNCIL,http://opendatacommunities.org/id/unitary-authority/warrington ,FWB,DSG 2 Year Old Fund,31601,Payment of Grants,470050,22-Dec-17,1900277681,616.00,Chapel Road Day Nursery,109632
WARRINGTON BOROUGH COUNCIL,http://opendatacommunities.org/id/unitary-authority/warrington ,FWB,DSG Early Years PVI Settings,32417,Private & Voluntary 3 Year Olds,470100,22-Dec-17,1900277755,6098.00,Chapel Road Day Nursery,109632
WARRINGTON BOROUGH COUNCIL,http://opendatacommunities.org/id/unitary-authority/warrington ,FWB,DSG Early Years PVI Settings,32417,Private & Voluntary 4 Year Olds,470150,22-Dec-17,1900277873,2511.00,Chapel Road Day Nursery,109632
WARRINGTON BOROUGH COUNCIL,http://opendatacommunities.org/id/unitary-authority/warrington ,FWB,DSG Early Years PVI Settings,32417,Private & Voluntary 3 Year Olds,470100,12-Jan-18,1900283009,1826.00,Chapelford Village Nursery & Link C,400101
WARRINGTON BOROUGH COUNCIL,http://opendatacommunities.org/id/unitary-authority/warrington ,FWB,DSG Early Years PVI Settings,32417,Private & Voluntary 3 Year Olds,470100,22-Dec-17,1900277756,9968.00,Chapelford Village Nursery & Link C,400101
WARRINGTON BOROUGH COUNCIL,http://opendatacommunities.org/id/unitary-authority/warrington ,FWB,DSG Early Years PVI Settings,32417,Private & Voluntary 4 Year Olds,470150,22-Dec-17,1900277874,4342.00,Chapelford Village Nursery & Link C,400101
WARRINGTON BOROUGH COUNCIL,http://opendatacommunities.org/id/unitary-authority/warrington ,FWB,International Links,32132,Works Contract Paymt,442500,24-Jan-18,1900286380,41667.00,Charanga,113364
WARRINGTON BOROUGH COUNCIL,http://opendatacommunities.org/id/unitary-authority/warrington ,FWB,Care Purchase South Team,54070,CP Nursing EMI,441105,10-Jan-18,1900281794,2188.00,Cherry Hinton Care Home,112195
WARRINGTON BOROUGH COUNCIL,http://opendatacommunities.org/id/unitary-authority/warrington ,FWB,Care Purchase South Team,54070,CP-Nursing Care-External,441200,10-Jan-18,1900281794,1412.00,Cherry Hinton Care Home,112195
WARRINGTON BOROUGH COUNCIL,http://opendatacommunities.org/id/unitary-authority/warrington ,FWB,Care Purchase Central Team,54050,CP Residential EMI,441110,10-Jan-18,1900281762,1804.00,Cherry Tree care Homes (Burlington,115693
WARRINGTON BOROUGH COUNCIL,http://opendatacommunities.org/id/unitary-authority/warrington ,EE0,Environment Services Strategic Director,42130,Subscriptions,470000,16-Jan-18,1900283829,41667.00,Cheshire & Warr Local Enterprise Pa,100748
WARRINGTON BOROUGH COUNCIL,http://opendatacommunities.org/id/unitary-authority/warrington ,FWB,DSG 2 Year Old Fund,31601,Payment of Grants,470050,12-Jan-18,1900282997,1232.00,Cheshire Day Nursery / The Kinderga,400013
WARRINGTON BOROUGH COUNCIL,http://opendatacommunities.org/id/unitary-authority/warrington ,FWB,DSG Early Years PVI Settings,32417,Private & Voluntary 3 Year Olds,470100,12-Jan-18,1900283030,1008.00,Cheshire Day Nursery / The Kinderga,400013
WARRINGTON BOROUGH COUNCIL,http://opendatacommunities.org/id/unitary-authority/warrington ,FWB,DSG 2 Year Old Fund,31601,Payment of Grants,470050,22-Dec-17,1900277722,6161.00,Cheshire Day Nursery / The Kinderga,400013
WARRINGTON BOROUGH COUNCIL,http://opendatacommunities.org/id/unitary-authority/warrington ,FWB,DSG Early Years PVI Settings,32417,Private & Voluntary 3 Year Olds,470100,22-Dec-17,1900277836,17336.00,Cheshire Day Nursery / The Kinderga,400013
WARRINGTON BOROUGH COUNCIL,http://opendatacommunities.org/id/unitary-authority/warrington ,FWB,DSG Early Years PVI Settings,32417,Private & Voluntary 3 Year Olds,470100,22-Dec-17,1900277835,8694.00,Cheshire Day Nursery / The Kinderga,400013
WARRINGTON BOROUGH COUNCIL,http://opendatacommunities.org/id/unitary-authority/warrington ,FWB,DSG Early Years PVI Settings,32417,Private & Voluntary 4 Year Olds,470150,22-Dec-17,1900277932,16496.00,Cheshire Day Nursery / The Kinderga,400013
WARRINGTON BOROUGH COUNCIL,http://opendatacommunities.org/id/unitary-authority/warrington ,FWB,DSG Early Years PVI Settings,32417,Private & Voluntary 3 Year Olds,470100,12-Jan-18,1900283029,1697.00,Cheshire Day Nursery Guardian St,106265
WARRINGTON BOROUGH COUNCIL,http://opendatacommunities.org/id/unitary-authority/warrington ,FWB,DSG 2 Year Old Fund,31601,Payment of Grants,470050,22-Dec-17,1900277721,5545.00,Cheshire Day Nursery Guardian St,106265
WARRINGTON BOROUGH COUNCIL,http://opendatacommunities.org/id/unitary-authority/warrington ,FWB,DSG Early Years PVI Settings,32417,Private & Voluntary 3 Year Olds,470100,22-Dec-17,1900277834,21672.00,Cheshire Day Nursery Guardian St,106265
WARRINGTON BOROUGH COUNCIL,http://opendatacommunities.org/id/unitary-authority/warrington ,FWB,DSG Early Years PVI Settings,32417,Private & Voluntary 4 Year Olds,470150,22-Dec-17,1900277931,7123.00,Cheshire Day Nursery Guardian St,106265
WARRINGTON BOROUGH COUNCIL,http://opendatacommunities.org/id/unitary-authority/warrington ,RSC,Coroners Service,11100,Court Costs,460100,08-Jan-18,1900279480,527.00,Cheshire East Council,410116
WARRINGTON BOROUGH COUNCIL,http://opendatacommunities.org/id/unitary-authority/warrington ,RSC,Coroners Service,11100,Court Costs,460100,24-Jan-18,1900286371,525.00,Cheshire East Council,410116
WARRINGTON BOROUGH COUNCIL,http://opendatacommunities.org/id/unitary-authority/warrington ,FWB,Child Disability,32212,CP-LongStayExternal,441150,02-Jan-18,1900278000,3000.00,Cheshire West And Chester,103357
WARRINGTON BOROUGH COUNCIL,http://opendatacommunities.org/id/unitary-authority/warrington ,COR,Early Retirement Funding,60160,Actuarial Costs,190500,05-Jan-18,1900278924,38407.00,Cheshire West And Chester,103357
WARRINGTON BOROUGH COUNCIL,http://opendatacommunities.org/id/unitary-authority/warrington ,FWB,Woolston Sensory Centre,32033,Servicing Contracts,200150,15-Jan-18,1900283642,822.00,Clean Homes Industrial and Contract,112524
WARRINGTON BOROUGH COUNCIL,http://opendatacommunities.org/id/unitary-authority/warrington ,FWB,Care Purchase Central Team,54050,Direct Payments,552000,03-Jan-18,1900278607,1081.00,REDACTED PERSONAL DATA,460238
WARRINGTON BOROUGH COUNCIL,http://opendatacommunities.org/id/unitary-authority/warrington ,FWB,Care Purchase Central Team,54050,CP Residential EMI,441110,10-Jan-18,1900281614,2204.00,Cls Care Services Ltd,104615
WARRINGTON BOROUGH COUNCIL,http://opendatacommunities.org/id/unitary-authority/warrington ,FWB,Care Purchase Central Team,54050,CP-LongStayExternal,441150,10-Jan-18,1900281892,1416.00,Cls Care Services Ltd,104615
WARRINGTON BOROUGH COUNCIL,http://opendatacommunities.org/id/unitary-authority/warrington ,FWB,Care Purchase West Team,54080,CP Residential EMI,441110,10-Jan-18,1900281944,2204.00,Cls Care Services Ltd,104615
WARRINGTON BOROUGH COUNCIL,http://opendatacommunities.org/id/unitary-authority/warrington ,FWB,Care Purchase West Team,54080,CP-LongStayExternal,441150,10-Jan-18,1900281944,1416.00,Cls Care Services Ltd,104615
WARRINGTON BOROUGH COUNCIL,http://opendatacommunities.org/id/unitary-authority/warrington ,FWB,Care Purchase South Team,54070,CP Residential EMI,441110,10-Jan-18,1900281653,2204.00,Cls Care Services Ltd,104615
WARRINGTON BOROUGH COUNCIL,http://opendatacommunities.org/id/unitary-authority/warrington ,FWB,Care Purchase South Team,54070,CP-LongStayExternal,441150,10-Jan-18,1900281653,1416.00,Cls Care Services Ltd,104615
WARRINGTON BOROUGH COUNCIL,http://opendatacommunities.org/id/unitary-authority/warrington ,FWB,Care Purchase South Team,54070,CP-Nursing Care-External,441200,10-Jan-18,1900281991,3640.00,Cls Care Services Ltd,104615
WARRINGTON BOROUGH COUNCIL,http://opendatacommunities.org/id/unitary-authority/warrington ,FWB,Care Purchase South Team,54070,CP Residential EMI,441110,10-Jan-18,1900281772,2204.00,Cls Care Services Ltd,104615
WARRINGTON BOROUGH COUNCIL,http://opendatacommunities.org/id/unitary-authority/warrington ,FWB,Care Purchase South Team,54070,CP-Nursing Care-External,441200,10-Jan-18,1900281795,2136.00,Cls Care Services Ltd,104615
WARRINGTON BOROUGH COUNCIL,http://opendatacommunities.org/id/unitary-authority/warrington ,FWB,Care Purchase South Team,54070,CP-Nursing Care-External,441200,10-Jan-18,1900281839,1504.00,Cls Care Services Ltd,104615
WARRINGTON BOROUGH COUNCIL,http://opendatacommunities.org/id/unitary-authority/warrington ,FWB,Care Purchase Budget,54490,CP Free Nursing Care External,443500,10-Jan-18,1900281796,620.00,Cls Care Services Ltd,104615
WARRINGTON BOROUGH COUNCIL,http://opendatacommunities.org/id/unitary-authority/warrington ,FWB,Care Purchase South Team,54070,CP Residential EMI,441110,10-Jan-18,1900281974,2204.00,Cls Care Services Ltd,104615
WARRINGTON BOROUGH COUNCIL,http://opendatacommunities.org/id/unitary-authority/warrington ,FWB,Care Purchase South Team,54070,CP-LongStayExternal,441150,10-Jan-18,1900281974,1416.00,Cls Care Services Ltd,104615
WARRINGTON BOROUGH COUNCIL,http://opendatacommunities.org/id/unitary-authority/warrington ,FWB,Care Purchase South Team,54070,CP-LongStayExternal,441150,10-Jan-18,1900281983,3620.00,Cls Care Services Ltd,104615
WARRINGTON BOROUGH COUNCIL,http://opendatacommunities.org/id/unitary-authority/warrington ,FWB,Care Purchase Central Team,54050,CP Residential EMI,441110,10-Jan-18,1900281887,2204.00,Cls Care Services Ltd,104615
WARRINGTON BOROUGH COUNCIL,http://opendatacommunities.org/id/unitary-authority/warrington ,FWB,Care Purchase Central Team,54050,CP-LongStayExternal,441150,10-Jan-18,1900281907,1100.00,Cls Care Services Ltd,104615
WARRINGTON BOROUGH COUNCIL,http://opendatacommunities.org/id/unitary-authority/warrington ,FWB,Care Purchase South Team,54070,CP Residential EMI,441110,10-Jan-18,1900281912,2204.00,Cls Care Services Ltd,104615
WARRINGTON BOROUGH COUNCIL,http://opendatacommunities.org/id/unitary-authority/warrington ,FWB,Care Purchase East Team,54060,CP-Nursing Care-External,441200,10-Jan-18,1900281594,10189.00,Community Care Matters Limited,102791
WARRINGTON BOROUGH COUNCIL,http://opendatacommunities.org/id/unitary-authority/warrington ,FWB,Care Purchase East Team,54060,CP-Nursing Care-External,441200,10-Jan-18,1900281624,8623.00,Community Care Matters Limited,102791
WARRINGTON BOROUGH COUNCIL,http://opendatacommunities.org/id/unitary-authority/warrington ,FWB,Care Purchase East Team,54060,CP-LongStayExternal,441150,10-Jan-18,1900281600,8887.00,Community Care Matters Limited,102791
WARRINGTON BOROUGH COUNCIL,http://opendatacommunities.org/id/unitary-authority/warrington ,FWB,Care Purchase South Team,54070,CP-Domicil.External,440950,19-Jan-18,1900284089,682.00,Community Integrated Care (Cic),100171
WARRINGTON BOROUGH COUNCIL,http://opendatacommunities.org/id/unitary-authority/warrington ,FWB,Care Purchase South Team,54070,CP-Domicil.External,440950,19-Jan-18,1900284090,682.00,Community Integrated Care (Cic),100171
WARRINGTON BOROUGH COUNCIL,http://opendatacommunities.org/id/unitary-authority/warrington ,FWB,Care Purchase South Team,54070,CP-Domicil.External,440950,19-Jan-18,1900284091,682.00,Community Integrated Care (Cic),100171
WARRINGTON BOROUGH COUNCIL,http://opendatacommunities.org/id/unitary-authority/warrington ,FWB,Care Purchase Central Team,54050,CP-Domicil.External,440950,21-Dec-17,1900277365,524.00,Community Integrated Care (Cic),100171
WARRINGTON BOROUGH COUNCIL,http://opendatacommunities.org/id/unitary-authority/warrington ,FWB,Care Purchase Central Team,54050,CP-Domicil.External,440950,10-Jan-18,1900281520,524.00,Community Integrated Care (Cic),100171
WARRINGTON BOROUGH COUNCIL,http://opendatacommunities.org/id/unitary-authority/warrington ,FWB,Care Purchase South Team,54070,Supported Accommodation,440975,21-Dec-17,1900277361,2262.00,Community Integrated Care (Cic),100171
WARRINGTON BOROUGH COUNCIL,http://opendatacommunities.org/id/unitary-authority/warrington ,FWB,Care Purchase South Team,54070,Supported Accommodation,440975,21-Dec-17,1900277363,1815.00,Community Integrated Care (Cic),100171
WARRINGTON BOROUGH COUNCIL,http://opendatacommunities.org/id/unitary-authority/warrington ,FWB,Care Purchase South Team,54070,Supported Accommodation,440975,21-Dec-17,1900277366,2262.00,Community Integrated Care (Cic),100171
WARRINGTON BOROUGH COUNCIL,http://opendatacommunities.org/id/unitary-authority/warrington ,FWB,Care Purchase Central Team,54050,Supported Accommodation,440975,21-Dec-17,1900277358,2264.00,Community Integrated Care (Cic),100171
WARRINGTON BOROUGH COUNCIL,http://opendatacommunities.org/id/unitary-authority/warrington ,FWB,Care Purchase Central Team,54050,Supported Accommodation,440975,21-Dec-17,1900277360,2054.00,Community Integrated Care (Cic),100171
WARRINGTON BOROUGH COUNCIL,http://opendatacommunities.org/id/unitary-authority/warrington ,FWB,Care Purchase Central Team,54050,Supported Accommodation,440975,21-Dec-17,1900277368,2211.00,Community Integrated Care (Cic),100171
WARRINGTON BOROUGH COUNCIL,http://opendatacommunities.org/id/unitary-authority/warrington ,FWB,Care Purchase Central Team,54050,Supported Accommodation,440975,21-Dec-17,1900277367,2369.00,Community Integrated Care (Cic),100171
WARRINGTON BOROUGH COUNCIL,http://opendatacommunities.org/id/unitary-authority/warrington ,FWB,Care Purchase South Team,54070,CP-Domicil.External,440950,19-Jan-18,1900284092,682.00,Community Integrated Care (Cic),100171
WARRINGTON BOROUGH COUNCIL,http://opendatacommunities.org/id/unitary-authority/warrington ,FWB,Care Purchase South Team,54070,CP-Domicil.External,440950,19-Jan-18,1900284093,682.00,Community Integrated Care (Cic),100171
WARRINGTON BOROUGH COUNCIL,http://opendatacommunities.org/id/unitary-authority/warrington ,FWB,Care Purchase South Team,54070,Supported Accommodation,440975,21-Dec-17,1900277377,2262.00,Community Integrated Care (Cic),100171
WARRINGTON BOROUGH COUNCIL,http://opendatacommunities.org/id/unitary-authority/warrington ,FWB,Care Purchase South Team,54070,Supported Accommodation,440975,21-Dec-17,1900277371,1815.00,Community Integrated Care (Cic),100171
WARRINGTON BOROUGH COUNCIL,http://opendatacommunities.org/id/unitary-authority/warrington ,FWB,Care Purchase South Team,54070,Supported Accommodation,440975,21-Dec-17,1900277376,2262.00,Community Integrated Care (Cic),100171
WARRINGTON BOROUGH COUNCIL,http://opendatacommunities.org/id/unitary-authority/warrington ,FWB,Care Purchase Central Team,54050,Supported Accommodation,440975,21-Dec-17,1900277373,2264.00,Community Integrated Care (Cic),100171
WARRINGTON BOROUGH COUNCIL,http://opendatacommunities.org/id/unitary-authority/warrington ,FWB,Care Purchase Central Team,54050,Supported Accommodation,440975,21-Dec-17,1900277378,2054.00,Community Integrated Care (Cic),100171
WARRINGTON BOROUGH COUNCIL,http://opendatacommunities.org/id/unitary-authority/warrington ,FWB,Care Purchase Central Team,54050,Supported Accommodation,440975,21-Dec-17,1900277375,2211.00,Community Integrated Care (Cic),100171
WARRINGTON BOROUGH COUNCIL,http://opendatacommunities.org/id/unitary-authority/warrington ,FWB,Care Purchase Central Team,54050,Supported Accommodation,440975,21-Dec-17,1900277374,2369.00,Community Integrated Care (Cic),100171
WARRINGTON BOROUGH COUNCIL,http://opendatacommunities.org/id/unitary-authority/warrington ,FWB,Care Purchase Central Team,54050,CP-Domicil.External,440950,24-Jan-18,1900286402,524.00,Community Integrated Care (Cic),100171
WARRINGTON BOROUGH COUNCIL,http://opendatacommunities.org/id/unitary-authority/warrington ,FWB,Care Purchase South Team,54070,Supported Accommodation,440975,24-Jan-18,1900286400,2262.00,Community Integrated Care (Cic),100171
WARRINGTON BOROUGH COUNCIL,http://opendatacommunities.org/id/unitary-authority/warrington ,FWB,Care Purchase South Team,54070,Supported Accommodation,440975,24-Jan-18,1900286398,1815.00,Community Integrated Care (Cic),100171
WARRINGTON BOROUGH COUNCIL,http://opendatacommunities.org/id/unitary-authority/warrington ,FWB,Care Purchase South Team,54070,Supported Accommodation,440975,24-Jan-18,1900286403,2262.00,Community Integrated Care (Cic),100171
WARRINGTON BOROUGH COUNCIL,http://opendatacommunities.org/id/unitary-authority/warrington ,FWB,Care Purchase Central Team,54050,Supported Accommodation,440975,24-Jan-18,1900286397,2264.00,Community Integrated Care (Cic),100171
WARRINGTON BOROUGH COUNCIL,http://opendatacommunities.org/id/unitary-authority/warrington ,FWB,Care Purchase Central Team,54050,Supported Accommodation,440975,24-Jan-18,1900286396,2054.00,Community Integrated Care (Cic),100171
WARRINGTON BOROUGH COUNCIL,http://opendatacommunities.org/id/unitary-authority/warrington ,FWB,Care Purchase Central Team,54050,Supported Accommodation,440975,24-Jan-18,1900286404,2211.00,Community Integrated Care (Cic),100171
WARRINGTON BOROUGH COUNCIL,http://opendatacommunities.org/id/unitary-authority/warrington ,FWB,Care Purchase Central Team,54050,Supported Accommodation,440975,24-Jan-18,1900286405,2369.00,Community Integrated Care (Cic),100171
WARRINGTON BOROUGH COUNCIL,http://opendatacommunities.org/id/unitary-authority/warrington ,FWB,Care Purchase South Team,54070,CP-Domicil.External,440950,24-Jan-18,1900286406,682.00,Community Integrated Care (Cic),100171
WARRINGTON BOROUGH COUNCIL,http://opendatacommunities.org/id/unitary-authority/warrington ,FWB,Care Purchase West Team,54080,CP Nursing EMI,441105,10-Jan-18,1900281655,2396.00,Community Integrated Care (Cic),100171
WARRINGTON BOROUGH COUNCIL,http://opendatacommunities.org/id/unitary-authority/warrington ,FWB,Care Purchase South Team,54070,CP Nursing EMI,441105,10-Jan-18,1900281775,3405.00,Community Integrated Care (Cic),100171
WARRINGTON BOROUGH COUNCIL,http://opendatacommunities.org/id/unitary-authority/warrington ,FWB,Care Purchase East Team,54060,CP Nursing EMI,441105,10-Jan-18,1900281858,3040.00,Community Integrated Care (Cic),100171
WARRINGTON BOROUGH COUNCIL,http://opendatacommunities.org/id/unitary-authority/warrington ,FWB,Care Purchase West Team,54080,Supported Accommodation,440975,26-Jan-18,1900286861,14142.00,Community Integrated Care (Cic),100171
WARRINGTON BOROUGH COUNCIL,http://opendatacommunities.org/id/unitary-authority/warrington ,FWB,Care Purchase West Team,54080,Supporting People - External,441250,26-Jan-18,1900286861,524.00,Community Integrated Care (Cic),100171
WARRINGTON BOROUGH COUNCIL,http://opendatacommunities.org/id/unitary-authority/warrington ,FWB,Care Purchase West Team,54080,Supported Accommodation,440975,26-Jan-18,1900286854,2238.00,Community Integrated Care (Cic),100171
WARRINGTON BOROUGH COUNCIL,http://opendatacommunities.org/id/unitary-authority/warrington ,FWB,Care Purchase East Team,54060,Supported Accommodation,440975,26-Jan-18,1900286862,7062.00,Community Integrated Care (Cic),100171
WARRINGTON BOROUGH COUNCIL,http://opendatacommunities.org/id/unitary-authority/warrington ,FWB,Care Purchase East Team,54060,Supporting People - External,441250,26-Jan-18,1900286862,682.00,Community Integrated Care (Cic),100171
WARRINGTON BOROUGH COUNCIL,http://opendatacommunities.org/id/unitary-authority/warrington ,FWB,Care Purchase West Team,54080,Supported Accommodation,440975,26-Jan-18,1900286855,3444.00,Community Integrated Care (Cic),100171
WARRINGTON BOROUGH COUNCIL,http://opendatacommunities.org/id/unitary-authority/warrington ,FWB,Care Purchase West Team,54080,Supporting People - External,441250,26-Jan-18,1900286855,629.00,Community Integrated Care (Cic),100171
WARRINGTON BOROUGH COUNCIL,http://opendatacommunities.org/id/unitary-authority/warrington ,FWB,Care Purchase East Team,54060,Supported Accommodation,440975,26-Jan-18,1900286863,3654.00,Community Integrated Care (Cic),100171
WARRINGTON BOROUGH COUNCIL,http://opendatacommunities.org/id/unitary-authority/warrington ,FWB,Care Purchase East Team,54060,Supporting People - External,441250,26-Jan-18,1900286863,1678.00,Community Integrated Care (Cic),100171
WARRINGTON BOROUGH COUNCIL,http://opendatacommunities.org/id/unitary-authority/warrington ,FWB,Care Purchase West Team,54080,Supported Accommodation,440975,26-Jan-18,1900286864,14928.00,Community Integrated Care (Cic),100171
WARRINGTON BOROUGH COUNCIL,http://opendatacommunities.org/id/unitary-authority/warrington ,FWB,Care Purchase West Team,54080,Supporting People - External,441250,26-Jan-18,1900286864,682.00,Community Integrated Care (Cic),100171
WARRINGTON BOROUGH COUNCIL,http://opendatacommunities.org/id/unitary-authority/warrington ,FWB,Care Purchase East Team,54060,Supported Accommodation,440975,26-Jan-18,1900286865,2170.00,Community Integrated Care (Cic),100171
WARRINGTON BOROUGH COUNCIL,http://opendatacommunities.org/id/unitary-authority/warrington ,FWB,Care Purchase West Team,54080,Supported Accommodation,440975,26-Jan-18,1900286848,2779.00,Community Integrated Care (Cic),100171
WARRINGTON BOROUGH COUNCIL,http://opendatacommunities.org/id/unitary-authority/warrington ,FWB,Care Purchase East Team,54060,Supported Accommodation,440975,26-Jan-18,1900286866,1593.00,Community Integrated Care (Cic),100171
WARRINGTON BOROUGH COUNCIL,http://opendatacommunities.org/id/unitary-authority/warrington ,FWB,Care Purchase West Team,54080,Supported Accommodation,440975,26-Jan-18,1900286851,5454.00,Community Integrated Care (Cic),100171
WARRINGTON BOROUGH COUNCIL,http://opendatacommunities.org/id/unitary-authority/warrington ,FWB,Care Purchase West Team,54080,Supporting People - External,441250,26-Jan-18,1900286850,1101.00,Community Integrated Care (Cic),100171
WARRINGTON BOROUGH COUNCIL,http://opendatacommunities.org/id/unitary-authority/warrington ,FWB,Care Purchase West Team,54080,Supported Accommodation,440975,26-Jan-18,1900286847,3881.00,Community Integrated Care (Cic),100171
WARRINGTON BOROUGH COUNCIL,http://opendatacommunities.org/id/unitary-authority/warrington ,FWB,Care Purchase East Team,54060,Supported Accommodation,440975,26-Jan-18,1900286860,1573.00,Community Integrated Care (Cic),100171
WARRINGTON BOROUGH COUNCIL,http://opendatacommunities.org/id/unitary-authority/warrington ,FWB,Care Purchase South Team,54070,Supported Accommodation,440975,26-Jan-18,1900286857,20189.00,Community Integrated Care (Cic),100171
WARRINGTON BOROUGH COUNCIL,http://opendatacommunities.org/id/unitary-authority/warrington ,FWB,Care Purchase South Team,54070,Supported Accommodation,440975,26-Jan-18,1900286856,20189.00,Community Integrated Care (Cic),100171
WARRINGTON BOROUGH COUNCIL,http://opendatacommunities.org/id/unitary-authority/warrington ,FWB,Care Purchase East Team,54060,Supported Accommodation,440975,26-Jan-18,1900286852,2584.00,Community Integrated Care (Cic),100171
WARRINGTON BOROUGH COUNCIL,http://opendatacommunities.org/id/unitary-authority/warrington ,FWB,Care Purchase East Team,54060,Supported Accommodation,440975,26-Jan-18,1900286858,2583.00,Community Integrated Care (Cic),100171
WARRINGTON BOROUGH COUNCIL,http://opendatacommunities.org/id/unitary-authority/warrington ,FWB,Care Purchase West Team,54080,Supported Accommodation,440975,26-Jan-18,1900286904,14142.00,Community Integrated Care (Cic),100171
WARRINGTON BOROUGH COUNCIL,http://opendatacommunities.org/id/unitary-authority/warrington ,FWB,Care Purchase West Team,54080,Supporting People - External,441250,26-Jan-18,1900286904,524.00,Community Integrated Care (Cic),100171
WARRINGTON BOROUGH COUNCIL,http://opendatacommunities.org/id/unitary-authority/warrington ,FWB,Care Purchase West Team,54080,Supported Accommodation,440975,26-Jan-18,1900286916,2238.00,Community Integrated Care (Cic),100171
WARRINGTON BOROUGH COUNCIL,http://opendatacommunities.org/id/unitary-authority/warrington ,FWB,Care Purchase East Team,54060,Supported Accommodation,440975,26-Jan-18,1900286905,7062.00,Community Integrated Care (Cic),100171
WARRINGTON BOROUGH COUNCIL,http://opendatacommunities.org/id/unitary-authority/warrington ,FWB,Care Purchase East Team,54060,Supporting People - External,441250,26-Jan-18,1900286905,682.00,Community Integrated Care (Cic),100171
WARRINGTON BOROUGH COUNCIL,http://opendatacommunities.org/id/unitary-authority/warrington ,FWB,Care Purchase West Team,54080,Supported Accommodation,440975,26-Jan-18,1900286917,3444.00,Community Integrated Care (Cic),100171
WARRINGTON BOROUGH COUNCIL,http://opendatacommunities.org/id/unitary-authority/warrington ,FWB,Care Purchase West Team,54080,Supporting People - External,441250,26-Jan-18,1900286917,629.00,Community Integrated Care (Cic),100171
WARRINGTON BOROUGH COUNCIL,http://opendatacommunities.org/id/unitary-authority/warrington ,FWB,Care Purchase East Team,54060,Supported Accommodation,440975,26-Jan-18,1900286906,3654.00,Community Integrated Care (Cic),100171
WARRINGTON BOROUGH COUNCIL,http://opendatacommunities.org/id/unitary-authority/warrington ,FWB,Care Purchase East Team,54060,Supporting People - External,441250,26-Jan-18,1900286906,1678.00,Community Integrated Care (Cic),100171
WARRINGTON BOROUGH COUNCIL,http://opendatacommunities.org/id/unitary-authority/warrington ,FWB,Care Purchase West Team,54080,Supported Accommodation,440975,26-Jan-18,1900286907,14928.00,Community Integrated Care (Cic),100171
WARRINGTON BOROUGH COUNCIL,http://opendatacommunities.org/id/unitary-authority/warrington ,FWB,Care Purchase West Team,54080,Supporting People - External,441250,26-Jan-18,1900286907,682.00,Community Integrated Care (Cic),100171
WARRINGTON BOROUGH COUNCIL,http://opendatacommunities.org/id/unitary-authority/warrington ,FWB,Care Purchase East Team,54060,Supported Accommodation,440975,26-Jan-18,1900286920,2111.00,Community Integrated Care (Cic),100171
WARRINGTON BOROUGH COUNCIL,http://opendatacommunities.org/id/unitary-authority/warrington ,FWB,Care Purchase West Team,54080,Supported Accommodation,440975,26-Jan-18,1900286909,2779.00,Community Integrated Care (Cic),100171
WARRINGTON BOROUGH COUNCIL,http://opendatacommunities.org/id/unitary-authority/warrington ,FWB,Care Purchase East Team,54060,Supported Accommodation,440975,26-Jan-18,1900286921,1534.00,Community Integrated Care (Cic),100171
WARRINGTON BOROUGH COUNCIL,http://opendatacommunities.org/id/unitary-authority/warrington ,FWB,Care Purchase West Team,54080,Supported Accommodation,440975,26-Jan-18,1900286912,5454.00,Community Integrated Care (Cic),100171
WARRINGTON BOROUGH COUNCIL,http://opendatacommunities.org/id/unitary-authority/warrington ,FWB,Care Purchase West Team,54080,Supporting People - External,441250,26-Jan-18,1900286911,1101.00,Community Integrated Care (Cic),100171
WARRINGTON BOROUGH COUNCIL,http://opendatacommunities.org/id/unitary-authority/warrington ,FWB,Care Purchase West Team,54080,Supported Accommodation,440975,26-Jan-18,1900286908,3881.00,Community Integrated Care (Cic),100171
WARRINGTON BOROUGH COUNCIL,http://opendatacommunities.org/id/unitary-authority/warrington ,FWB,Care Purchase East Team,54060,Supported Accommodation,440975,26-Jan-18,1900286903,1573.00,Community Integrated Care (Cic),100171
WARRINGTON BOROUGH COUNCIL,http://opendatacommunities.org/id/unitary-authority/warrington ,FWB,Care Purchase South Team,54070,Supported Accommodation,440975,26-Jan-18,1900286919,5047.00,Community Integrated Care (Cic),100171
WARRINGTON BOROUGH COUNCIL,http://opendatacommunities.org/id/unitary-authority/warrington ,FWB,Care Purchase South Team,54070,Supported Accommodation,440975,26-Jan-18,1900286918,5047.00,Community Integrated Care (Cic),100171
WARRINGTON BOROUGH COUNCIL,http://opendatacommunities.org/id/unitary-authority/warrington ,FWB,Care Purchase East Team,54060,Supported Accommodation,440975,26-Jan-18,1900286913,2504.00,Community Integrated Care (Cic),100171
WARRINGTON BOROUGH COUNCIL,http://opendatacommunities.org/id/unitary-authority/warrington ,FWB,Care Purchase East Team,54060,Supported Accommodation,440975,26-Jan-18,1900286901,2504.00,Community Integrated Care (Cic),100171
WARRINGTON BOROUGH COUNCIL,http://opendatacommunities.org/id/unitary-authority/warrington ,FWB,Care Purchase West Team,54080,Supported Accommodation,440975,26-Jan-18,1900286883,14142.00,Community Integrated Care (Cic),100171
WARRINGTON BOROUGH COUNCIL,http://opendatacommunities.org/id/unitary-authority/warrington ,FWB,Care Purchase West Team,54080,Supporting People - External,441250,26-Jan-18,1900286883,524.00,Community Integrated Care (Cic),100171
WARRINGTON BOROUGH COUNCIL,http://opendatacommunities.org/id/unitary-authority/warrington ,FWB,Care Purchase West Team,54080,Supported Accommodation,440975,26-Jan-18,1900286876,2238.00,Community Integrated Care (Cic),100171
WARRINGTON BOROUGH COUNCIL,http://opendatacommunities.org/id/unitary-authority/warrington ,FWB,Care Purchase East Team,54060,Supported Accommodation,440975,26-Jan-18,1900286884,7062.00,Community Integrated Care (Cic),100171
WARRINGTON BOROUGH COUNCIL,http://opendatacommunities.org/id/unitary-authority/warrington ,FWB,Care Purchase East Team,54060,Supporting People - External,441250,26-Jan-18,1900286884,682.00,Community Integrated Care (Cic),100171
WARRINGTON BOROUGH COUNCIL,http://opendatacommunities.org/id/unitary-authority/warrington ,FWB,Care Purchase West Team,54080,Supported Accommodation,440975,26-Jan-18,1900286877,3444.00,Community Integrated Care (Cic),100171
WARRINGTON BOROUGH COUNCIL,http://opendatacommunities.org/id/unitary-authority/warrington ,FWB,Care Purchase West Team,54080,Supporting People - External,441250,26-Jan-18,1900286877,629.00,Community Integrated Care (Cic),100171
WARRINGTON BOROUGH COUNCIL,http://opendatacommunities.org/id/unitary-authority/warrington ,FWB,Care Purchase East Team,54060,Supported Accommodation,440975,26-Jan-18,1900286885,3654.00,Community Integrated Care (Cic),100171
WARRINGTON BOROUGH COUNCIL,http://opendatacommunities.org/id/unitary-authority/warrington ,FWB,Care Purchase East Team,54060,Supporting People - External,441250,26-Jan-18,1900286885,1678.00,Community Integrated Care (Cic),100171
WARRINGTON BOROUGH COUNCIL,http://opendatacommunities.org/id/unitary-authority/warrington ,FWB,Care Purchase West Team,54080,Supported Accommodation,440975,26-Jan-18,1900286886,14928.00,Community Integrated Care (Cic),100171
WARRINGTON BOROUGH COUNCIL,http://opendatacommunities.org/id/unitary-authority/warrington ,FWB,Care Purchase West Team,54080,Supporting People - External,441250,26-Jan-18,1900286886,682.00,Community Integrated Care (Cic),100171
WARRINGTON BOROUGH COUNCIL,http://opendatacommunities.org/id/unitary-authority/warrington ,FWB,Care Purchase East Team,54060,Supported Accommodation,440975,26-Jan-18,1900286887,2019.00,Community Integrated Care (Cic),100171
WARRINGTON BOROUGH COUNCIL,http://opendatacommunities.org/id/unitary-authority/warrington ,FWB,Care Purchase West Team,54080,Supported Accommodation,440975,26-Jan-18,1900286870,2714.00,Community Integrated Care (Cic),100171
WARRINGTON BOROUGH COUNCIL,http://opendatacommunities.org/id/unitary-authority/warrington ,FWB,Care Purchase East Team,54060,Supported Accommodation,440975,26-Jan-18,1900286888,1468.00,Community Integrated Care (Cic),100171
WARRINGTON BOROUGH COUNCIL,http://opendatacommunities.org/id/unitary-authority/warrington ,FWB,Care Purchase West Team,54080,Supported Accommodation,440975,26-Jan-18,1900286873,5454.00,Community Integrated Care (Cic),100171
WARRINGTON BOROUGH COUNCIL,http://opendatacommunities.org/id/unitary-authority/warrington ,FWB,Care Purchase West Team,54080,Supporting People - External,441250,26-Jan-18,1900286872,1101.00,Community Integrated Care (Cic),100171
WARRINGTON BOROUGH COUNCIL,http://opendatacommunities.org/id/unitary-authority/warrington ,FWB,Care Purchase West Team,54080,Supported Accommodation,440975,26-Jan-18,1900286869,3815.00,Community Integrated Care (Cic),100171
WARRINGTON BOROUGH COUNCIL,http://opendatacommunities.org/id/unitary-authority/warrington ,FWB,Care Purchase East Team,54060,Supported Accommodation,440975,26-Jan-18,1900286882,1573.00,Community Integrated Care (Cic),100171
WARRINGTON BOROUGH COUNCIL,http://opendatacommunities.org/id/unitary-authority/warrington ,FWB,Care Purchase South Team,54070,Supported Accommodation,440975,26-Jan-18,1900286879,5047.00,Community Integrated Care (Cic),100171
WARRINGTON BOROUGH COUNCIL,http://opendatacommunities.org/id/unitary-authority/warrington ,FWB,Care Purchase South Team,54070,Supported Accommodation,440975,26-Jan-18,1900286878,5047.00,Community Integrated Care (Cic),100171
WARRINGTON BOROUGH COUNCIL,http://opendatacommunities.org/id/unitary-authority/warrington ,FWB,Care Purchase East Team,54060,Supported Accommodation,440975,26-Jan-18,1900286874,2543.00,Community Integrated Care (Cic),100171
WARRINGTON BOROUGH COUNCIL,http://opendatacommunities.org/id/unitary-authority/warrington ,FWB,Care Purchase East Team,54060,Supported Accommodation,440975,26-Jan-18,1900286880,2543.00,Community Integrated Care (Cic),100171
WARRINGTON BOROUGH COUNCIL,http://opendatacommunities.org/id/unitary-authority/warrington ,FWB,Care Purchase West Team,54080,Supported Accommodation,440975,26-Jan-18,1900286839,14142.00,Community Integrated Care (Cic),100171
WARRINGTON BOROUGH COUNCIL,http://opendatacommunities.org/id/unitary-authority/warrington ,FWB,Care Purchase West Team,54080,Supporting People - External,441250,26-Jan-18,1900286839,524.00,Community Integrated Care (Cic),100171
WARRINGTON BOROUGH COUNCIL,http://opendatacommunities.org/id/unitary-authority/warrington ,FWB,Care Purchase West Team,54080,Supported Accommodation,440975,26-Jan-18,1900286832,2238.00,Community Integrated Care (Cic),100171
WARRINGTON BOROUGH COUNCIL,http://opendatacommunities.org/id/unitary-authority/warrington ,FWB,Care Purchase East Team,54060,Supported Accommodation,440975,26-Jan-18,1900286840,7062.00,Community Integrated Care (Cic),100171
WARRINGTON BOROUGH COUNCIL,http://opendatacommunities.org/id/unitary-authority/warrington ,FWB,Care Purchase East Team,54060,Supporting People - External,441250,26-Jan-18,1900286840,682.00,Community Integrated Care (Cic),100171
WARRINGTON BOROUGH COUNCIL,http://opendatacommunities.org/id/unitary-authority/warrington ,FWB,Care Purchase West Team,54080,Supported Accommodation,440975,26-Jan-18,1900286833,3444.00,Community Integrated Care (Cic),100171
WARRINGTON BOROUGH COUNCIL,http://opendatacommunities.org/id/unitary-authority/warrington ,FWB,Care Purchase West Team,54080,Supporting People - External,441250,26-Jan-18,1900286833,629.00,Community Integrated Care (Cic),100171
WARRINGTON BOROUGH COUNCIL,http://opendatacommunities.org/id/unitary-authority/warrington ,FWB,Care Purchase East Team,54060,Supported Accommodation,440975,26-Jan-18,1900286841,3654.00,Community Integrated Care (Cic),100171
WARRINGTON BOROUGH COUNCIL,http://opendatacommunities.org/id/unitary-authority/warrington ,FWB,Care Purchase East Team,54060,Supporting People - External,441250,26-Jan-18,1900286841,1678.00,Community Integrated Care (Cic),100171
WARRINGTON BOROUGH COUNCIL,http://opendatacommunities.org/id/unitary-authority/warrington ,FWB,Care Purchase West Team,54080,Supported Accommodation,440975,26-Jan-18,1900286842,14928.00,Community Integrated Care (Cic),100171
WARRINGTON BOROUGH COUNCIL,http://opendatacommunities.org/id/unitary-authority/warrington ,FWB,Care Purchase West Team,54080,Supporting People - External,441250,26-Jan-18,1900286842,682.00,Community Integrated Care (Cic),100171
WARRINGTON BOROUGH COUNCIL,http://opendatacommunities.org/id/unitary-authority/warrington ,FWB,Care Purchase East Team,54060,Supported Accommodation,440975,26-Jan-18,1900286843,1901.00,Community Integrated Care (Cic),100171
WARRINGTON BOROUGH COUNCIL,http://opendatacommunities.org/id/unitary-authority/warrington ,FWB,Care Purchase West Team,54080,Supported Accommodation,440975,26-Jan-18,1900286826,2773.00,Community Integrated Care (Cic),100171
WARRINGTON BOROUGH COUNCIL,http://opendatacommunities.org/id/unitary-authority/warrington ,FWB,Care Purchase East Team,54060,Supported Accommodation,440975,26-Jan-18,1900286844,1324.00,Community Integrated Care (Cic),100171
WARRINGTON BOROUGH COUNCIL,http://opendatacommunities.org/id/unitary-authority/warrington ,FWB,Care Purchase West Team,54080,Supported Accommodation,440975,26-Jan-18,1900286829,5454.00,Community Integrated Care (Cic),100171
WARRINGTON BOROUGH COUNCIL,http://opendatacommunities.org/id/unitary-authority/warrington ,FWB,Care Purchase West Team,54080,Supporting People - External,441250,26-Jan-18,1900286828,1101.00,Community Integrated Care (Cic),100171
WARRINGTON BOROUGH COUNCIL,http://opendatacommunities.org/id/unitary-authority/warrington ,FWB,Care Purchase West Team,54080,Supported Accommodation,440975,26-Jan-18,1900286825,3881.00,Community Integrated Care (Cic),100171
WARRINGTON BOROUGH COUNCIL,http://opendatacommunities.org/id/unitary-authority/warrington ,FWB,Care Purchase East Team,54060,Supported Accommodation,440975,26-Jan-18,1900286838,1023.00,Community Integrated Care (Cic),100171
WARRINGTON BOROUGH COUNCIL,http://opendatacommunities.org/id/unitary-authority/warrington ,FWB,Care Purchase South Team,54070,Supported Accommodation,440975,26-Jan-18,1900286835,5047.00,Community Integrated Care (Cic),100171
WARRINGTON BOROUGH COUNCIL,http://opendatacommunities.org/id/unitary-authority/warrington ,FWB,Care Purchase South Team,54070,Supported Accommodation,440975,26-Jan-18,1900286834,5047.00,Community Integrated Care (Cic),100171
WARRINGTON BOROUGH COUNCIL,http://opendatacommunities.org/id/unitary-authority/warrington ,FWB,Care Purchase East Team,54060,Supported Accommodation,440975,26-Jan-18,1900286830,1862.00,Community Integrated Care (Cic),100171
WARRINGTON BOROUGH COUNCIL,http://opendatacommunities.org/id/unitary-authority/warrington ,FWB,Care Purchase East Team,54060,Supported Accommodation,440975,26-Jan-18,1900286836,1868.00,Community Integrated Care (Cic),100171
WARRINGTON BOROUGH COUNCIL,http://opendatacommunities.org/id/unitary-authority/warrington ,FWB,Fostering Placements,30003,Fostering Accommodation,441050,04-Jan-18,1900278846,6240.00,Compass Fostering North West Ltd,113301
WARRINGTON BOROUGH COUNCIL,http://opendatacommunities.org/id/unitary-authority/warrington ,FWB,Fostering Placements,30003,Fostering Accommodation,441050,04-Jan-18,1900278869,1872.00,Compass Fostering North West Ltd,113301
WARRINGTON BOROUGH COUNCIL,http://opendatacommunities.org/id/unitary-authority/warrington ,FWB,Fostering Placements,30003,Fostering Accommodation,441050,04-Jan-18,1900278862,12480.00,Compass Fostering North West Ltd,113301
WARRINGTON BOROUGH COUNCIL,http://opendatacommunities.org/id/unitary-authority/warrington ,FWB,Fostering Placements,30003,Fostering Accommodation,441050,04-Jan-18,1900278820,8586.00,Compass Fostering North West Ltd,113301
WARRINGTON BOROUGH COUNCIL,http://opendatacommunities.org/id/unitary-authority/warrington ,FWB,Leaving Care Placements,31109,CP-LongStayExternal,441150,11-Jan-18,1900282646,2080.00,Continuum Support Ltd,112065
WARRINGTON BOROUGH COUNCIL,http://opendatacommunities.org/id/unitary-authority/warrington ,FWB,Leaving Care Placements,31109,CP-LongStayExternal,441150,11-Jan-18,1900282648,3300.00,Continuum Support Ltd,112065
WARRINGTON BOROUGH COUNCIL,http://opendatacommunities.org/id/unitary-authority/warrington ,FWB,Leaving Care Placements,31109,CP-LongStayExternal,441150,11-Jan-18,1900282647,3300.00,Continuum Support Ltd,112065
WARRINGTON BOROUGH COUNCIL,http://opendatacommunities.org/id/unitary-authority/warrington ,FWB,Leaving Care Placements,31109,CP-LongStayExternal,441150,11-Jan-18,1900282649,12052.00,Continuum Support Ltd,112065
WARRINGTON BOROUGH COUNCIL,http://opendatacommunities.org/id/unitary-authority/warrington ,FWB,Leaving Care Placements,31109,CP-LongStayExternal,441150,22-Jan-18,1900285885,12052.00,Continuum Support Ltd,112065
WARRINGTON BOROUGH COUNCIL,http://opendatacommunities.org/id/unitary-authority/warrington ,FWB,Leaving Care Placements,31109,CP-LongStayExternal,441150,22-Jan-18,1900285884,3300.00,Continuum Support Ltd,112065
WARRINGTON BOROUGH COUNCIL,http://opendatacommunities.org/id/unitary-authority/warrington ,FWB,Leaving Care Placements,31109,CP-LongStayExternal,441150,22-Jan-18,1900285883,3300.00,Continuum Support Ltd,112065
WARRINGTON BOROUGH COUNCIL,http://opendatacommunities.org/id/unitary-authority/warrington ,FWB,Leaving Care Placements,31109,CP-LongStayExternal,441150,22-Jan-18,1900285882,2080.00,Continuum Support Ltd,112065
WARRINGTON BOROUGH COUNCIL,http://opendatacommunities.org/id/unitary-authority/warrington ,RSC,Coroners Service,11100,Removal Bodies & Exc,440350,02-Jan-18,1900278001,542.00,Co-Operative Funeralcare,104637
WARRINGTON BOROUGH COUNCIL,http://opendatacommunities.org/id/unitary-authority/warrington ,RSC,Coroners Service,11100,Removal Bodies & Exc,440350,02-Jan-18,1900278003,1600.00,Co-Operative Funeralcare,104637
WARRINGTON BOROUGH COUNCIL,http://opendatacommunities.org/id/unitary-authority/warrington ,COR,Markets,43711,Gas,210050,15-Jan-18,1900283635,5886.00,Corona Energy Retail 4 Limited,115857
WARRINGTON BOROUGH COUNCIL,http://opendatacommunities.org/id/unitary-authority/warrington ,EE0,New Town House,43119,Gas,210050,15-Jan-18,1900283635,5125.00,Corona Energy Retail 4 Limited,115857
WARRINGTON BOROUGH COUNCIL,http://opendatacommunities.org/id/unitary-authority/warrington ,EE0,Rylands Street,43118,Gas,210050,15-Jan-18,1900283635,964.00,Corona Energy Retail 4 Limited,115857
WARRINGTON BOROUGH COUNCIL,http://opendatacommunities.org/id/unitary-authority/warrington ,EE0,Town Hall,43111,Gas,210050,15-Jan-18,1900283635,530.00,Corona Energy Retail 4 Limited,115857
WARRINGTON BOROUGH COUNCIL,http://opendatacommunities.org/id/unitary-authority/warrington ,EE0,West Annexe,43112,Gas,210050,15-Jan-18,1900283635,501.00,Corona Energy Retail 4 Limited,115857
WARRINGTON BOROUGH COUNCIL,http://opendatacommunities.org/id/unitary-authority/warrington ,EE0,Crematorium,41411,Gas,210050,15-Jan-18,1900283635,1816.00,Corona Energy Retail 4 Limited,115857
WARRINGTON BOROUGH COUNCIL,http://opendatacommunities.org/id/unitary-authority/warrington ,EE0,Walton Estate,41430,Gas,210050,15-Jan-18,1900283635,1307.00,Corona Energy Retail 4 Limited,115857
WARRINGTON BOROUGH COUNCIL,http://opendatacommunities.org/id/unitary-authority/warrington ,FWB,Orford Day Centre,51243,Gas,210050,15-Jan-18,1900283635,504.00,Corona Energy Retail 4 Limited,115857
WARRINGTON BOROUGH COUNCIL,http://opendatacommunities.org/id/unitary-authority/warrington ,FWB,Padgate House,54760,Gas,210050,15-Jan-18,1900283635,849.00,Corona Energy Retail 4 Limited,115857
WARRINGTON BOROUGH COUNCIL,http://opendatacommunities.org/id/unitary-authority/warrington ,RSC,Professional Development Centre,21000,Gas,210050,15-Jan-18,1900283635,549.00,Corona Energy Retail 4 Limited,115857
WARRINGTON BOROUGH COUNCIL,http://opendatacommunities.org/id/unitary-authority/warrington ,FWB,Residential Placements,30102,CP-LongStayExternal,441150,11-Jan-18,1900282658,11800.00,Courtyard Care Ltd,109673
WARRINGTON BOROUGH COUNCIL,http://opendatacommunities.org/id/unitary-authority/warrington ,FWB,Residential Placements,30102,CP-LongStayExternal,441150,11-Jan-18,1900282657,14592.00,Courtyard Care Ltd,109673
WARRINGTON BOROUGH COUNCIL,http://opendatacommunities.org/id/unitary-authority/warrington ,FWB,Residential Placements,30102,CP-LongStayExternal,441150,11-Jan-18,1900282661,12221.00,Courtyard Care Ltd,109673
WARRINGTON BOROUGH COUNCIL,http://opendatacommunities.org/id/unitary-authority/warrington ,FWB,Residential Placements,30102,CP-LongStayExternal,441150,11-Jan-18,1900282662,14592.00,Courtyard Care Ltd,109673
WARRINGTON BOROUGH COUNCIL,http://opendatacommunities.org/id/unitary-authority/warrington ,FWB,Care Purchase Budget,54490,CP - Cont Care - External,441350,04-Jan-18,1900278727,10356.00,Craegmoor Oxen Barn Priory,112933
WARRINGTON BOROUGH COUNCIL,http://opendatacommunities.org/id/unitary-authority/warrington ,FWB,Care Purchase East Team,54060,CP-LongStayExternal,441150,10-Jan-18,1900281581,19951.00,Craegmoor Oxen Barn Priory,112933
WARRINGTON BOROUGH COUNCIL,http://opendatacommunities.org/id/unitary-authority/warrington ,ENO,Housing Projects,82008,Safe & Secure Energy House Assistance,554100,04-Jan-18,1900278726,5956.00,Creative Care (Todmorden) Ltd,116375
WARRINGTON BOROUGH COUNCIL,http://opendatacommunities.org/id/unitary-authority/warrington ,FWB,Care Purchase East Team,54060,CP-Domicil.External,440950,15-Jan-18,1900283684,726.00,Creative Support Ltd,100902
WARRINGTON BOROUGH COUNCIL,http://opendatacommunities.org/id/unitary-authority/warrington ,FWB,Care Purchase Central Team,54050,Supporting People - External,441250,05-Jan-18,1900279013,6874.00,Creative Support Ltd,100902
WARRINGTON BOROUGH COUNCIL,http://opendatacommunities.org/id/unitary-authority/warrington ,FWB,Care Purchase Central Team,54050,Supporting People - External,441250,05-Jan-18,1900279015,4358.00,Creative Support Ltd,100902
WARRINGTON BOROUGH COUNCIL,http://opendatacommunities.org/id/unitary-authority/warrington ,FWB,Care Purchase Central Team,54050,Supported Accommodation,440975,05-Jan-18,1900279007,726.00,Creative Support Ltd,100902
WARRINGTON BOROUGH COUNCIL,http://opendatacommunities.org/id/unitary-authority/warrington ,FWB,Care Purchase Central Team,54050,Supported Accommodation,440975,05-Jan-18,1900279008,960.00,Creative Support Ltd,100902
WARRINGTON BOROUGH COUNCIL,http://opendatacommunities.org/id/unitary-authority/warrington ,FWB,Care Purchase Central Team,54050,Supported Accommodation,440975,05-Jan-18,1900279004,519.00,Creative Support Ltd,100902
WARRINGTON BOROUGH COUNCIL,http://opendatacommunities.org/id/unitary-authority/warrington ,FWB,Care Purchase Central Team,54050,Supported Accommodation,440975,05-Jan-18,1900279005,1297.00,Creative Support Ltd,100902
WARRINGTON BOROUGH COUNCIL,http://opendatacommunities.org/id/unitary-authority/warrington ,FWB,DSG 2 Year Old Fund,31601,Payment of Grants,470050,22-Dec-17,1900277684,1232.00,Croft Early Years Centre,105880
WARRINGTON BOROUGH COUNCIL,http://opendatacommunities.org/id/unitary-authority/warrington ,FWB,DSG Early Years PVI Settings,32417,Private & Voluntary 3 Year Olds,470100,22-Dec-17,1900277761,6888.00,Croft Early Years Centre,105880
WARRINGTON BOROUGH COUNCIL,http://opendatacommunities.org/id/unitary-authority/warrington ,FWB,DSG Early Years PVI Settings,32417,Private & Voluntary 4 Year Olds,470150,22-Dec-17,1900277877,1730.00,Croft Early Years Centre,105880
WARRINGTON BOROUGH COUNCIL,http://opendatacommunities.org/id/unitary-authority/warrington ,FWB,DSG Early Years PVI Settings,32417,Private & Voluntary 3 Year Olds,470100,12-Jan-18,1900283010,504.00,Croft Village Pre School,109167
WARRINGTON BOROUGH COUNCIL,http://opendatacommunities.org/id/unitary-authority/warrington ,FWB,DSG Early Years PVI Settings,32417,Private & Voluntary 3 Year Olds,470100,22-Dec-17,1900277762,3561.00,Croft Village Pre School,109167
WARRINGTON BOROUGH COUNCIL,http://opendatacommunities.org/id/unitary-authority/warrington ,FWB,DSG Early Years PVI Settings,32417,Private & Voluntary 4 Year Olds,470150,22-Dec-17,1900277878,1747.00,Croft Village Pre School,109167
WARRINGTON BOROUGH COUNCIL,http://opendatacommunities.org/id/unitary-authority/warrington ,FWB,Care Purchase East Team,54060,CP Residential EMI,441110,10-Jan-18,1900281856,1912.00,Croftwood Care - The Laurels,116120
WARRINGTON BOROUGH COUNCIL,http://opendatacommunities.org/id/unitary-authority/warrington ,FWB,Care Purchase East Team,54060,CP-LongStayExternal,441150,10-Jan-18,1900281634,1940.00,Croftwood Care ltd - Holcroft Grang,115736
WARRINGTON BOROUGH COUNCIL,http://opendatacommunities.org/id/unitary-authority/warrington ,FWB,Care Purchase East Team,54060,CP-LongStayExternal,441150,10-Jan-18,1900281554,1940.00,Croftwood Care ltd - Holcroft Grang,115736
WARRINGTON BOROUGH COUNCIL,http://opendatacommunities.org/id/unitary-authority/warrington ,FWB,Care Purchase East Team,54060,CP-LongStayExternal,441150,10-Jan-18,1900281691,1940.00,Croftwood Care ltd - Holcroft Grang,115736
WARRINGTON BOROUGH COUNCIL,http://opendatacommunities.org/id/unitary-authority/warrington ,FWB,Care Purchase East Team,54060,CP-LongStayExternal,441150,10-Jan-18,1900281696,1940.00,Croftwood Care ltd - Holcroft Grang,115736
WARRINGTON BOROUGH COUNCIL,http://opendatacommunities.org/id/unitary-authority/warrington ,FWB,Care Purchase East Team,54060,CP-LongStayExternal,441150,10-Jan-18,1900281941,2523.00,Croftwood Care ltd - Holcroft Grang,115736
WARRINGTON BOROUGH COUNCIL,http://opendatacommunities.org/id/unitary-authority/warrington ,FWB,Care Purchase East Team,54060,CP-LongStayExternal,441150,10-Jan-18,1900281971,2250.00,Croftwood Care ltd - Holcroft Grang,115736
WARRINGTON BOROUGH COUNCIL,http://opendatacommunities.org/id/unitary-authority/warrington ,FWB,Care Purchase East Team,54060,CP-LongStayExternal,441150,10-Jan-18,1900281874,1940.00,Croftwood Care ltd - Holcroft Grang,115736
WARRINGTON BOROUGH COUNCIL,http://opendatacommunities.org/id/unitary-authority/warrington ,FWB,Care Purchase East Team,54060,CP-LongStayExternal,441150,10-Jan-18,1900281778,1940.00,Croftwood Care ltd - Holcroft Grang,115736
WARRINGTON BOROUGH COUNCIL,http://opendatacommunities.org/id/unitary-authority/warrington ,FWB,Care Purchase East Team,54060,CP-LongStayExternal,441150,10-Jan-18,1900281853,1940.00,Croftwood Care ltd - Holcroft Grang,115736
WARRINGTON BOROUGH COUNCIL,http://opendatacommunities.org/id/unitary-authority/warrington ,FWB,Care Purchase South Team,54070,CP-LongStayExternal,441150,10-Jan-18,1900281598,1940.00,Croftwood Care Ltd - Westy Hall,115737
WARRINGTON BOROUGH COUNCIL,http://opendatacommunities.org/id/unitary-authority/warrington ,FWB,Care Purchase Central Team,54050,CP-LongStayExternal,441150,10-Jan-18,1900281951,1560.00,Croftwood Care Ltd - Westy Hall,115737
WARRINGTON BOROUGH COUNCIL,http://opendatacommunities.org/id/unitary-authority/warrington ,FWB,Care Purchase South Team,54070,CP Residential EMI,441110,10-Jan-18,1900281580,2204.00,Croftwood Care Ltd - Westy Hall,115737
WARRINGTON BOROUGH COUNCIL,http://opendatacommunities.org/id/unitary-authority/warrington ,FWB,Care Purchase East Team,54060,CP-LongStayExternal,441150,10-Jan-18,1900281702,1940.00,Croftwood Care Ltd - Westy Hall,115737
WARRINGTON BOROUGH COUNCIL,http://opendatacommunities.org/id/unitary-authority/warrington ,FWB,Care Purchase South Team,54070,CP-LongStayExternal,441150,10-Jan-18,1900281708,1940.00,Croftwood Care Ltd - Westy Hall,115737
WARRINGTON BOROUGH COUNCIL,http://opendatacommunities.org/id/unitary-authority/warrington ,FWB,Care Purchase South Team,54070,CP-LongStayExternal,441150,10-Jan-18,1900281658,1940.00,Croftwood Care Ltd - Westy Hall,115737
WARRINGTON BOROUGH COUNCIL,http://opendatacommunities.org/id/unitary-authority/warrington ,FWB,Care Purchase South Team,54070,CP-LongStayExternal,441150,10-Jan-18,1900281712,1940.00,Croftwood Care Ltd - Westy Hall,115737
WARRINGTON BOROUGH COUNCIL,http://opendatacommunities.org/id/unitary-authority/warrington ,FWB,Care Purchase South Team,54070,CP-LongStayExternal,441150,10-Jan-18,1900281900,1940.00,Croftwood Care Ltd - Westy Hall,115737
WARRINGTON BOROUGH COUNCIL,http://opendatacommunities.org/id/unitary-authority/warrington ,FWB,Care Purchase South Team,54070,CP-LongStayExternal,441150,10-Jan-18,1900281740,1940.00,Croftwood Care Ltd - Westy Hall,115737
WARRINGTON BOROUGH COUNCIL,http://opendatacommunities.org/id/unitary-authority/warrington ,FWB,Care Purchase South Team,54070,CP Residential EMI,441110,10-Jan-18,1900281692,2204.00,Croftwood Care Ltd - Westy Hall,115737
WARRINGTON BOROUGH COUNCIL,http://opendatacommunities.org/id/unitary-authority/warrington ,FWB,Care Purchase East Team,54060,CP-LongStayExternal,441150,10-Jan-18,1900281937,1940.00,Croftwood Care Ltd - Westy Hall,115737
WARRINGTON BOROUGH COUNCIL,http://opendatacommunities.org/id/unitary-authority/warrington ,FWB,Care Purchase South Team,54070,CP-LongStayExternal,441150,10-Jan-18,1900281725,1940.00,Croftwood Care Ltd - Westy Hall,115737
WARRINGTON BOROUGH COUNCIL,http://opendatacommunities.org/id/unitary-authority/warrington ,FWB,Care Purchase West Team,54080,CP-LongStayExternal,441150,10-Jan-18,1900281747,1940.00,Croftwood Care Ltd - Westy Hall,115737
WARRINGTON BOROUGH COUNCIL,http://opendatacommunities.org/id/unitary-authority/warrington ,FWB,Care Purchase Central Team,54050,CP Residential EMI,441110,10-Jan-18,1900281908,2204.00,Croftwood Care Ltd - Westy Hall,115737
WARRINGTON BOROUGH COUNCIL,http://opendatacommunities.org/id/unitary-authority/warrington ,FWB,Care Purchase South Team,54070,CP-LongStayExternal,441150,10-Jan-18,1900281751,1940.00,Croftwood Care Ltd - Westy Hall,115737
WARRINGTON BOROUGH COUNCIL,http://opendatacommunities.org/id/unitary-authority/warrington ,FWB,Care Purchase East Team,54060,CP-LongStayExternal,441150,10-Jan-18,1900281840,1940.00,Croftwood Care Ltd - Westy Hall,115737
WARRINGTON BOROUGH COUNCIL,http://opendatacommunities.org/id/unitary-authority/warrington ,FWB,Care Purchase South Team,54070,CP Residential EMI,441110,10-Jan-18,1900281959,2204.00,Croftwood Care Ltd - Westy Hall,115737
WARRINGTON BOROUGH COUNCIL,http://opendatacommunities.org/id/unitary-authority/warrington ,FWB,Care Purchase South Team,54070,CP-LongStayExternal,441150,10-Jan-18,1900281766,1940.00,Croftwood Care Ltd - Westy Hall,115737
WARRINGTON BOROUGH COUNCIL,http://opendatacommunities.org/id/unitary-authority/warrington ,FWB,Care Purchase South Team,54070,CP Residential EMI,441110,10-Jan-18,1900282005,2204.00,Croftwood Care Ltd - Westy Hall,115737
WARRINGTON BOROUGH COUNCIL,http://opendatacommunities.org/id/unitary-authority/warrington ,FWB,Care Purchase South Team,54070,CP Respite,441115,10-Jan-18,1900281914,520.00,Croftwood Care Ltd - Westy Hall,115737
WARRINGTON BOROUGH COUNCIL,http://opendatacommunities.org/id/unitary-authority/warrington ,FWB,Care Purchase South Team,54070,CP-LongStayExternal,441150,10-Jan-18,1900282020,1263.00,Croftwood Care Ltd - Westy Hall,115737
WARRINGTON BOROUGH COUNCIL,http://opendatacommunities.org/id/unitary-authority/warrington ,FWB,Care Purchase Central Team,54050,CP Residential EMI,441110,10-Jan-18,1900281923,1674.00,Croftwood Care Ltd - Westy Hall,115737
WARRINGTON BOROUGH COUNCIL,http://opendatacommunities.org/id/unitary-authority/warrington ,FWB,Care Purchase Central Team,54050,CP-LongStayExternal,441150,10-Jan-18,1900281975,1940.00,Croftwood Care Ltd - Westy Hall,115737
WARRINGTON BOROUGH COUNCIL,http://opendatacommunities.org/id/unitary-authority/warrington ,FWB,Care Purchase South Team,54070,CP-LongStayExternal,441150,10-Jan-18,1900281882,1940.00,Croftwood Care Ltd - Westy Hall,115737
WARRINGTON BOROUGH COUNCIL,http://opendatacommunities.org/id/unitary-authority/warrington ,FWB,Care Purchase South Team,54070,CP Residential EMI,441110,10-Jan-18,1900281801,2204.00,Croftwood Care Ltd - Westy Hall,115737
WARRINGTON BOROUGH COUNCIL,http://opendatacommunities.org/id/unitary-authority/warrington ,FWB,Care Purchase Central Team,54050,CP-LongStayExternal,441150,10-Jan-18,1900281835,1940.00,Croftwood Care Ltd - Westy Hall,115737
WARRINGTON BOROUGH COUNCIL,http://opendatacommunities.org/id/unitary-authority/warrington ,FWB,Care Purchase West Team,54080,CP-LongStayExternal,441150,10-Jan-18,1900281891,1940.00,Croftwood Care Ltd - Westy Hall,115737
WARRINGTON BOROUGH COUNCIL,http://opendatacommunities.org/id/unitary-authority/warrington ,FWB,Care Purchase Budget,54490,CP ExternalOther Exp,440800,10-Jan-18,1900281483,737.00,Croftwood Care Ltd - Westy Hall,115737
WARRINGTON BOROUGH COUNCIL,http://opendatacommunities.org/id/unitary-authority/warrington ,FWB,DSG Early Years PVI Settings,32417,Private & Voluntary 3 Year Olds,470100,22-Dec-17,1900277763,2268.00,Cromdale Way Preschool,400128
WARRINGTON BOROUGH COUNCIL,http://opendatacommunities.org/id/unitary-authority/warrington ,FWB,DSG Early Years PVI Settings,32417,Private & Voluntary 4 Year Olds,470150,22-Dec-17,1900277879,2217.00,Cromdale Way Preschool,400128
WARRINGTON BOROUGH COUNCIL,http://opendatacommunities.org/id/unitary-authority/warrington ,FWB,Residential Placements,30102,CP-LongStayExternal,441150,04-Jan-18,1900278822,12970.00,Crystal Care Solutions Ltd,115360
WARRINGTON BOROUGH COUNCIL,http://opendatacommunities.org/id/unitary-authority/warrington ,FWB,Residential Placements,30102,CP-LongStayExternal,441150,04-Jan-18,1900278855,17940.00,Crystal Care Solutions Ltd,115360
WARRINGTON BOROUGH COUNCIL,http://opendatacommunities.org/id/unitary-authority/warrington ,FWB,Residential Placements,30102,CP-LongStayExternal,441150,04-Jan-18,1900278850,12970.00,Crystal Care Solutions Ltd,115360
WARRINGTON BOROUGH COUNCIL,http://opendatacommunities.org/id/unitary-authority/warrington ,FWB,DSG 2 Year Old Fund,31601,Payment of Grants,470050,22-Dec-17,1900277685,2156.00,Culcheth Day Nursery Ltd,400130
WARRINGTON BOROUGH COUNCIL,http://opendatacommunities.org/id/unitary-authority/warrington ,FWB,DSG Early Years PVI Settings,32417,Private & Voluntary 3 Year Olds,470100,22-Dec-17,1900277764,20008.00,Culcheth Day Nursery Ltd,400130
WARRINGTON BOROUGH COUNCIL,http://opendatacommunities.org/id/unitary-authority/warrington ,FWB,DSG Early Years PVI Settings,32417,Private & Voluntary 4 Year Olds,470150,22-Dec-17,1900277880,4351.00,Culcheth Day Nursery Ltd,400130
WARRINGTON BOROUGH COUNCIL,http://opendatacommunities.org/id/unitary-authority/warrington ,FWB,Contracts - SM Commissioning Team 2,55920,Public Health Contract Payments,540000,23-Jan-18,1900285947,980.00,Culcheth Medical Centre,109213
WARRINGTON BOROUGH COUNCIL,http://opendatacommunities.org/id/unitary-authority/warrington ,FWB,Contracts - SM Commissioning Team 2,55920,Public Health Contract Payments,540000,23-Jan-18,1900285947,802.00,Culcheth Medical Centre,109213
WARRINGTON BOROUGH COUNCIL,http://opendatacommunities.org/id/unitary-authority/warrington ,FWB,Contracts - SM Commissioning Team 2,55920,Public Health Contract Payments,540000,23-Jan-18,1900285947,770.00,Culcheth Medical Centre,109213
WARRINGTON BOROUGH COUNCIL,http://opendatacommunities.org/id/unitary-authority/warrington ,FWB,Culture Trust,53191,Management Fee,525550,08-Jan-18,1900279483,325598.00,Culture Warrington,100957
WARRINGTON BOROUGH COUNCIL,http://opendatacommunities.org/id/unitary-authority/warrington ,FWB,DSG 2 Year Old Fund,31601,Payment of Grants,470050,22-Dec-17,1900277686,2156.00,Cupcakes Pre School Limited,400241
WARRINGTON BOROUGH COUNCIL,http://opendatacommunities.org/id/unitary-authority/warrington ,FWB,DSG Early Years PVI Settings,32417,Private & Voluntary 3 Year Olds,470100,22-Dec-17,1900277765,2687.00,Cupcakes Pre School Limited,400241
WARRINGTON BOROUGH COUNCIL,http://opendatacommunities.org/id/unitary-authority/warrington ,FWB,Care Purchase Central Team,54050,Supported Accommodation,440975,18-Jan-18,1900284036,2217.00,Deafness Support Network,104657
WARRINGTON BOROUGH COUNCIL,http://opendatacommunities.org/id/unitary-authority/warrington ,FWB,Care Purchase South Team,54070,CP-Domicil.External,440950,09-Jan-18,1900280262,550.00,Dh Homecare,101961
WARRINGTON BOROUGH COUNCIL,http://opendatacommunities.org/id/unitary-authority/warrington ,FWB,Care Purchase South Team,54070,CP-Domicil.External,440950,19-Jan-18,1900285170,550.00,Dh Homecare,101961
WARRINGTON BOROUGH COUNCIL,http://opendatacommunities.org/id/unitary-authority/warrington ,FWB,Care Purchase West Team,54080,Supported Accommodation,440975,05-Jan-18,1900278981,7729.00,Dimensions,116164
WARRINGTON BOROUGH COUNCIL,http://opendatacommunities.org/id/unitary-authority/warrington ,FWB,Care Purchase West Team,54080,Supported Accommodation,440975,05-Jan-18,1900278961,10463.00,Dimensions,116164
WARRINGTON BOROUGH COUNCIL,http://opendatacommunities.org/id/unitary-authority/warrington ,FWB,Care Purchase East Team,54060,Supported Accommodation,440975,05-Jan-18,1900278994,10088.00,Dimensions,116164
WARRINGTON BOROUGH COUNCIL,http://opendatacommunities.org/id/unitary-authority/warrington ,FWB,Care Purchase East Team,54060,Supporting People - External,441250,05-Jan-18,1900278962,8533.00,Dimensions,116164
WARRINGTON BOROUGH COUNCIL,http://opendatacommunities.org/id/unitary-authority/warrington ,FWB,Care Purchase South Team,54070,Supported Accommodation,440975,05-Jan-18,1900278973,8419.00,Dimensions,116164
WARRINGTON BOROUGH COUNCIL,http://opendatacommunities.org/id/unitary-authority/warrington ,FWB,Care Purchase West Team,54080,Supporting People - External,441250,05-Jan-18,1900278992,536.00,Dimensions,116164
WARRINGTON BOROUGH COUNCIL,http://opendatacommunities.org/id/unitary-authority/warrington ,FWB,Care Purchase West Team,54080,Supported Accommodation,440975,05-Jan-18,1900278984,965.00,Dimensions,116164
WARRINGTON BOROUGH COUNCIL,http://opendatacommunities.org/id/unitary-authority/warrington ,FWB,Care Purchase East Team,54060,Supported Accommodation,440975,05-Jan-18,1900278978,804.00,Dimensions,116164
WARRINGTON BOROUGH COUNCIL,http://opendatacommunities.org/id/unitary-authority/warrington ,FWB,Care Purchase West Team,54080,Supported Accommodation,440975,05-Jan-18,1900278988,2104.00,Dimensions,116164
WARRINGTON BOROUGH COUNCIL,http://opendatacommunities.org/id/unitary-authority/warrington ,FWB,Care Purchase East Team,54060,Supported Accommodation,440975,05-Jan-18,1900278989,3068.00,Dimensions,116164
WARRINGTON BOROUGH COUNCIL,http://opendatacommunities.org/id/unitary-authority/warrington ,FWB,Care Purchase South Team,54070,Supported Accommodation,440975,05-Jan-18,1900278971,7468.00,Dimensions,116164
WARRINGTON BOROUGH COUNCIL,http://opendatacommunities.org/id/unitary-authority/warrington ,FWB,Care Purchase South Team,54070,Supported Accommodation,440975,05-Jan-18,1900278980,502.00,Dimensions,116164
WARRINGTON BOROUGH COUNCIL,http://opendatacommunities.org/id/unitary-authority/warrington ,FWB,Care Purchase West Team,54080,Supported Accommodation,440975,05-Jan-18,1900278987,1635.00,Dimensions,116164
WARRINGTON BOROUGH COUNCIL,http://opendatacommunities.org/id/unitary-authority/warrington ,FWB,Care Purchase West Team,54080,Supported Accommodation,440975,05-Jan-18,1900278986,750.00,Dimensions,116164
WARRINGTON BOROUGH COUNCIL,http://opendatacommunities.org/id/unitary-authority/warrington ,FWB,Care Purchase West Team,54080,Supported Accommodation,440975,05-Jan-18,1900278985,1126.00,Dimensions,116164
WARRINGTON BOROUGH COUNCIL,http://opendatacommunities.org/id/unitary-authority/warrington ,FWB,Care Purchase West Team,54080,Supported Accommodation,440975,05-Jan-18,1900278958,11910.00,Dimensions,116164
WARRINGTON BOROUGH COUNCIL,http://opendatacommunities.org/id/unitary-authority/warrington ,FWB,Care Purchase West Team,54080,Supported Accommodation,440975,05-Jan-18,1900278983,965.00,Dimensions,116164
WARRINGTON BOROUGH COUNCIL,http://opendatacommunities.org/id/unitary-authority/warrington ,FWB,Care Purchase East Team,54060,Supported Accommodation,440975,05-Jan-18,1900278982,965.00,Dimensions,116164
WARRINGTON BOROUGH COUNCIL,http://opendatacommunities.org/id/unitary-authority/warrington ,FWB,Care Purchase West Team,54080,Supported Accommodation,440975,05-Jan-18,1900278964,1662.00,Dimensions,116164
WARRINGTON BOROUGH COUNCIL,http://opendatacommunities.org/id/unitary-authority/warrington ,FWB,Care Purchase Central Team,54050,Supported Accommodation,440975,05-Jan-18,1900278972,3536.00,Dimensions,116164
WARRINGTON BOROUGH COUNCIL,http://opendatacommunities.org/id/unitary-authority/warrington ,FWB,Care Purchase West Team,54080,Supported Accommodation,440975,05-Jan-18,1900278963,536.00,Dimensions,116164
WARRINGTON BOROUGH COUNCIL,http://opendatacommunities.org/id/unitary-authority/warrington ,FWB,Care Purchase East Team,54060,Supporting People - External,441250,05-Jan-18,1900278974,643.00,Dimensions,116164
WARRINGTON BOROUGH COUNCIL,http://opendatacommunities.org/id/unitary-authority/warrington ,FWB,Care Purchase West Team,54080,Supported Accommodation,440975,05-Jan-18,1900278960,804.00,Dimensions,116164
WARRINGTON BOROUGH COUNCIL,http://opendatacommunities.org/id/unitary-authority/warrington ,FWB,Care Purchase East Team,54060,Supported Accommodation,440975,05-Jan-18,1900278965,536.00,Dimensions,116164
WARRINGTON BOROUGH COUNCIL,http://opendatacommunities.org/id/unitary-authority/warrington ,FWB,Care Purchase West Team,54080,Supported Accommodation,440975,05-Jan-18,1900278990,965.00,Dimensions,116164
WARRINGTON BOROUGH COUNCIL,http://opendatacommunities.org/id/unitary-authority/warrington ,RSC,Recruitment & Advertising,52123,CRB Checks,190050,16-Jan-18,1900283810,6932.00,Disclosure & Barring Service,440085
WARRINGTON BOROUGH COUNCIL,http://opendatacommunities.org/id/unitary-authority/warrington ,RSC,Coroners Service,11100,Post Mortem Fees-Rep,440250,17-Jan-18,1900283944,611.00,Dr B.N.A Hamid,100354
WARRINGTON BOROUGH COUNCIL,http://opendatacommunities.org/id/unitary-authority/warrington ,RSC,Coroners Service,11100,Post Mortem Fees-Rep,440250,17-Jan-18,1900283945,610.00,Dr B.N.A Hamid,100354
WARRINGTON BOROUGH COUNCIL,http://opendatacommunities.org/id/unitary-authority/warrington ,RSC,Coroners Service,11100,Post Mortem Fees-Rep,440250,03-Jan-18,1900278156,1458.00,Dr Bianca Da Gama-Rose,115567
WARRINGTON BOROUGH COUNCIL,http://opendatacommunities.org/id/unitary-authority/warrington ,RSC,Coroners Service,11100,Post Mortem Fees-Rep,440250,03-Jan-18,1900278160,597.00,Dr C M Manson,100080
WARRINGTON BOROUGH COUNCIL,http://opendatacommunities.org/id/unitary-authority/warrington ,RSC,Coroners Service,11100,Post Mortem Fees-Rep,440250,10-Jan-18,1900281435,1497.00,Dr C M Manson,100080
WARRINGTON BOROUGH COUNCIL,http://opendatacommunities.org/id/unitary-authority/warrington ,RSC,Coroners Service,11100,Post Mortem Fees-Rep,440250,17-Jan-18,1900283931,596.00,Dr C P Johnson,104840
WARRINGTON BOROUGH COUNCIL,http://opendatacommunities.org/id/unitary-authority/warrington ,RSC,Coroners Service,11100,Post Mortem Fees-Rep,440250,09-Jan-18,1900279493,1820.00,Dr Cheng Li,107950
WARRINGTON BOROUGH COUNCIL,http://opendatacommunities.org/id/unitary-authority/warrington ,RSC,Coroners Service,11100,Post Mortem Fees-Rep,440250,24-Jan-18,1900286372,1118.00,Dr Cheng Li,107950
WARRINGTON BOROUGH COUNCIL,http://opendatacommunities.org/id/unitary-authority/warrington ,RSC,Coroners Service,11100,Post Mortem Fees-Rep,440250,03-Jan-18,1900278161,2760.00,Dr D Butterworth,100765
WARRINGTON BOROUGH COUNCIL,http://opendatacommunities.org/id/unitary-authority/warrington ,RSC,Coroners Service,11100,Post Mortem Fees-Rep,440250,10-Jan-18,1900281437,2760.00,Dr D Butterworth,100765
WARRINGTON BOROUGH COUNCIL,http://opendatacommunities.org/id/unitary-authority/warrington ,RSC,Coroners Service,11100,Consult.& Prof. Serv,440000,19-Jan-18,1900284065,6393.00,Dr D Butterworth,100765
WARRINGTON BOROUGH COUNCIL,http://opendatacommunities.org/id/unitary-authority/warrington ,RSC,Coroners Service,11100,Post Mortem Fees-Rep,440250,17-Jan-18,1900283935,707.00,Dr D S Shareef,105121
WARRINGTON BOROUGH COUNCIL,http://opendatacommunities.org/id/unitary-authority/warrington ,RSC,Coroners Service,11100,Post Mortem Fees-Rep,440250,24-Jan-18,1900286373,659.00,Dr Ella Stancombe,116394
WARRINGTON BOROUGH COUNCIL,http://opendatacommunities.org/id/unitary-authority/warrington ,RSC,Coroners Service,11100,Post Mortem Fees-Rep,440250,03-Jan-18,1900278163,1283.00,Dr Hiruni Dhanapala,116240
WARRINGTON BOROUGH COUNCIL,http://opendatacommunities.org/id/unitary-authority/warrington ,RSC,Coroners Service,11100,Post Mortem Fees-Rep,440250,03-Jan-18,1900278162,1081.00,Dr Hiruni Dhanapala,116240
WARRINGTON BOROUGH COUNCIL,http://opendatacommunities.org/id/unitary-authority/warrington ,RSC,Coroners Service,11100,Post Mortem Fees-Rep,440250,19-Jan-18,1900284064,592.00,Dr J E Medcalf,112248
WARRINGTON BOROUGH COUNCIL,http://opendatacommunities.org/id/unitary-authority/warrington ,RSC,Coroners Service,11100,Post Mortem Fees-Rep,440250,19-Jan-18,1900284063,596.00,Dr J E Medcalf,112248
WARRINGTON BOROUGH COUNCIL,http://opendatacommunities.org/id/unitary-authority/warrington ,RSC,Coroners Service,11100,Consult.& Prof. Serv,440000,02-Jan-18,1900278012,1747.00,Dr J E Napier,100061
WARRINGTON BOROUGH COUNCIL,http://opendatacommunities.org/id/unitary-authority/warrington ,RSC,Coroners Service,11100,Post Mortem Fees-Rep,440250,03-Jan-18,1900278168,581.00,Dr J Krajacevic,100409
WARRINGTON BOROUGH COUNCIL,http://opendatacommunities.org/id/unitary-authority/warrington ,RSC,Coroners Service,11100,Post Mortem Fees-Rep,440250,17-Jan-18,1900283960,581.00,Dr J Krajacevic,100409
WARRINGTON BOROUGH COUNCIL,http://opendatacommunities.org/id/unitary-authority/warrington ,RSC,Coroners Service,11100,Post Mortem Fees-Rep,440250,10-Jan-18,1900281444,619.00,Dr Jackie Elder,101240
WARRINGTON BOROUGH COUNCIL,http://opendatacommunities.org/id/unitary-authority/warrington ,RSC,Coroners Service,11100,Post Mortem Fees-Rep,440250,10-Jan-18,1900281445,2004.00,Dr M S Al-Jafari,104464
WARRINGTON BOROUGH COUNCIL,http://opendatacommunities.org/id/unitary-authority/warrington ,RSC,Coroners Service,11100,Post Mortem Fees-Rep,440250,03-Jan-18,1900278170,1348.00,Dr Michael Wall,107545
WARRINGTON BOROUGH COUNCIL,http://opendatacommunities.org/id/unitary-authority/warrington ,RSC,Coroners Service,11100,Post Mortem Fees-Rep,440250,17-Jan-18,1900283958,1571.00,Dr Michael Wall,107545
WARRINGTON BOROUGH COUNCIL,http://opendatacommunities.org/id/unitary-authority/warrington ,RSC,Coroners Service,11100,Post Mortem Fees-Rep,440250,03-Jan-18,1900278176,1033.00,Dr N Alash,100579
WARRINGTON BOROUGH COUNCIL,http://opendatacommunities.org/id/unitary-authority/warrington ,RSC,Coroners Service,11100,Post Mortem Fees-Rep,440250,10-Jan-18,1900281446,986.00,Dr N Alash,100579
WARRINGTON BOROUGH COUNCIL,http://opendatacommunities.org/id/unitary-authority/warrington ,RSC,Coroners Service,11100,Post Mortem Fees-Rep,440250,10-Jan-18,1900281447,928.00,Dr Natalie Meara,101727
WARRINGTON BOROUGH COUNCIL,http://opendatacommunities.org/id/unitary-authority/warrington ,RSC,Coroners Service,11100,Post Mortem Fees-Rep,440250,17-Jan-18,1900283929,1071.00,Dr S A Hales,100988
WARRINGTON BOROUGH COUNCIL,http://opendatacommunities.org/id/unitary-authority/warrington ,FWB,Contracts - SM Commissioning Team 2,55920,Public Health Contract Payments,540000,02-Jan-18,1900278032,1342.00,Dr Wadsworth & Partners Holes Lane,107638
WARRINGTON BOROUGH COUNCIL,http://opendatacommunities.org/id/unitary-authority/warrington ,FWB,Care Purchase Central Team,54050,CP Residential EMI,441110,10-Jan-18,1900281626,2204.00,DRB Healthcare Ltd,115695
WARRINGTON BOROUGH COUNCIL,http://opendatacommunities.org/id/unitary-authority/warrington ,FWB,Care Purchase South Team,54070,CP-Nursing Care-External,441200,10-Jan-18,1900281921,3051.00,DRB Healthcare Ltd,115695
WARRINGTON BOROUGH COUNCIL,http://opendatacommunities.org/id/unitary-authority/warrington ,FWB,Care Purchase Budget,54490,CP Free Nursing Care External,443500,10-Jan-18,1900281920,886.00,DRB Healthcare Ltd,115695
WARRINGTON BOROUGH COUNCIL,http://opendatacommunities.org/id/unitary-authority/warrington ,FWB,Care Purchase Central Team,54050,CP Residential EMI,441110,10-Jan-18,1900281636,2204.00,DRB Healthcare Ltd,115695
WARRINGTON BOROUGH COUNCIL,http://opendatacommunities.org/id/unitary-authority/warrington ,FWB,Care Purchase Central Team,54050,CP Residential EMI,441110,10-Jan-18,1900281987,2204.00,DRB Healthcare Ltd,115695
WARRINGTON BOROUGH COUNCIL,http://opendatacommunities.org/id/unitary-authority/warrington ,FWB,Care Purchase South Team,54070,CP Residential EMI,441110,10-Jan-18,1900281953,2930.00,DRB Healthcare Ltd,115695
WARRINGTON BOROUGH COUNCIL,http://opendatacommunities.org/id/unitary-authority/warrington ,FWB,Care Purchase Central Team,54050,CP Residential EMI,441110,10-Jan-18,1900281688,2204.00,DRB Healthcare Ltd,115695
WARRINGTON BOROUGH COUNCIL,http://opendatacommunities.org/id/unitary-authority/warrington ,FWB,Care Purchase Central Team,54050,CP Residential EMI,441110,10-Jan-18,1900281746,2204.00,DRB Healthcare Ltd,115695
WARRINGTON BOROUGH COUNCIL,http://opendatacommunities.org/id/unitary-authority/warrington ,FWB,Care Purchase South Team,54070,CP Nursing EMI,441105,10-Jan-18,1900281905,5650.00,DRB Healthcare Ltd,115695
WARRINGTON BOROUGH COUNCIL,http://opendatacommunities.org/id/unitary-authority/warrington ,FWB,Care Purchase South Team,54070,CP Residential EMI,441110,10-Jan-18,1900281905,2204.00,DRB Healthcare Ltd,115695
WARRINGTON BOROUGH COUNCIL,http://opendatacommunities.org/id/unitary-authority/warrington ,FWB,Care Purchase Budget,54490,CP Free Nursing Care External,443500,10-Jan-18,1900282018,1550.00,DRB Healthcare Ltd,115695
WARRINGTON BOROUGH COUNCIL,http://opendatacommunities.org/id/unitary-authority/warrington ,FWB,Care Purchase Central Team,54050,CP Residential EMI,441110,10-Jan-18,1900281695,2204.00,DRB Healthcare Ltd,115695
WARRINGTON BOROUGH COUNCIL,http://opendatacommunities.org/id/unitary-authority/warrington ,FWB,Care Purchase Central Team,54050,CP Residential EMI,441110,10-Jan-18,1900281673,2204.00,DRB Healthcare Ltd,115695
WARRINGTON BOROUGH COUNCIL,http://opendatacommunities.org/id/unitary-authority/warrington ,FWB,Care Purchase Central Team,54050,CP Residential EMI,441110,10-Jan-18,1900281826,2204.00,DRB Healthcare Ltd,115695
WARRINGTON BOROUGH COUNCIL,http://opendatacommunities.org/id/unitary-authority/warrington ,FWB,Care Purchase Central Team,54050,CP Residential EMI,441110,10-Jan-18,1900281774,2204.00,DRB Healthcare Ltd,115695
WARRINGTON BOROUGH COUNCIL,http://opendatacommunities.org/id/unitary-authority/warrington ,FWB,Care Purchase Central Team,54050,CP Residential EMI,441110,10-Jan-18,1900281828,2204.00,DRB Healthcare Ltd,115695
WARRINGTON BOROUGH COUNCIL,http://opendatacommunities.org/id/unitary-authority/warrington ,FWB,Care Purchase East Team,54060,CP Residential EMI,441110,10-Jan-18,1900281909,2204.00,DRB Healthcare Ltd,115695
WARRINGTON BOROUGH COUNCIL,http://opendatacommunities.org/id/unitary-authority/warrington ,FWB,Care Purchase Central Team,54050,CP Residential EMI,441110,10-Jan-18,1900281832,2204.00,DRB Healthcare Ltd,115695
WARRINGTON BOROUGH COUNCIL,http://opendatacommunities.org/id/unitary-authority/warrington ,FWB,Care Purchase West Team,54080,CP Residential EMI,441110,10-Jan-18,1900281870,2204.00,DRB Healthcare Ltd,115695
WARRINGTON BOROUGH COUNCIL,http://opendatacommunities.org/id/unitary-authority/warrington ,FWB,Care Purchase South Team,54070,CP Residential EMI,441110,10-Jan-18,1900281869,2204.00,DRB Healthcare Ltd,115695
WARRINGTON BOROUGH COUNCIL,http://opendatacommunities.org/id/unitary-authority/warrington ,FWB,Care Purchase South Team,54070,CP Nursing EMI,441105,10-Jan-18,1900281859,2880.00,DRB Healthcare Ltd,115695
WARRINGTON BOROUGH COUNCIL,http://opendatacommunities.org/id/unitary-authority/warrington ,FWB,Contracts - SM Commissioning Team 2,55920,Public Health Contract Payments,540000,02-Jan-18,1900278018,672.00,Drs Brassil and Saeid,107076
WARRINGTON BOROUGH COUNCIL,http://opendatacommunities.org/id/unitary-authority/warrington ,FWB,DSG 2 Year Old Fund,31601,Payment of Grants,470050,12-Jan-18,1900282991,924.00,Dunky's Day Nursery (Gt Sankey),400306
WARRINGTON BOROUGH COUNCIL,http://opendatacommunities.org/id/unitary-authority/warrington ,FWB,DSG Early Years PVI Settings,32417,Private & Voluntary 3 Year Olds,470100,12-Jan-18,1900283012,11038.00,Dunky's Day Nursery (Gt Sankey),400306
WARRINGTON BOROUGH COUNCIL,http://opendatacommunities.org/id/unitary-authority/warrington ,FWB,DSG Early Years PVI Settings,32417,Private & Voluntary 4 Year Olds,470150,12-Jan-18,1900283046,1008.00,Dunky's Day Nursery (Gt Sankey),400306
WARRINGTON BOROUGH COUNCIL,http://opendatacommunities.org/id/unitary-authority/warrington ,FWB,DSG 2 Year Old Fund,31601,Payment of Grants,470050,22-Dec-17,1900277687,2773.00,Dunky's Day Nursery Warrington,113903
WARRINGTON BOROUGH COUNCIL,http://opendatacommunities.org/id/unitary-authority/warrington ,FWB,DSG Early Years PVI Settings,32417,Private & Voluntary 3 Year Olds,470100,22-Dec-17,1900277767,10802.00,Dunky's Day Nursery Warrington,113903
WARRINGTON BOROUGH COUNCIL,http://opendatacommunities.org/id/unitary-authority/warrington ,FWB,DSG Early Years PVI Settings,32417,Private & Voluntary 4 Year Olds,470150,22-Dec-17,1900277882,2587.00,Dunky's Day Nursery Warrington,113903
WARRINGTON BOROUGH COUNCIL,http://opendatacommunities.org/id/unitary-authority/warrington ,COR,Debt Management Expenses,62080,Consult.& Prof. Serv,440000,16-Jan-18,1900283823,2300.00,Dwf LLP,101511
WARRINGTON BOROUGH COUNCIL,http://opendatacommunities.org/id/unitary-authority/warrington ,COR,Debt Management Expenses,62080,Consult.& Prof. Serv,440000,16-Jan-18,1900283822,7637.00,Dwf LLP,101511
WARRINGTON BOROUGH COUNCIL,http://opendatacommunities.org/id/unitary-authority/warrington ,COR,Debt Management Expenses,62080,Consult.& Prof. Serv,440000,17-Jan-18,1900283973,5182.00,Dwf LLP,101511
WARRINGTON BOROUGH COUNCIL,http://opendatacommunities.org/id/unitary-authority/warrington ,COR,Other Commercial Prop.,43560,Consult.& Prof. Serv,440000,26-Jan-18,1900286803,1250.00,Dwf LLP,101511
WARRINGTON BOROUGH COUNCIL,http://opendatacommunities.org/id/unitary-authority/warrington ,FWB,Care Purchase Central Team,54050,Supported Accommodation,440975,11-Jan-18,1900282639,2000.00,East Cheshire Housing Consortium,110170
WARRINGTON BOROUGH COUNCIL,http://opendatacommunities.org/id/unitary-authority/warrington ,FWB,Care Purchase Central Team,54050,CP-Domicil.External,440950,11-Jan-18,1900282636,2000.00,East Cheshire Housing Consortium,110170
WARRINGTON BOROUGH COUNCIL,http://opendatacommunities.org/id/unitary-authority/warrington ,FWB,Care Purchase Central Team,54050,Supported Accommodation,440975,11-Jan-18,1900282638,4000.00,East Cheshire Housing Consortium,110170
WARRINGTON BOROUGH COUNCIL,http://opendatacommunities.org/id/unitary-authority/warrington ,FWB,Care Purchase East Team,54060,Supported Accommodation,440975,11-Jan-18,1900282637,1200.00,East Cheshire Housing Consortium,110170
WARRINGTON BOROUGH COUNCIL,http://opendatacommunities.org/id/unitary-authority/warrington ,RSC,Coroners Service,11100,Hire Of Mortuaries,220200,02-Jan-18,1900278014,3319.00,East Cheshire Nhs Trust,440130
WARRINGTON BOROUGH COUNCIL,http://opendatacommunities.org/id/unitary-authority/warrington ,RSC,Coroners Service,11100,Hire Of Mortuaries,220200,17-Jan-18,1900283946,2959.00,East Cheshire Nhs Trust,440130
WARRINGTON BOROUGH COUNCIL,http://opendatacommunities.org/id/unitary-authority/warrington ,FWB,Residential Placements,30102,CP-LongStayExternal,441150,04-Jan-18,1900278866,9708.00,Eastfield Group,114936
WARRINGTON BOROUGH COUNCIL,http://opendatacommunities.org/id/unitary-authority/warrington ,FWB,Care Purchase South Team,54070,CP-LongStayExternal,441150,10-Jan-18,1900281553,2500.00,EBS Services Ltd (Rodney House),115343
WARRINGTON BOROUGH COUNCIL,http://opendatacommunities.org/id/unitary-authority/warrington ,PIO,People & Improvement Other,85002,Consult.& Prof. Serv,440000,20-Dec-17,1900276124,1327.00,ECS Consultants,114625
WARRINGTON BOROUGH COUNCIL,http://opendatacommunities.org/id/unitary-authority/warrington ,CYP,Childrens Other,81004,ICT Comms - Equipment Purchase,450100,23-Jan-18,1900285961,7590.00,Edac Solutions North West,100899
WARRINGTON BOROUGH COUNCIL,http://opendatacommunities.org/id/unitary-authority/warrington ,HOL,Single Billing Holding Account,91130,ICT Comms - Line Rental,450200,19-Jan-18,1900284061,2126.00,EE Airtime,104996
WARRINGTON BOROUGH COUNCIL,http://opendatacommunities.org/id/unitary-authority/warrington ,HOL,Single Billing Holding Account,91130,ICT Comms - Line Rental,450200,19-Jan-18,1900284060,9625.00,EE Airtime,104996
WARRINGTON BOROUGH COUNCIL,http://opendatacommunities.org/id/unitary-authority/warrington ,RSC,Individual Electoral Registration,11660,Postages,450000,16-Jan-18,1900283825,951.00,Electoral Reform Services,101138
WARRINGTON BOROUGH COUNCIL,http://opendatacommunities.org/id/unitary-authority/warrington ,FWB,Care Purchase Central Team,54050,CP-Nursing Care-External,441200,10-Jan-18,1900281619,2136.00,Embrace Care,109675
WARRINGTON BOROUGH COUNCIL,http://opendatacommunities.org/id/unitary-authority/warrington ,FWB,Care Purchase Budget,54490,CP Free Nursing Care External,443500,10-Jan-18,1900281618,620.00,Embrace Care,109675
WARRINGTON BOROUGH COUNCIL,http://opendatacommunities.org/id/unitary-authority/warrington ,FWB,Care Purchase East Team,54060,CP-Nursing Care-External,441200,10-Jan-18,1900281544,2136.00,Embrace Care,109675
WARRINGTON BOROUGH COUNCIL,http://opendatacommunities.org/id/unitary-authority/warrington ,FWB,Care Purchase Budget,54490,CP Free Nursing Care External,443500,10-Jan-18,1900281545,620.00,Embrace Care,109675
WARRINGTON BOROUGH COUNCIL,http://opendatacommunities.org/id/unitary-authority/warrington ,FWB,Care Purchase South Team,54070,CP-Nursing Care-External,441200,10-Jan-18,1900282015,1138.00,Embrace Care,109675
WARRINGTON BOROUGH COUNCIL,http://opendatacommunities.org/id/unitary-authority/warrington ,FWB,Care Purchase East Team,54060,CP-Nursing Care-External,441200,10-Jan-18,1900281557,2136.00,Embrace Care,109675
WARRINGTON BOROUGH COUNCIL,http://opendatacommunities.org/id/unitary-authority/warrington ,FWB,Care Purchase Budget,54490,CP Free Nursing Care External,443500,10-Jan-18,1900281611,620.00,Embrace Care,109675
WARRINGTON BOROUGH COUNCIL,http://opendatacommunities.org/id/unitary-authority/warrington ,FWB,Care Purchase East Team,54060,CP-Nursing Care-External,441200,10-Jan-18,1900281657,2136.00,Embrace Care,109675
WARRINGTON BOROUGH COUNCIL,http://opendatacommunities.org/id/unitary-authority/warrington ,FWB,Care Purchase Budget,54490,CP Free Nursing Care External,443500,10-Jan-18,1900281681,620.00,Embrace Care,109675
WARRINGTON BOROUGH COUNCIL,http://opendatacommunities.org/id/unitary-authority/warrington ,FWB,Care Purchase East Team,54060,CP-Nursing Care-External,441200,10-Jan-18,1900281659,2136.00,Embrace Care,109675
WARRINGTON BOROUGH COUNCIL,http://opendatacommunities.org/id/unitary-authority/warrington ,FWB,Care Purchase Budget,54490,CP Free Nursing Care External,443500,10-Jan-18,1900281861,620.00,Embrace Care,109675
WARRINGTON BOROUGH COUNCIL,http://opendatacommunities.org/id/unitary-authority/warrington ,FWB,Care Purchase East Team,54060,CP-Nursing Care-External,441200,10-Jan-18,1900281662,2136.00,Embrace Care,109675
WARRINGTON BOROUGH COUNCIL,http://opendatacommunities.org/id/unitary-authority/warrington ,FWB,Care Purchase Budget,54490,CP Free Nursing Care External,443500,10-Jan-18,1900281690,620.00,Embrace Care,109675
WARRINGTON BOROUGH COUNCIL,http://opendatacommunities.org/id/unitary-authority/warrington ,FWB,Care Purchase East Team,54060,CP-Nursing Care-External,441200,10-Jan-18,1900281743,2136.00,Embrace Care,109675
WARRINGTON BOROUGH COUNCIL,http://opendatacommunities.org/id/unitary-authority/warrington ,FWB,Care Purchase Budget,54490,CP Free Nursing Care External,443500,10-Jan-18,1900281719,620.00,Embrace Care,109675
WARRINGTON BOROUGH COUNCIL,http://opendatacommunities.org/id/unitary-authority/warrington ,FWB,Care Purchase West Team,54080,CP-LongStayExternal,441150,10-Jan-18,1900281924,1940.00,Embrace Care,109675
WARRINGTON BOROUGH COUNCIL,http://opendatacommunities.org/id/unitary-authority/warrington ,FWB,Care Purchase South Team,54070,CP-Nursing Care-External,441200,10-Jan-18,1900281753,2136.00,Embrace Care,109675
WARRINGTON BOROUGH COUNCIL,http://opendatacommunities.org/id/unitary-authority/warrington ,FWB,Care Purchase Budget,54490,CP Free Nursing Care External,443500,10-Jan-18,1900281810,620.00,Embrace Care,109675
WARRINGTON BOROUGH COUNCIL,http://opendatacommunities.org/id/unitary-authority/warrington ,FWB,Care Purchase Central Team,54050,CP-Nursing Care-External,441200,10-Jan-18,1900281814,2136.00,Embrace Care,109675
WARRINGTON BOROUGH COUNCIL,http://opendatacommunities.org/id/unitary-authority/warrington ,FWB,Care Purchase Budget,54490,CP Free Nursing Care External,443500,10-Jan-18,1900281962,620.00,Embrace Care,109675
WARRINGTON BOROUGH COUNCIL,http://opendatacommunities.org/id/unitary-authority/warrington ,FWB,Care Purchase East Team,54060,CP-Nursing Care-External,441200,10-Jan-18,1900281784,2136.00,Embrace Care,109675
WARRINGTON BOROUGH COUNCIL,http://opendatacommunities.org/id/unitary-authority/warrington ,FWB,Care Purchase Budget,54490,CP Free Nursing Care External,443500,10-Jan-18,1900281758,620.00,Embrace Care,109675
WARRINGTON BOROUGH COUNCIL,http://opendatacommunities.org/id/unitary-authority/warrington ,FWB,Care Purchase East Team,54060,CP-Nursing Care-External,441200,10-Jan-18,1900281820,2136.00,Embrace Care,109675
WARRINGTON BOROUGH COUNCIL,http://opendatacommunities.org/id/unitary-authority/warrington ,FWB,Care Purchase Budget,54490,CP Free Nursing Care External,443500,10-Jan-18,1900281765,620.00,Embrace Care,109675
WARRINGTON BOROUGH COUNCIL,http://opendatacommunities.org/id/unitary-authority/warrington ,FWB,Care Purchase South Team,54070,CP-Nursing Care-External,441200,10-Jan-18,1900281851,2136.00,Embrace Care,109675
WARRINGTON BOROUGH COUNCIL,http://opendatacommunities.org/id/unitary-authority/warrington ,FWB,Care Purchase Budget,54490,CP Free Nursing Care External,443500,10-Jan-18,1900281829,620.00,Embrace Care,109675
WARRINGTON BOROUGH COUNCIL,http://opendatacommunities.org/id/unitary-authority/warrington ,FWB,Care Purchase East Team,54060,CP-Nursing Care-External,441200,10-Jan-18,1900281559,2136.00,Embrace Care,109675
WARRINGTON BOROUGH COUNCIL,http://opendatacommunities.org/id/unitary-authority/warrington ,FWB,Care Purchase Budget,54490,CP Free Nursing Care External,443500,10-Jan-18,1900281860,620.00,Embrace Care,109675
WARRINGTON BOROUGH COUNCIL,http://opendatacommunities.org/id/unitary-authority/warrington ,FWB,Care Purchase Budget,54490,CP Free Nursing Care External,443500,04-Jan-18,1900278753,620.00,Embrace Care,109675
WARRINGTON BOROUGH COUNCIL,http://opendatacommunities.org/id/unitary-authority/warrington ,FWB,Care Purchase Budget,54490,CP Free Nursing Care External,443500,04-Jan-18,1900278749,620.00,Embrace Care,109675
WARRINGTON BOROUGH COUNCIL,http://opendatacommunities.org/id/unitary-authority/warrington ,FWB,Care Purchase Budget,54490,CP Free Nursing Care External,443500,04-Jan-18,1900278752,620.00,Embrace Care,109675
WARRINGTON BOROUGH COUNCIL,http://opendatacommunities.org/id/unitary-authority/warrington ,FWB,Care Purchase Budget,54490,CP Free Nursing Care External,443500,04-Jan-18,1900278750,620.00,Embrace Care,109675
WARRINGTON BOROUGH COUNCIL,http://opendatacommunities.org/id/unitary-authority/warrington ,FWB,Care Purchase Budget,54490,CP Free Nursing Care External,443500,04-Jan-18,1900278751,620.00,Embrace Care,109675
WARRINGTON BOROUGH COUNCIL,http://opendatacommunities.org/id/unitary-authority/warrington ,FWB,Care Purchase Budget,54490,CP Free Nursing Care External,443500,04-Jan-18,1900278748,620.00,Embrace Care,109675
WARRINGTON BOROUGH COUNCIL,http://opendatacommunities.org/id/unitary-authority/warrington ,FWB,Care Purchase Budget,54490,CP Free Nursing Care External,443500,25-Jan-18,1900286428,4275.00,Embrace Care,109675
WARRINGTON BOROUGH COUNCIL,http://opendatacommunities.org/id/unitary-authority/warrington ,FWB,Fearnhead Cross CH,51235,Gas,210050,25-Jan-18,1900286444,669.00,Eon Energy LTD,105723
WARRINGTON BOROUGH COUNCIL,http://opendatacommunities.org/id/unitary-authority/warrington ,FWB,Contracts - SM Commissioning Team 2,55920,Public Health Contract Payments,540000,02-Jan-18,1900278015,4836.00,Eric Moore Partnership,113398
WARRINGTON BOROUGH COUNCIL,http://opendatacommunities.org/id/unitary-authority/warrington ,CYP,Childrens Other,81004,Equipment Purchase & Contract,400000,10-Jan-18,1900281450,6450.00,ESI Tech Ltd,115183
WARRINGTON BOROUGH COUNCIL,http://opendatacommunities.org/id/unitary-authority/warrington ,FWB,DSG 2 Year Old Fund,31601,Payment of Grants,470050,22-Dec-17,1900277689,3389.00,Evolution Childcare @ Willows Nurse,400094
WARRINGTON BOROUGH COUNCIL,http://opendatacommunities.org/id/unitary-authority/warrington ,FWB,DSG Early Years PVI Settings,32417,Private & Voluntary 3 Year Olds,470100,22-Dec-17,1900277772,7938.00,Evolution Childcare @ Willows Nurse,400094
WARRINGTON BOROUGH COUNCIL,http://opendatacommunities.org/id/unitary-authority/warrington ,FWB,DSG Early Years PVI Settings,32417,Private & Voluntary 4 Year Olds,470150,22-Dec-17,1900277884,1713.00,Evolution Childcare @ Willows Nurse,400094
WARRINGTON BOROUGH COUNCIL,http://opendatacommunities.org/id/unitary-authority/warrington ,FWB,Fostering Placements,30003,Fostering Accommodation,441050,04-Jan-18,1900278854,2513.00,Excel Fostering Ltd,108752
WARRINGTON BOROUGH COUNCIL,http://opendatacommunities.org/id/unitary-authority/warrington ,FWB,Fostering Placements,30003,Fostering Accommodation,441050,04-Jan-18,1900278830,2513.00,Excel Fostering Ltd,108752
WARRINGTON BOROUGH COUNCIL,http://opendatacommunities.org/id/unitary-authority/warrington ,FWB,Fostering Placements,30003,Fostering Accommodation,441050,04-Jan-18,1900278827,3431.00,Family Care Fostering Ltd,108419
WARRINGTON BOROUGH COUNCIL,http://opendatacommunities.org/id/unitary-authority/warrington ,FWB,Fostering Placements,30003,Fostering Accommodation,441050,04-Jan-18,1900278781,2059.00,Family Care Fostering Ltd,108419
WARRINGTON BOROUGH COUNCIL,http://opendatacommunities.org/id/unitary-authority/warrington ,FWB,Contracts - SM Commissioning Team 2,55920,Public Health Contract Payments,540000,02-Jan-18,1900278019,2808.00,Fearnhead Cross Medical Centre,101109
WARRINGTON BOROUGH COUNCIL,http://opendatacommunities.org/id/unitary-authority/warrington ,FWB,Care Purchase Budget,54490,CP - Cont Care - External,441350,10-Jan-18,1900281479,754.00,Focus on Care,108343
WARRINGTON BOROUGH COUNCIL,http://opendatacommunities.org/id/unitary-authority/warrington ,FWB,Care Purchase Budget,54490,CP - Cont Care - External,441350,10-Jan-18,1900281477,691.00,Focus on Care,108343
WARRINGTON BOROUGH COUNCIL,http://opendatacommunities.org/id/unitary-authority/warrington ,FWB,Care Purchase Budget,54490,CP - Cont Care - External,441350,10-Jan-18,1900281478,703.00,Focus on Care,108343
WARRINGTON BOROUGH COUNCIL,http://opendatacommunities.org/id/unitary-authority/warrington ,FWB,Care Purchase Budget,54490,CP - Cont Care - External,441350,10-Jan-18,1900281480,703.00,Focus on Care,108343
WARRINGTON BOROUGH COUNCIL,http://opendatacommunities.org/id/unitary-authority/warrington ,FWB,Contracts - SM Commissioning Team 2,55920,Public Health Contract Payments,540000,02-Jan-18,1900278020,1027.00,Folly Lane Medical Centre,102338
WARRINGTON BOROUGH COUNCIL,http://opendatacommunities.org/id/unitary-authority/warrington ,FWB,Contracts - SM Commissioning Team 2,55920,Public Health Contract Payments,540000,02-Jan-18,1900278020,962.00,Folly Lane Medical Centre,102338
WARRINGTON BOROUGH COUNCIL,http://opendatacommunities.org/id/unitary-authority/warrington ,RSC,Coroners Service,11100,Analysts Fees,440300,22-Dec-17,1900277964,786.00,Forensics Ltd,105295
WARRINGTON BOROUGH COUNCIL,http://opendatacommunities.org/id/unitary-authority/warrington ,RSC,Coroners Service,11100,Analysts Fees,440300,22-Dec-17,1900277965,790.00,Forensics Ltd,105295
WARRINGTON BOROUGH COUNCIL,http://opendatacommunities.org/id/unitary-authority/warrington ,RSC,Coroners Service,11100,Analysts Fees,440300,22-Dec-17,1900277962,769.00,Forensics Ltd,105295
WARRINGTON BOROUGH COUNCIL,http://opendatacommunities.org/id/unitary-authority/warrington ,RSC,Coroners Service,11100,Analysts Fees,440300,22-Dec-17,1900277966,1105.00,Forensics Ltd,105295
WARRINGTON BOROUGH COUNCIL,http://opendatacommunities.org/id/unitary-authority/warrington ,RSC,Coroners Service,11100,Analysts Fees,440300,17-Jan-18,1900283941,769.00,Forensics Ltd,105295
WARRINGTON BOROUGH COUNCIL,http://opendatacommunities.org/id/unitary-authority/warrington ,RSC,Coroners Service,11100,Analysts Fees,440300,22-Dec-17,1900277963,1156.00,Forensics Ltd,105295
WARRINGTON BOROUGH COUNCIL,http://opendatacommunities.org/id/unitary-authority/warrington ,RSC,Coroners Service,11100,Analysts Fees,440300,22-Dec-17,1900277967,1084.00,Forensics Ltd,105295
WARRINGTON BOROUGH COUNCIL,http://opendatacommunities.org/id/unitary-authority/warrington ,RSC,Coroners Service,11100,Analysts Fees,440300,02-Jan-18,1900278022,1577.00,Forensics Ltd,105295
WARRINGTON BOROUGH COUNCIL,http://opendatacommunities.org/id/unitary-authority/warrington ,RSC,Coroners Service,11100,Analysts Fees,440300,10-Jan-18,1900281454,769.00,Forensics Ltd,105295
WARRINGTON BOROUGH COUNCIL,http://opendatacommunities.org/id/unitary-authority/warrington ,RSC,Coroners Service,11100,Analysts Fees,440300,17-Jan-18,1900283932,1445.00,Forensics Ltd,105295
WARRINGTON BOROUGH COUNCIL,http://opendatacommunities.org/id/unitary-authority/warrington ,RSC,Coroners Service,11100,Analysts Fees,440300,17-Jan-18,1900283966,663.00,Forensics Ltd,105295
WARRINGTON BOROUGH COUNCIL,http://opendatacommunities.org/id/unitary-authority/warrington ,RSC,Coroners Service,11100,Analysts Fees,440300,22-Jan-18,1900285765,2304.00,Forensics Ltd,105295
WARRINGTON BOROUGH COUNCIL,http://opendatacommunities.org/id/unitary-authority/warrington ,RSC,Coroners Service,11100,Analysts Fees,440300,24-Jan-18,1900286377,769.00,Forensics Ltd,105295
WARRINGTON BOROUGH COUNCIL,http://opendatacommunities.org/id/unitary-authority/warrington ,RSC,Coroners Service,11100,Analysts Fees,440300,24-Jan-18,1900286376,1853.00,Forensics Ltd,105295
WARRINGTON BOROUGH COUNCIL,http://opendatacommunities.org/id/unitary-authority/warrington ,FWB,Care Purchase West Team,54080,CP-Domicil.External,440950,26-Jan-18,1900286819,1097.00,Fortunatus Housing Solutions,116294
WARRINGTON BOROUGH COUNCIL,http://opendatacommunities.org/id/unitary-authority/warrington ,FWB,Fostering Placements,30003,Fostering Accommodation,441050,04-Jan-18,1900278842,3083.00,Foster Care Assoc Ltd,101086
WARRINGTON BOROUGH COUNCIL,http://opendatacommunities.org/id/unitary-authority/warrington ,FWB,Fostering Placements,30003,Fostering Accommodation,441050,04-Jan-18,1900278847,3178.00,Foster Care Assoc Ltd,101086
WARRINGTON BOROUGH COUNCIL,http://opendatacommunities.org/id/unitary-authority/warrington ,FWB,Fostering Placements,30003,Fostering Accommodation,441050,04-Jan-18,1900278826,3956.00,Foster Care Assoc Ltd,101086
WARRINGTON BOROUGH COUNCIL,http://opendatacommunities.org/id/unitary-authority/warrington ,FWB,Fostering Placements,30003,Fostering Accommodation,441050,04-Jan-18,1900278828,3956.00,Foster Care Assoc Ltd,101086
WARRINGTON BOROUGH COUNCIL,http://opendatacommunities.org/id/unitary-authority/warrington ,FWB,Fostering Placements,30003,Fostering Accommodation,441050,04-Jan-18,1900278853,3083.00,Foster Care Assoc Ltd,101086
WARRINGTON BOROUGH COUNCIL,http://opendatacommunities.org/id/unitary-authority/warrington ,FWB,YOS Remand Costs,30005,Fostering Accommodation,441050,04-Jan-18,1900278831,2956.00,Foster Care Assoc Ltd,101086
WARRINGTON BOROUGH COUNCIL,http://opendatacommunities.org/id/unitary-authority/warrington ,FWB,Fostering Placements,30003,Fostering Accommodation,441050,04-Jan-18,1900278867,3178.00,Foster Care Assoc Ltd,101086
WARRINGTON BOROUGH COUNCIL,http://opendatacommunities.org/id/unitary-authority/warrington ,FWB,Fostering Placements,30003,Fostering Accommodation,441050,04-Jan-18,1900278833,2786.00,Foster Care Assoc Ltd,101086
WARRINGTON BOROUGH COUNCIL,http://opendatacommunities.org/id/unitary-authority/warrington ,FWB,Fostering Placements,30003,Fostering Accommodation,441050,04-Jan-18,1900278860,3083.00,Foster Care Assoc Ltd,101086
WARRINGTON BOROUGH COUNCIL,http://opendatacommunities.org/id/unitary-authority/warrington ,FWB,Fostering Placements,30003,Fostering Accommodation,441050,04-Jan-18,1900278813,2786.00,Foster Care Assoc Ltd,101086
WARRINGTON BOROUGH COUNCIL,http://opendatacommunities.org/id/unitary-authority/warrington ,FWB,Fostering Placements,30003,Fostering Accommodation,441050,04-Jan-18,1900278815,3178.00,Foster Care Assoc Ltd,101086
WARRINGTON BOROUGH COUNCIL,http://opendatacommunities.org/id/unitary-authority/warrington ,FWB,Fostering Placements,30003,Fostering Accommodation,441050,04-Jan-18,1900278840,3178.00,Foster Care Assoc Ltd,101086
WARRINGTON BOROUGH COUNCIL,http://opendatacommunities.org/id/unitary-authority/warrington ,FWB,Fostering Placements,30003,Fostering Accommodation,441050,04-Jan-18,1900278788,3136.00,Foster Cares Ltd,111506
WARRINGTON BOROUGH COUNCIL,http://opendatacommunities.org/id/unitary-authority/warrington ,FWB,Fostering Placements,30003,Fostering Accommodation,441050,04-Jan-18,1900278790,3136.00,Foster Cares Ltd,111506
WARRINGTON BOROUGH COUNCIL,http://opendatacommunities.org/id/unitary-authority/warrington ,FWB,Fostering Placements,30003,Fostering Accommodation,441050,04-Jan-18,1900278861,3400.00,Foster Cares Ltd,111506
WARRINGTON BOROUGH COUNCIL,http://opendatacommunities.org/id/unitary-authority/warrington ,FWB,Fostering Placements,30003,Fostering Accommodation,441050,04-Jan-18,1900278806,4800.00,Fostering Ltd,420486
WARRINGTON BOROUGH COUNCIL,http://opendatacommunities.org/id/unitary-authority/warrington ,FWB,Fostering Placements,30003,Fostering Accommodation,441050,04-Jan-18,1900278848,3196.00,Fostering Ltd,420486
WARRINGTON BOROUGH COUNCIL,http://opendatacommunities.org/id/unitary-authority/warrington ,FWB,Fostering Placements,30003,Fostering Accommodation,441050,04-Jan-18,1900278786,3104.00,Fostering Matters,112113
WARRINGTON BOROUGH COUNCIL,http://opendatacommunities.org/id/unitary-authority/warrington ,FWB,Fostering Placements,30003,Fostering Accommodation,441050,04-Jan-18,1900278787,3104.00,Fostering Matters,112113
WARRINGTON BOROUGH COUNCIL,http://opendatacommunities.org/id/unitary-authority/warrington ,FWB,Fostering Placements,30003,Fostering Accommodation,441050,04-Jan-18,1900278807,4705.00,Fostering Matters,112113
WARRINGTON BOROUGH COUNCIL,http://opendatacommunities.org/id/unitary-authority/warrington ,FWB,Fostering Placements,30003,Fostering Accommodation,441050,04-Jan-18,1900278837,1552.00,Fostering Matters,112113
WARRINGTON BOROUGH COUNCIL,http://opendatacommunities.org/id/unitary-authority/warrington ,FWB,Fostering Placements,30003,Fostering Accommodation,441050,04-Jan-18,1900278809,2890.00,Fostering People Ltd,110298
WARRINGTON BOROUGH COUNCIL,http://opendatacommunities.org/id/unitary-authority/warrington ,FWB,Fostering Placements,30003,Fostering Accommodation,441050,04-Jan-18,1900278858,2889.00,Fostering People Ltd,110298
WARRINGTON BOROUGH COUNCIL,http://opendatacommunities.org/id/unitary-authority/warrington ,FWB,Fostering Placements,30003,Fostering Accommodation,441050,04-Jan-18,1900278865,3180.00,Fostering Solutions (North West),101226
WARRINGTON BOROUGH COUNCIL,http://opendatacommunities.org/id/unitary-authority/warrington ,FWB,Fostering Placements,30003,Fostering Accommodation,441050,04-Jan-18,1900278798,3180.00,Fostering Solutions (North West),101226
WARRINGTON BOROUGH COUNCIL,http://opendatacommunities.org/id/unitary-authority/warrington ,FWB,Fostering Placements,30003,Fostering Accommodation,441050,04-Jan-18,1900278829,2810.00,Fostering Solutions (North West),101226
WARRINGTON BOROUGH COUNCIL,http://opendatacommunities.org/id/unitary-authority/warrington ,FWB,Fostering Placements,30003,Fostering Accommodation,441050,04-Jan-18,1900278821,3180.00,Fostering Solutions (North West),101226
WARRINGTON BOROUGH COUNCIL,http://opendatacommunities.org/id/unitary-authority/warrington ,FWB,Fostering Placements,30003,Fostering Accommodation,441050,04-Jan-18,1900278782,2810.00,Fostering Solutions (North West),101226
WARRINGTON BOROUGH COUNCIL,http://opendatacommunities.org/id/unitary-authority/warrington ,FWB,Fostering Placements,30003,Fostering Accommodation,441050,04-Jan-18,1900278832,3021.00,Fostering Solutions (North West),101226
WARRINGTON BOROUGH COUNCIL,http://opendatacommunities.org/id/unitary-authority/warrington ,FWB,Fostering Placements,30003,Fostering Accommodation,441050,04-Jan-18,1900278805,2641.00,Fostering Solutions (North West),101226
WARRINGTON BOROUGH COUNCIL,http://opendatacommunities.org/id/unitary-authority/warrington ,FWB,Fostering Placements,30003,Fostering Accommodation,441050,04-Jan-18,1900278834,2983.00,Fostering Solutions (North West),101226
WARRINGTON BOROUGH COUNCIL,http://opendatacommunities.org/id/unitary-authority/warrington ,FWB,Fostering Placements,30003,Fostering Accommodation,441050,04-Jan-18,1900278811,2840.00,Fostering Solutions (North West),101226
WARRINGTON BOROUGH COUNCIL,http://opendatacommunities.org/id/unitary-authority/warrington ,FWB,Fostering Placements,30003,Fostering Accommodation,441050,04-Jan-18,1900278791,2840.00,Fostering Solutions (North West),101226
WARRINGTON BOROUGH COUNCIL,http://opendatacommunities.org/id/unitary-authority/warrington ,FWB,Fostering Placements,30003,Fostering Accommodation,441050,04-Jan-18,1900278812,2641.00,Fostering Solutions (North West),101226
WARRINGTON BOROUGH COUNCIL,http://opendatacommunities.org/id/unitary-authority/warrington ,FWB,Fostering Placements,30003,Fostering Accommodation,441050,04-Jan-18,1900278814,3180.00,Fostering Solutions (North West),101226
WARRINGTON BOROUGH COUNCIL,http://opendatacommunities.org/id/unitary-authority/warrington ,FWB,Care Purchase East Team,54060,CP Nursing EMI,441105,10-Jan-18,1900281586,4402.00,Four Oaks Care Home,115778
WARRINGTON BOROUGH COUNCIL,http://opendatacommunities.org/id/unitary-authority/warrington ,FWB,Care Purchase South Team,54070,CP Nursing EMI,441105,10-Jan-18,1900281798,4402.00,Four Oaks Care Home,115778
WARRINGTON BOROUGH COUNCIL,http://opendatacommunities.org/id/unitary-authority/warrington ,FWB,Care Purchase West Team,54080,CP-LongStayExternal,441150,10-Jan-18,1900281913,1040.00,Four Seasons ta St Oswalds Care Hom,109422
WARRINGTON BOROUGH COUNCIL,http://opendatacommunities.org/id/unitary-authority/warrington ,FWB,Care Purchase East Team,54060,CP-Nursing Care-External,441200,10-Jan-18,1900281566,2136.00,Four Seasons ta St Oswalds Care Hom,109422
WARRINGTON BOROUGH COUNCIL,http://opendatacommunities.org/id/unitary-authority/warrington ,FWB,Care Purchase Budget,54490,CP Free Nursing Care External,443500,10-Jan-18,1900281627,620.00,Four Seasons ta St Oswalds Care Hom,109422
WARRINGTON BOROUGH COUNCIL,http://opendatacommunities.org/id/unitary-authority/warrington ,FWB,Care Purchase West Team,54080,CP-LongStayExternal,441150,10-Jan-18,1900281641,1940.00,Four Seasons ta St Oswalds Care Hom,109422
WARRINGTON BOROUGH COUNCIL,http://opendatacommunities.org/id/unitary-authority/warrington ,FWB,Care Purchase Central Team,54050,CP-Nursing Care-External,441200,10-Jan-18,1900282013,1870.00,Four Seasons ta St Oswalds Care Hom,109422
WARRINGTON BOROUGH COUNCIL,http://opendatacommunities.org/id/unitary-authority/warrington ,FWB,Care Purchase Central Team,54050,CP-Nursing Care-External,441200,10-Jan-18,1900282011,1138.00,Four Seasons ta St Oswalds Care Hom,109422
WARRINGTON BOROUGH COUNCIL,http://opendatacommunities.org/id/unitary-authority/warrington ,FWB,Care Purchase Budget,54490,CP Free Nursing Care External,443500,10-Jan-18,1900281952,509.00,Four Seasons ta St Oswalds Care Hom,109422
WARRINGTON BOROUGH COUNCIL,http://opendatacommunities.org/id/unitary-authority/warrington ,FWB,Care Purchase West Team,54080,CP-Nursing Care-External,441200,10-Jan-18,1900281954,7071.00,Four Seasons ta St Oswalds Care Hom,109422
WARRINGTON BOROUGH COUNCIL,http://opendatacommunities.org/id/unitary-authority/warrington ,FWB,Care Purchase Budget,54490,CP Free Nursing Care External,443500,10-Jan-18,1900281932,1462.00,Four Seasons ta St Oswalds Care Hom,109422
WARRINGTON BOROUGH COUNCIL,http://opendatacommunities.org/id/unitary-authority/warrington ,FWB,Care Purchase West Team,54080,CP-Nursing Care-External,441200,10-Jan-18,1900281555,2336.00,Four Seasons ta St Oswalds Care Hom,109422
WARRINGTON BOROUGH COUNCIL,http://opendatacommunities.org/id/unitary-authority/warrington ,FWB,Care Purchase Budget,54490,CP Free Nursing Care External,443500,10-Jan-18,1900281643,620.00,Four Seasons ta St Oswalds Care Hom,109422
WARRINGTON BOROUGH COUNCIL,http://opendatacommunities.org/id/unitary-authority/warrington ,FWB,Care Purchase East Team,54060,CP-Nursing Care-External,441200,10-Jan-18,1900282010,2276.00,Four Seasons ta St Oswalds Care Hom,109422
WARRINGTON BOROUGH COUNCIL,http://opendatacommunities.org/id/unitary-authority/warrington ,FWB,Care Purchase Budget,54490,CP Free Nursing Care External,443500,10-Jan-18,1900281950,620.00,Four Seasons ta St Oswalds Care Hom,109422
WARRINGTON BOROUGH COUNCIL,http://opendatacommunities.org/id/unitary-authority/warrington ,FWB,Care Purchase West Team,54080,CP-LongStayExternal,441150,10-Jan-18,1900281654,1940.00,Four Seasons ta St Oswalds Care Hom,109422
WARRINGTON BOROUGH COUNCIL,http://opendatacommunities.org/id/unitary-authority/warrington ,FWB,Care Purchase East Team,54060,CP-Nursing Care-External,441200,10-Jan-18,1900281744,2136.00,Four Seasons ta St Oswalds Care Hom,109422
WARRINGTON BOROUGH COUNCIL,http://opendatacommunities.org/id/unitary-authority/warrington ,FWB,Care Purchase Budget,54490,CP Free Nursing Care External,443500,10-Jan-18,1900281667,620.00,Four Seasons ta St Oswalds Care Hom,109422
WARRINGTON BOROUGH COUNCIL,http://opendatacommunities.org/id/unitary-authority/warrington ,FWB,Care Purchase West Team,54080,CP-LongStayExternal,441150,10-Jan-18,1900281724,1940.00,Four Seasons ta St Oswalds Care Hom,109422
WARRINGTON BOROUGH COUNCIL,http://opendatacommunities.org/id/unitary-authority/warrington ,FWB,Care Purchase West Team,54080,CP-LongStayExternal,441150,10-Jan-18,1900281803,1940.00,Four Seasons ta St Oswalds Care Hom,109422
WARRINGTON BOROUGH COUNCIL,http://opendatacommunities.org/id/unitary-authority/warrington ,FWB,Care Purchase West Team,54080,CP-LongStayExternal,441150,10-Jan-18,1900281752,1940.00,Four Seasons ta St Oswalds Care Hom,109422
WARRINGTON BOROUGH COUNCIL,http://opendatacommunities.org/id/unitary-authority/warrington ,FWB,Care Purchase West Team,54080,CP-Nursing Care-External,441200,10-Jan-18,1900281994,2336.00,Four Seasons ta St Oswalds Care Hom,109422
WARRINGTON BOROUGH COUNCIL,http://opendatacommunities.org/id/unitary-authority/warrington ,FWB,Care Purchase Budget,54490,CP Free Nursing Care External,443500,10-Jan-18,1900281811,620.00,Four Seasons ta St Oswalds Care Hom,109422
WARRINGTON BOROUGH COUNCIL,http://opendatacommunities.org/id/unitary-authority/warrington ,FWB,Care Purchase West Team,54080,CP-LongStayExternal,441150,10-Jan-18,1900281817,1940.00,Four Seasons ta St Oswalds Care Hom,109422
WARRINGTON BOROUGH COUNCIL,http://opendatacommunities.org/id/unitary-authority/warrington ,FWB,Care Purchase West Team,54080,CP-LongStayExternal,441150,10-Jan-18,1900281789,1940.00,Four Seasons ta St Oswalds Care Hom,109422
WARRINGTON BOROUGH COUNCIL,http://opendatacommunities.org/id/unitary-authority/warrington ,FWB,Care Purchase East Team,54060,CP-Nursing Care-External,441200,10-Jan-18,1900281984,2136.00,Four Seasons ta St Oswalds Care Hom,109422
WARRINGTON BOROUGH COUNCIL,http://opendatacommunities.org/id/unitary-authority/warrington ,FWB,Care Purchase Budget,54490,CP Free Nursing Care External,443500,10-Jan-18,1900281854,620.00,Four Seasons ta St Oswalds Care Hom,109422
WARRINGTON BOROUGH COUNCIL,http://opendatacommunities.org/id/unitary-authority/warrington ,FWB,Care Purchase Budget,54490,CP Free Nursing Care External,443500,05-Jan-18,1900278872,1861.00,Four Seasons ta St Oswalds Care Hom,109422
WARRINGTON BOROUGH COUNCIL,http://opendatacommunities.org/id/unitary-authority/warrington ,FWB,Academy Conversion Costs,32420,Consult.& Prof. Serv,440000,10-Jan-18,1900281455,2395.00,Freeths LLP,113410
WARRINGTON BOROUGH COUNCIL,http://opendatacommunities.org/id/unitary-authority/warrington ,FWB,Academy Conversion Costs,32420,Consult.& Prof. Serv,440000,17-Jan-18,1900283964,2249.00,Freeths LLP,113410
WARRINGTON BOROUGH COUNCIL,http://opendatacommunities.org/id/unitary-authority/warrington ,FWB,Academy Conversion Costs,32420,Consult.& Prof. Serv,440000,10-Jan-18,1900281456,1226.00,Freeths LLP,113410
WARRINGTON BOROUGH COUNCIL,http://opendatacommunities.org/id/unitary-authority/warrington ,FWB,Child Disability,32212,CP-Domicil.External,440950,02-Jan-18,1900278027,648.00,Frewco Services Limited,113518
WARRINGTON BOROUGH COUNCIL,http://opendatacommunities.org/id/unitary-authority/warrington ,FWB,Neighbourhood Co-o Central,51309,Payment of Grants,470050,26-Jan-18,1900286753,650.00,Friends of Padgate Community Garden,115734
WARRINGTON BOROUGH COUNCIL,http://opendatacommunities.org/id/unitary-authority/warrington ,FWB,Neighbourhood Co-o Central,51309,Payment of Grants,470050,26-Jan-18,1900286752,550.00,Friends of Padgate Community Garden,115734
WARRINGTON BOROUGH COUNCIL,http://opendatacommunities.org/id/unitary-authority/warrington ,ENO,Housing Projects,82008,Disabled Persons Grant 1996,554000,15-Jan-18,1900283666,2423.00,Frontis Homes Ltd,100795
WARRINGTON BOROUGH COUNCIL,http://opendatacommunities.org/id/unitary-authority/warrington ,FWB,DSG Early Years PVI Settings,32417,Private & Voluntary 3 Year Olds,470100,22-Dec-17,1900277773,4326.00,Fun 4 Kids,102275
WARRINGTON BOROUGH COUNCIL,http://opendatacommunities.org/id/unitary-authority/warrington ,FWB,DSG Early Years PVI Settings,32417,Private & Voluntary 4 Year Olds,470150,22-Dec-17,1900277885,1697.00,Fun 4 Kids,102275
WARRINGTON BOROUGH COUNCIL,http://opendatacommunities.org/id/unitary-authority/warrington ,COR,Debt Management Expenses,62080,Consult.& Prof. Serv,440000,17-Jan-18,1900283975,20000.00,Futureserv Ltd,116407
WARRINGTON BOROUGH COUNCIL,http://opendatacommunities.org/id/unitary-authority/warrington ,COR,Debt Management Expenses,62080,Consult.& Prof. Serv,440000,17-Jan-18,1900283974,3500.00,Futureserv Ltd,116407
WARRINGTON BOROUGH COUNCIL,http://opendatacommunities.org/id/unitary-authority/warrington ,CYP,Childrens Other,81004,ICT Comms - Equipment Purchase,450100,07-Dec-17,1900271345,3895.00,Geotek.biz Associates Ltd,116353
WARRINGTON BOROUGH COUNCIL,http://opendatacommunities.org/id/unitary-authority/warrington ,FWB,Residential Placements,30102,CP-LongStayExternal,441150,11-Jan-18,1900282650,3025.00,G-Map Services,106244
WARRINGTON BOROUGH COUNCIL,http://opendatacommunities.org/id/unitary-authority/warrington ,FWB,Care Purchase South Team,54070,CP-LongStayExternal,441150,10-Jan-18,1900281548,1940.00,GNR Care Limited,114127
WARRINGTON BOROUGH COUNCIL,http://opendatacommunities.org/id/unitary-authority/warrington ,FWB,Care Purchase South Team,54070,CP-LongStayExternal,441150,10-Jan-18,1900281737,1940.00,GNR Care Limited,114127
WARRINGTON BOROUGH COUNCIL,http://opendatacommunities.org/id/unitary-authority/warrington ,FWB,Care Purchase South Team,54070,CP Residential EMI,441110,10-Jan-18,1900281955,6455.00,GNR Care Limited,114127
WARRINGTON BOROUGH COUNCIL,http://opendatacommunities.org/id/unitary-authority/warrington ,FWB,Care Purchase South Team,54070,CP-LongStayExternal,441150,10-Jan-18,1900281739,1940.00,GNR Care Limited,114127
WARRINGTON BOROUGH COUNCIL,http://opendatacommunities.org/id/unitary-authority/warrington ,FWB,Care Purchase West Team,54080,CP Residential EMI,441110,10-Jan-18,1900281935,5353.00,GNR Care Limited,114127
WARRINGTON BOROUGH COUNCIL,http://opendatacommunities.org/id/unitary-authority/warrington ,FWB,Care Purchase South Team,54070,CP-LongStayExternal,441150,10-Jan-18,1900281727,1940.00,GNR Care Limited,114127
WARRINGTON BOROUGH COUNCIL,http://opendatacommunities.org/id/unitary-authority/warrington ,FWB,Care Purchase South Team,54070,CP Residential EMI,441110,10-Jan-18,1900281750,2204.00,GNR Care Limited,114127
WARRINGTON BOROUGH COUNCIL,http://opendatacommunities.org/id/unitary-authority/warrington ,FWB,Care Purchase South Team,54070,CP Residential EMI,441110,10-Jan-18,1900281878,2204.00,GNR Care Limited,114127
WARRINGTON BOROUGH COUNCIL,http://opendatacommunities.org/id/unitary-authority/warrington ,FWB,Care Purchase South Team,54070,CP Residential EMI,441110,10-Jan-18,1900281831,2204.00,GNR Care Limited,114127
WARRINGTON BOROUGH COUNCIL,http://opendatacommunities.org/id/unitary-authority/warrington ,COR,Fees & Subscriptions,60020,Audit Comm-Fee,441550,18-Dec-17,1900276007,31791.00,Grant Thornton UK LLP,108316
WARRINGTON BOROUGH COUNCIL,http://opendatacommunities.org/id/unitary-authority/warrington ,FWB,DSG Early Years PVI Settings,32417,Private & Voluntary 3 Year Olds,470100,12-Jan-18,1900283014,8593.00,Grappenhall Pre-School,400134
WARRINGTON BOROUGH COUNCIL,http://opendatacommunities.org/id/unitary-authority/warrington ,FWB,DSG Early Years PVI Settings,32417,Private & Voluntary 4 Year Olds,470150,12-Jan-18,1900283047,3864.00,Grappenhall Pre-School,400134
WARRINGTON BOROUGH COUNCIL,http://opendatacommunities.org/id/unitary-authority/warrington ,FWB,Care Purchase West Team,54080,CP-Day Care-External,441100,09-Jan-18,1900279540,720.00,Great Opportunities Together CIC,110076
WARRINGTON BOROUGH COUNCIL,http://opendatacommunities.org/id/unitary-authority/warrington ,FWB,Contracts - SM Commissioning Team 2,55920,Public Health Contract Payments,540000,23-Jan-18,1900285948,3264.00,Green Bank Surgery,101004
WARRINGTON BOROUGH COUNCIL,http://opendatacommunities.org/id/unitary-authority/warrington ,FWB,Contracts - SM Commissioning Team 2,55920,Public Health Contract Payments,540000,23-Jan-18,1900285948,1284.00,Green Bank Surgery,101004
WARRINGTON BOROUGH COUNCIL,http://opendatacommunities.org/id/unitary-authority/warrington ,FWB,DSG 2 Year Old Fund,31601,Payment of Grants,470050,12-Jan-18,1900282992,1232.00,Green Park Nursery,400089
WARRINGTON BOROUGH COUNCIL,http://opendatacommunities.org/id/unitary-authority/warrington ,FWB,DSG Early Years PVI Settings,32417,Private & Voluntary 3 Year Olds,470100,12-Jan-18,1900283015,1411.00,Green Park Nursery,400089
WARRINGTON BOROUGH COUNCIL,http://opendatacommunities.org/id/unitary-authority/warrington ,FWB,DSG 2 Year Old Fund,31601,Payment of Grants,470050,22-Dec-17,1900277691,1232.00,Green Park Nursery,400089
WARRINGTON BOROUGH COUNCIL,http://opendatacommunities.org/id/unitary-authority/warrington ,FWB,DSG Early Years PVI Settings,32417,Private & Voluntary 3 Year Olds,470100,22-Dec-17,1900277774,27317.00,Green Park Nursery,400089
WARRINGTON BOROUGH COUNCIL,http://opendatacommunities.org/id/unitary-authority/warrington ,FWB,DSG Early Years PVI Settings,32417,Private & Voluntary 4 Year Olds,470150,22-Dec-17,1900277887,4066.00,Green Park Nursery,400089
WARRINGTON BOROUGH COUNCIL,http://opendatacommunities.org/id/unitary-authority/warrington ,FWB,Care Purchase East Team,54060,CP-LongStayExternal,441150,10-Jan-18,1900281631,12348.00,Griffin Care Ltd,101672
WARRINGTON BOROUGH COUNCIL,http://opendatacommunities.org/id/unitary-authority/warrington ,FWB,Care Purchase South Team,54070,CP-LongStayExternal,441150,10-Jan-18,1900281540,12348.00,Griffin Care Ltd,101672
WARRINGTON BOROUGH COUNCIL,http://opendatacommunities.org/id/unitary-authority/warrington ,FWB,Contracts - SM Commissioning Team 2,55920,Public Health Contract Payments,540000,23-Jan-18,1900285949,1944.00,Guardian Medical Centre,101534
WARRINGTON BOROUGH COUNCIL,http://opendatacommunities.org/id/unitary-authority/warrington ,FWB,Contracts - SM Commissioning Team 2,55920,Public Health Contract Payments,540000,23-Jan-18,1900285949,1043.00,Guardian Medical Centre,101534
WARRINGTON BOROUGH COUNCIL,http://opendatacommunities.org/id/unitary-authority/warrington ,FWB,Contracts - SM Commissioning Team 2,55920,Public Health Contract Payments,540000,23-Jan-18,1900285949,1027.00,Guardian Medical Centre,101534
WARRINGTON BOROUGH COUNCIL,http://opendatacommunities.org/id/unitary-authority/warrington ,FWB,Trading Standards North West,41564,Fees (Including Agents Fees),441450,17-Jan-18,1900283980,2334.00,Halton Borough Council,410008
WARRINGTON BOROUGH COUNCIL,http://opendatacommunities.org/id/unitary-authority/warrington ,FWB,Care Purchase West Team,54080,CP-Domicil.External,440950,07-Dec-17,1900272394,612.00,Hannahs Homecare Ltd,114443
WARRINGTON BOROUGH COUNCIL,http://opendatacommunities.org/id/unitary-authority/warrington ,FWB,Care Purchase West Team,54080,CP-Domicil.External,440950,07-Dec-17,1900271699,525.00,Hannahs Homecare Ltd,114443
WARRINGTON BOROUGH COUNCIL,http://opendatacommunities.org/id/unitary-authority/warrington ,FWB,Care Purchase West Team,54080,CP-Domicil.External,440950,07-Dec-17,1900271993,553.00,Hannahs Homecare Ltd,114443
WARRINGTON BOROUGH COUNCIL,http://opendatacommunities.org/id/unitary-authority/warrington ,FWB,Care Purchase West Team,54080,CP-Domicil.External,440950,09-Jan-18,1900280264,612.00,Hannahs Homecare Ltd,114443
WARRINGTON BOROUGH COUNCIL,http://opendatacommunities.org/id/unitary-authority/warrington ,FWB,Care Purchase West Team,54080,CP-Domicil.External,440950,09-Jan-18,1900280263,525.00,Hannahs Homecare Ltd,114443
WARRINGTON BOROUGH COUNCIL,http://opendatacommunities.org/id/unitary-authority/warrington ,FWB,Care Purchase West Team,54080,CP-Domicil.External,440950,09-Jan-18,1900280515,553.00,Hannahs Homecare Ltd,114443
WARRINGTON BOROUGH COUNCIL,http://opendatacommunities.org/id/unitary-authority/warrington ,FWB,Fostering Placements,30003,Fostering Accommodation,441050,04-Jan-18,1900278789,2888.00,1st Affinity Fostering Service,114585
WARRINGTON BOROUGH COUNCIL,http://opendatacommunities.org/id/unitary-authority/warrington ,FWB,Contracts - SM Commissioning Team 2,55920,Public Health Contract Payments,540000,02-Jan-18,1900277994,1027.00,4 Seasons Medical Centre,101455
WARRINGTON BOROUGH COUNCIL,http://opendatacommunities.org/id/unitary-authority/warrington ,FWB,DSG 2 Year Old Fund,31601,Payment of Grants,470050,22-Dec-17,1900277674,616.00,A & J Tots to Teens Childcare,113264
WARRINGTON BOROUGH COUNCIL,http://opendatacommunities.org/id/unitary-authority/warrington ,FWB,DSG Early Years PVI Settings,32417,Private & Voluntary 3 Year Olds,470100,22-Dec-17,1900277781,1008.00,A & J Tots to Teens Childcare,113264
WARRINGTON BOROUGH COUNCIL,http://opendatacommunities.org/id/unitary-authority/warrington ,FWB,Care Purchase West Team,54080,CP-Domicil.External,440950,11-Jan-18,1900282630,2059.00,A&J E Ltd t/a Bluebird Care,115846
WARRINGTON BOROUGH COUNCIL,http://opendatacommunities.org/id/unitary-authority/warrington ,FWB,Care Purchase Central Team,54050,CP-Nursing Care-External,441200,10-Jan-18,1900281694,4136.00,Abbey Lawns Care Home Ltd,101816
WARRINGTON BOROUGH COUNCIL,http://opendatacommunities.org/id/unitary-authority/warrington ,FWB,Care Purchase East Team,54060,CP-LongStayExternal,441150,10-Jan-18,1900281732,1840.00,Abbeydale Residential Home,104446
WARRINGTON BOROUGH COUNCIL,http://opendatacommunities.org/id/unitary-authority/warrington ,FWB,DSG 2 Year Old Fund,31601,Payment of Grants,470050,22-Dec-17,1900277673,3081.00,Abc 123 Day Nursery Ltd,400152
WARRINGTON BOROUGH COUNCIL,http://opendatacommunities.org/id/unitary-authority/warrington ,FWB,DSG Early Years PVI Settings,32417,Private & Voluntary 3 Year Olds,470100,22-Dec-17,1900277737,18344.00,Abc 123 Day Nursery Ltd,400152
WARRINGTON BOROUGH COUNCIL,http://opendatacommunities.org/id/unitary-authority/warrington ,FWB,DSG Early Years PVI Settings,32417,Private & Voluntary 4 Year Olds,470150,22-Dec-17,1900277860,10347.00,Abc 123 Day Nursery Ltd,400152
WARRINGTON BOROUGH COUNCIL,http://opendatacommunities.org/id/unitary-authority/warrington ,FWB,DSG Early Years PVI Settings,32417,Private & Voluntary 3 Year Olds,470100,22-Dec-17,1900277738,1613.00,Abc Pre-School Limited,400009
WARRINGTON BOROUGH COUNCIL,http://opendatacommunities.org/id/unitary-authority/warrington ,FWB,DSG Early Years PVI Settings,32417,Private & Voluntary 4 Year Olds,470150,22-Dec-17,1900277861,1764.00,Abc Pre-School Limited,400009
WARRINGTON BOROUGH COUNCIL,http://opendatacommunities.org/id/unitary-authority/warrington ,FWB,DSG Early Years PVI Settings,32417,Private & Voluntary 3 Year Olds,470100,12-Jan-18,1900283002,554.00,ABC Pre-Schools Ltd,400466
WARRINGTON BOROUGH COUNCIL,http://opendatacommunities.org/id/unitary-authority/warrington ,CYP,Childrens Other,81004,ICT Comms - Equipment Purchase,450100,17-Jan-18,1900283963,32702.00,Abtec Computer Solutions Ltd,107132
WARRINGTON BOROUGH COUNCIL,http://opendatacommunities.org/id/unitary-authority/warrington ,ENO,Housing Projects,82008,Disabled Persons Grant 1996,554000,23-Jan-18,1900285957,638.00,Acorn Building Projects Ltd,105557
WARRINGTON BOROUGH COUNCIL,http://opendatacommunities.org/id/unitary-authority/warrington ,ENO,Housing Projects,82008,Disabled Persons Grant 1996,554000,22-Jan-18,1900285762,8729.00,Acorn Building Projects Ltd,105557
WARRINGTON BOROUGH COUNCIL,http://opendatacommunities.org/id/unitary-authority/warrington ,FWB,Fostering Placements,30003,Fostering Accommodation,441050,04-Jan-18,1900278844,3440.00,Acorn House (Fostering Services) Li,116009
WARRINGTON BOROUGH COUNCIL,http://opendatacommunities.org/id/unitary-authority/warrington ,COR,Debt Management Expenses,62080,Consult.& Prof. Serv,440000,22-Jan-18,1900285763,3120.00,Addleshaw Goddard LLP,110285
WARRINGTON BOROUGH COUNCIL,http://opendatacommunities.org/id/unitary-authority/warrington ,RSC,Coroners Service,11100,Hire Of Mortuaries,220200,24-Jan-18,1900286369,1993.00,Alder Hey Childrens NHS Foundation,106199
WARRINGTON BOROUGH COUNCIL,http://opendatacommunities.org/id/unitary-authority/warrington ,RSC,Coroners Service,11100,Hire Of Mortuaries,220200,24-Jan-18,1900286369,1250.00,Alder Hey Childrens NHS Foundation,106199
WARRINGTON BOROUGH COUNCIL,http://opendatacommunities.org/id/unitary-authority/warrington ,FWB,Care Purchase South Team,54070,CP-Nursing Care-External,441200,10-Jan-18,1900281799,1808.00,Alexandra Care Home,100708
WARRINGTON BOROUGH COUNCIL,http://opendatacommunities.org/id/unitary-authority/warrington ,FWB,Care Purchase Budget,54490,Kennel Fees,440550,18-Jan-18,1900283992,510.00,ALL 4 Pets Ltd,104877
WARRINGTON BOROUGH COUNCIL,http://opendatacommunities.org/id/unitary-authority/warrington ,FWB,Care Purchase West Team,54080,CP-Domicil.External,440950,09-Jan-18,1900280582,1401.00,Allied Healthcare Group Ltd,100796
WARRINGTON BOROUGH COUNCIL,http://opendatacommunities.org/id/unitary-authority/warrington ,FWB,Care Purchase West Team,54080,CP-Domicil.External,440950,09-Jan-18,1900280583,1401.00,Allied Healthcare Group Ltd,100796
WARRINGTON BOROUGH COUNCIL,http://opendatacommunities.org/id/unitary-authority/warrington ,FWB,Care Purchase West Team,54080,CP-Domicil.External,440950,09-Jan-18,1900281088,1401.00,Allied Healthcare Group Ltd,100796
WARRINGTON BOROUGH COUNCIL,http://opendatacommunities.org/id/unitary-authority/warrington ,FWB,Care Purchase West Team,54080,CP-Domicil.External,440950,19-Jan-18,1900285672,1401.00,Allied Healthcare Group Ltd,100796
WARRINGTON BOROUGH COUNCIL,http://opendatacommunities.org/id/unitary-authority/warrington ,FWB,Care Purchase West Team,54080,CP-Domicil.External,440950,19-Jan-18,1900285673,1401.00,Allied Healthcare Group Ltd,100796
WARRINGTON BOROUGH COUNCIL,http://opendatacommunities.org/id/unitary-authority/warrington ,FWB,Care Purchase West Team,54080,CP-Domicil.External,440950,19-Jan-18,1900284749,1401.00,Allied Healthcare Group Ltd,100796
WARRINGTON BOROUGH COUNCIL,http://opendatacommunities.org/id/unitary-authority/warrington ,FWB,Fostering Placements,30003,Fostering Accommodation,441050,04-Jan-18,1900278784,3023.00,Alpha Plus Fostering Ltd,109098
WARRINGTON BOROUGH COUNCIL,http://opendatacommunities.org/id/unitary-authority/warrington ,FWB,Fostering Placements,30003,Fostering Accommodation,441050,04-Jan-18,1900278857,2872.00,Alpha Plus Fostering Ltd,109098
WARRINGTON BOROUGH COUNCIL,http://opendatacommunities.org/id/unitary-authority/warrington ,FWB,Fostering Placements,30003,Fostering Accommodation,441050,04-Jan-18,1900278859,2831.00,Alpha Plus Fostering Ltd,109098
WARRINGTON BOROUGH COUNCIL,http://opendatacommunities.org/id/unitary-authority/warrington ,FWB,Care Purchase South Team,54070,CP-Domicil.External,440950,02-Jan-18,1900278093,7715.00,Alternative Futures Group,104468
WARRINGTON BOROUGH COUNCIL,http://opendatacommunities.org/id/unitary-authority/warrington ,FWB,Care Purchase South Team,54070,CP-Domicil.External,440950,02-Jan-18,1900278092,1142.00,Alternative Futures Group,104468
WARRINGTON BOROUGH COUNCIL,http://opendatacommunities.org/id/unitary-authority/warrington ,FWB,Care Purchase East Team,54060,Supported Accommodation,440975,02-Jan-18,1900278095,2572.00,Alternative Futures Group,104468
WARRINGTON BOROUGH COUNCIL,http://opendatacommunities.org/id/unitary-authority/warrington ,FWB,Care Purchase East Team,54060,Supported Accommodation,440975,02-Jan-18,1900278096,2572.00,Alternative Futures Group,104468
WARRINGTON BOROUGH COUNCIL,http://opendatacommunities.org/id/unitary-authority/warrington ,FWB,Care Purchase East Team,54060,Supported Accommodation,440975,04-Jan-18,1900278763,3858.00,Alternative Futures Group,104468
WARRINGTON BOROUGH COUNCIL,http://opendatacommunities.org/id/unitary-authority/warrington ,FWB,Care Purchase South Team,54070,CP-Domicil.External,440950,25-Jan-18,1900286458,1142.00,Alternative Futures Group,104468
WARRINGTON BOROUGH COUNCIL,http://opendatacommunities.org/id/unitary-authority/warrington ,FWB,Care Purchase South Team,54070,CP-Domicil.External,440950,25-Jan-18,1900286459,7715.00,Alternative Futures Group,104468
WARRINGTON BOROUGH COUNCIL,http://opendatacommunities.org/id/unitary-authority/warrington ,FWB,Care Purchase East Team,54060,Supported Accommodation,440975,25-Jan-18,1900286461,2572.00,Alternative Futures Group,104468
WARRINGTON BOROUGH COUNCIL,http://opendatacommunities.org/id/unitary-authority/warrington ,FWB,Care Purchase East Team,54060,Supported Accommodation,440975,25-Jan-18,1900286465,2572.00,Alternative Futures Group,104468
WARRINGTON BOROUGH COUNCIL,http://opendatacommunities.org/id/unitary-authority/warrington ,FWB,Residential Placements,30102,Intermediate Care Expenditure,441310,04-Jan-18,1900278825,13916.00,Amberleigh Care Ltd,110844
WARRINGTON BOROUGH COUNCIL,http://opendatacommunities.org/id/unitary-authority/warrington ,FWB,Care Purchase East Team,54060,CP Residential EMI,441110,10-Jan-18,1900281990,1896.00,Ann Slade Care Home,116133
WARRINGTON BOROUGH COUNCIL,http://opendatacommunities.org/id/unitary-authority/warrington ,FWB,DSG Early Years PVI Settings,32417,Private & Voluntary 3 Year Olds,470100,22-Dec-17,1900277746,2318.00,Appleton Thorn Pre School,400111
WARRINGTON BOROUGH COUNCIL,http://opendatacommunities.org/id/unitary-authority/warrington ,FWB,DSG Early Years PVI Settings,32417,Private & Voluntary 4 Year Olds,470150,22-Dec-17,1900277864,756.00,Appleton Thorn Pre School,400111
WARRINGTON BOROUGH COUNCIL,http://opendatacommunities.org/id/unitary-authority/warrington ,COR,Debt Management Expenses,62080,Training,190150,22-Dec-17,1900277969,525.00,APSE,110706
WARRINGTON BOROUGH COUNCIL,http://opendatacommunities.org/id/unitary-authority/warrington ,ENO,Housing Projects,82008,Disabled Persons Grant 1996,554000,16-Jan-18,1900283814,2125.00,Archways Construction Ltd,116392
WARRINGTON BOROUGH COUNCIL,http://opendatacommunities.org/id/unitary-authority/warrington ,ENO,Housing Projects,82008,Disabled Persons Grant 1996,554000,18-Jan-18,1900283998,1583.00,Archways Construction Ltd,116392
WARRINGTON BOROUGH COUNCIL,http://opendatacommunities.org/id/unitary-authority/warrington ,FWB,Leaving Care Placements,31109,CP-LongStayExternal,441150,04-Jan-18,1900278779,1533.00,Arena Verve Place,109607
WARRINGTON BOROUGH COUNCIL,http://opendatacommunities.org/id/unitary-authority/warrington ,FWB,Care Purchase East Team,54060,CP-Nursing Care-External,441200,10-Jan-18,1900281742,2036.00,Ash Paddock Homes Ltd,115798
WARRINGTON BOROUGH COUNCIL,http://opendatacommunities.org/id/unitary-authority/warrington ,FWB,Care Purchase West Team,54080,CP-LongStayExternal,441150,10-Jan-18,1900281648,1940.00,Ashberry Healthcare,101061
WARRINGTON BOROUGH COUNCIL,http://opendatacommunities.org/id/unitary-authority/warrington ,FWB,Care Purchase West Team,54080,CP-LongStayExternal,441150,10-Jan-18,1900281676,1940.00,Ashberry Healthcare,101061
WARRINGTON BOROUGH COUNCIL,http://opendatacommunities.org/id/unitary-authority/warrington ,FWB,Care Purchase Central Team,54050,CP Residential EMI,441110,10-Jan-18,1900281729,2204.00,Ashberry Healthcare,101061
WARRINGTON BOROUGH COUNCIL,http://opendatacommunities.org/id/unitary-authority/warrington ,FWB,Care Purchase South Team,54070,CP Residential EMI,441110,10-Jan-18,1900281996,2204.00,Ashberry Healthcare,101061
WARRINGTON BOROUGH COUNCIL,http://opendatacommunities.org/id/unitary-authority/warrington ,FWB,Care Purchase West Team,54080,CP Residential EMI,441110,10-Jan-18,1900281731,2204.00,Ashberry Healthcare,101061
WARRINGTON BOROUGH COUNCIL,http://opendatacommunities.org/id/unitary-authority/warrington ,FWB,Care Purchase Central Team,54050,CP Residential EMI,441110,10-Jan-18,1900281678,2204.00,Ashberry Healthcare,101061
WARRINGTON BOROUGH COUNCIL,http://opendatacommunities.org/id/unitary-authority/warrington ,FWB,Care Purchase West Team,54080,CP Residential EMI,441110,10-Jan-18,1900281656,2204.00,Ashberry Healthcare,101061
WARRINGTON BOROUGH COUNCIL,http://opendatacommunities.org/id/unitary-authority/warrington ,FWB,Care Purchase West Team,54080,CP-LongStayExternal,441150,10-Jan-18,1900281685,1940.00,Ashberry Healthcare,101061
WARRINGTON BOROUGH COUNCIL,http://opendatacommunities.org/id/unitary-authority/warrington ,FWB,Care Purchase West Team,54080,CP Residential EMI,441110,10-Jan-18,1900281711,2204.00,Ashberry Healthcare,101061
WARRINGTON BOROUGH COUNCIL,http://opendatacommunities.org/id/unitary-authority/warrington ,FWB,Care Purchase East Team,54060,CP Residential EMI,441110,10-Jan-18,1900281928,2204.00,Ashberry Healthcare,101061
WARRINGTON BOROUGH COUNCIL,http://opendatacommunities.org/id/unitary-authority/warrington ,FWB,Care Purchase West Team,54080,CP Residential EMI,441110,10-Jan-18,1900281749,2204.00,Ashberry Healthcare,101061
WARRINGTON BOROUGH COUNCIL,http://opendatacommunities.org/id/unitary-authority/warrington ,FWB,Care Purchase West Team,54080,CP Residential EMI,441110,10-Jan-18,1900281813,2204.00,Ashberry Healthcare,101061
WARRINGTON BOROUGH COUNCIL,http://opendatacommunities.org/id/unitary-authority/warrington ,FWB,Care Purchase West Team,54080,CP Residential EMI,441110,10-Jan-18,1900281961,2204.00,Ashberry Healthcare,101061
WARRINGTON BOROUGH COUNCIL,http://opendatacommunities.org/id/unitary-authority/warrington ,FWB,Care Purchase West Team,54080,CP Residential EMI,441110,10-Jan-18,1900281757,2204.00,Ashberry Healthcare,101061
WARRINGTON BOROUGH COUNCIL,http://opendatacommunities.org/id/unitary-authority/warrington ,FWB,Care Purchase West Team,54080,CP Residential EMI,441110,10-Jan-18,1900281871,2204.00,Ashberry Healthcare,101061
WARRINGTON BOROUGH COUNCIL,http://opendatacommunities.org/id/unitary-authority/warrington ,FWB,Care Purchase West Team,54080,CP Residential EMI,441110,10-Jan-18,1900281793,2204.00,Ashberry Healthcare,101061
WARRINGTON BOROUGH COUNCIL,http://opendatacommunities.org/id/unitary-authority/warrington ,FWB,Care Purchase West Team,54080,CP-LongStayExternal,441150,10-Jan-18,1900281797,1940.00,Ashberry Healthcare,101061
WARRINGTON BOROUGH COUNCIL,http://opendatacommunities.org/id/unitary-authority/warrington ,FWB,Care Purchase West Team,54080,CP Residential EMI,441110,10-Jan-18,1900281876,2204.00,Ashberry Healthcare,101061
WARRINGTON BOROUGH COUNCIL,http://opendatacommunities.org/id/unitary-authority/warrington ,FWB,Care Purchase West Team,54080,CP Residential EMI,441110,10-Jan-18,1900281978,2204.00,Ashberry Healthcare,101061
WARRINGTON BOROUGH COUNCIL,http://opendatacommunities.org/id/unitary-authority/warrington ,FWB,Care Purchase West Team,54080,CP-Domicil.External,440950,19-Jan-18,1900284121,612.00,Hannahs Homecare Ltd,114443
WARRINGTON BOROUGH COUNCIL,http://opendatacommunities.org/id/unitary-authority/warrington ,FWB,Care Purchase West Team,54080,CP-Domicil.External,440950,19-Jan-18,1900284118,525.00,Hannahs Homecare Ltd,114443
WARRINGTON BOROUGH COUNCIL,http://opendatacommunities.org/id/unitary-authority/warrington ,FWB,Care Purchase West Team,54080,CP-Domicil.External,440950,19-Jan-18,1900284221,553.00,Hannahs Homecare Ltd,114443
WARRINGTON BOROUGH COUNCIL,http://opendatacommunities.org/id/unitary-authority/warrington ,FWB,Care Purchase West Team,54080,CP-Domicil.External,440950,19-Jan-18,1900284122,612.00,Hannahs Homecare Ltd,114443
WARRINGTON BOROUGH COUNCIL,http://opendatacommunities.org/id/unitary-authority/warrington ,FWB,Care Purchase West Team,54080,CP-Domicil.External,440950,19-Jan-18,1900284119,525.00,Hannahs Homecare Ltd,114443
WARRINGTON BOROUGH COUNCIL,http://opendatacommunities.org/id/unitary-authority/warrington ,FWB,Care Purchase West Team,54080,CP-Domicil.External,440950,19-Jan-18,1900284222,553.00,Hannahs Homecare Ltd,114443
WARRINGTON BOROUGH COUNCIL,http://opendatacommunities.org/id/unitary-authority/warrington ,FWB,Care Purchase East Team,54060,CP Nursing EMI,441105,10-Jan-18,1900281620,2260.00,Harbour Healthcare 1 Ltd,110527
WARRINGTON BOROUGH COUNCIL,http://opendatacommunities.org/id/unitary-authority/warrington ,FWB,Care Purchase West Team,54080,CP Residential EMI,441110,10-Jan-18,1900281568,2204.00,Harbour Healthcare 1 Ltd,110527
WARRINGTON BOROUGH COUNCIL,http://opendatacommunities.org/id/unitary-authority/warrington ,FWB,Care Purchase West Team,54080,CP-Nursing Care-External,441200,10-Jan-18,1900281642,2136.00,Harbour Healthcare 1 Ltd,110527
WARRINGTON BOROUGH COUNCIL,http://opendatacommunities.org/id/unitary-authority/warrington ,FWB,Care Purchase West Team,54080,CP Residential EMI,441110,10-Jan-18,1900281728,2204.00,Harbour Healthcare 1 Ltd,110527
WARRINGTON BOROUGH COUNCIL,http://opendatacommunities.org/id/unitary-authority/warrington ,FWB,Care Purchase West Team,54080,CP-LongStayExternal,441150,10-Jan-18,1900281736,1940.00,Harbour Healthcare 1 Ltd,110527
WARRINGTON BOROUGH COUNCIL,http://opendatacommunities.org/id/unitary-authority/warrington ,FWB,Care Purchase West Team,54080,CP-LongStayExternal,441150,10-Jan-18,1900281682,1940.00,Harbour Healthcare 1 Ltd,110527
WARRINGTON BOROUGH COUNCIL,http://opendatacommunities.org/id/unitary-authority/warrington ,FWB,Care Purchase West Team,54080,CP-Nursing Care-External,441200,10-Jan-18,1900281666,2136.00,Harbour Healthcare 1 Ltd,110527
WARRINGTON BOROUGH COUNCIL,http://opendatacommunities.org/id/unitary-authority/warrington ,FWB,Care Purchase West Team,54080,CP Nursing EMI,441105,10-Jan-18,1900281809,2260.00,Harbour Healthcare 1 Ltd,110527
WARRINGTON BOROUGH COUNCIL,http://opendatacommunities.org/id/unitary-authority/warrington ,FWB,Care Purchase Budget,54490,CP Free Nursing Care External,443500,10-Jan-18,1900281699,620.00,Harbour Healthcare 1 Ltd,110527
WARRINGTON BOROUGH COUNCIL,http://opendatacommunities.org/id/unitary-authority/warrington ,FWB,Care Purchase West Team,54080,CP-Nursing Care-External,441200,10-Jan-18,1900281756,2136.00,Harbour Healthcare 1 Ltd,110527
WARRINGTON BOROUGH COUNCIL,http://opendatacommunities.org/id/unitary-authority/warrington ,FWB,Care Purchase Budget,54490,CP Free Nursing Care External,443500,10-Jan-18,1900281782,620.00,Harbour Healthcare 1 Ltd,110527
WARRINGTON BOROUGH COUNCIL,http://opendatacommunities.org/id/unitary-authority/warrington ,FWB,Care Purchase East Team,54060,CP Nursing EMI,441105,10-Jan-18,1900281963,2260.00,Harbour Healthcare 1 Ltd,110527
WARRINGTON BOROUGH COUNCIL,http://opendatacommunities.org/id/unitary-authority/warrington ,FWB,Care Purchase West Team,54080,CP-Nursing Care-External,441200,10-Jan-18,1900281965,2136.00,Harbour Healthcare 1 Ltd,110527
WARRINGTON BOROUGH COUNCIL,http://opendatacommunities.org/id/unitary-authority/warrington ,FWB,Care Purchase West Team,54080,CP Nursing EMI,441105,10-Jan-18,1900281781,2880.00,Harbour Healthcare 1 Ltd,110527
WARRINGTON BOROUGH COUNCIL,http://opendatacommunities.org/id/unitary-authority/warrington ,FWB,Care Purchase West Team,54080,CP Nursing EMI,441105,10-Jan-18,1900281883,2260.00,Harbour Healthcare 1 Ltd,110527
WARRINGTON BOROUGH COUNCIL,http://opendatacommunities.org/id/unitary-authority/warrington ,FWB,Care Purchase West Team,54080,CP-LongStayExternal,441150,10-Jan-18,1900281986,1940.00,Harbour Healthcare 1 Ltd,110527
WARRINGTON BOROUGH COUNCIL,http://opendatacommunities.org/id/unitary-authority/warrington ,FWB,Care Purchase West Team,54080,CP Nursing EMI,441105,10-Jan-18,1900281837,2880.00,Harbour Healthcare 1 Ltd,110527
WARRINGTON BOROUGH COUNCIL,http://opendatacommunities.org/id/unitary-authority/warrington ,FWB,Care Purchase Budget,54490,CP Free Nursing Care External,443500,22-Jan-18,1900285780,620.00,Harbour Healthcare 1 Ltd,110527
WARRINGTON BOROUGH COUNCIL,http://opendatacommunities.org/id/unitary-authority/warrington ,FWB,Care Purchase Budget,54490,CP Free Nursing Care External,443500,25-Jan-18,1900286429,620.00,Harbour Healthcare 1 Ltd,110527
WARRINGTON BOROUGH COUNCIL,http://opendatacommunities.org/id/unitary-authority/warrington ,FWB,Care Purchase East Team,54060,CP-Nursing Care-External,441200,10-Jan-18,1900281674,1596.00,HC One - Carrington Court,115063
WARRINGTON BOROUGH COUNCIL,http://opendatacommunities.org/id/unitary-authority/warrington ,FWB,Care Purchase East Team,54060,CP-Nursing Care-External,441200,10-Jan-18,1900281697,1872.00,HC One (Beechcroft Nursing Home),114145
WARRINGTON BOROUGH COUNCIL,http://opendatacommunities.org/id/unitary-authority/warrington ,FWB,Care Purchase Central Team,54050,CP Residential EMI,441110,10-Jan-18,1900281572,1842.00,HC One (Hulton Care Nursing Home),115141
WARRINGTON BOROUGH COUNCIL,http://opendatacommunities.org/id/unitary-authority/warrington ,FWB,Care Purchase Central Team,54050,CP-Nursing Care-External,441200,10-Jan-18,1900281589,1673.00,HC One Ferndale Court,110394
WARRINGTON BOROUGH COUNCIL,http://opendatacommunities.org/id/unitary-authority/warrington ,FWB,Care Purchase - Hospital Discharge Team,54280,CP-Nursing Care-External,441200,10-Jan-18,1900282593,2136.00,HC-One Limited Callands,109640
WARRINGTON BOROUGH COUNCIL,http://opendatacommunities.org/id/unitary-authority/warrington ,FWB,Care Purchase East Team,54060,CP-LongStayExternal,441150,10-Jan-18,1900282116,2204.00,HC-One Limited Callands,109640
WARRINGTON BOROUGH COUNCIL,http://opendatacommunities.org/id/unitary-authority/warrington ,FWB,Care Purchase West Team,54080,CP-Nursing Care-External,441200,10-Jan-18,1900282063,2136.00,HC-One Limited Callands,109640
WARRINGTON BOROUGH COUNCIL,http://opendatacommunities.org/id/unitary-authority/warrington ,FWB,Care Purchase Budget,54490,CP Free Nursing Care External,443500,10-Jan-18,1900282035,620.00,HC-One Limited Callands,109640
WARRINGTON BOROUGH COUNCIL,http://opendatacommunities.org/id/unitary-authority/warrington ,FWB,Care Purchase South Team,54070,CP-Nursing Care-External,441200,10-Jan-18,1900282057,2136.00,HC-One Limited Callands,109640
WARRINGTON BOROUGH COUNCIL,http://opendatacommunities.org/id/unitary-authority/warrington ,FWB,Care Purchase Budget,54490,CP Free Nursing Care External,443500,10-Jan-18,1900282085,620.00,HC-One Limited Callands,109640
WARRINGTON BOROUGH COUNCIL,http://opendatacommunities.org/id/unitary-authority/warrington ,FWB,Care Purchase West Team,54080,CP-Nursing Care-External,441200,10-Jan-18,1900282095,2136.00,HC-One Limited Callands,109640
WARRINGTON BOROUGH COUNCIL,http://opendatacommunities.org/id/unitary-authority/warrington ,FWB,Care Purchase Budget,54490,CP Free Nursing Care External,443500,10-Jan-18,1900282070,620.00,HC-One Limited Callands,109640
WARRINGTON BOROUGH COUNCIL,http://opendatacommunities.org/id/unitary-authority/warrington ,FWB,Care Purchase Central Team,54050,CP-Nursing Care-External,441200,10-Jan-18,1900282124,2136.00,HC-One Limited Callands,109640
WARRINGTON BOROUGH COUNCIL,http://opendatacommunities.org/id/unitary-authority/warrington ,FWB,Care Purchase Budget,54490,CP Free Nursing Care External,443500,10-Jan-18,1900282099,620.00,HC-One Limited Callands,109640
WARRINGTON BOROUGH COUNCIL,http://opendatacommunities.org/id/unitary-authority/warrington ,FWB,Care Purchase West Team,54080,CP Nursing EMI,441105,10-Jan-18,1900282046,2260.00,HC-One Limited Callands,109640
WARRINGTON BOROUGH COUNCIL,http://opendatacommunities.org/id/unitary-authority/warrington ,FWB,Care Purchase Budget,54490,CP Free Nursing Care External,443500,10-Jan-18,1900282047,620.00,HC-One Limited Callands,109640
WARRINGTON BOROUGH COUNCIL,http://opendatacommunities.org/id/unitary-authority/warrington ,FWB,Care Purchase West Team,54080,CP-Nursing Care-External,441200,10-Jan-18,1900282128,2136.00,HC-One Limited Callands,109640
WARRINGTON BOROUGH COUNCIL,http://opendatacommunities.org/id/unitary-authority/warrington ,FWB,Care Purchase Budget,54490,CP Free Nursing Care External,443500,10-Jan-18,1900282103,620.00,HC-One Limited Callands,109640
WARRINGTON BOROUGH COUNCIL,http://opendatacommunities.org/id/unitary-authority/warrington ,FWB,Care Purchase East Team,54060,CP Residential EMI,441110,10-Jan-18,1900282129,2204.00,HC-One Limited Callands,109640
WARRINGTON BOROUGH COUNCIL,http://opendatacommunities.org/id/unitary-authority/warrington ,FWB,Care Purchase West Team,54080,CP Nursing EMI,441105,10-Jan-18,1900282106,2260.00,HC-One Limited Callands,109640
WARRINGTON BOROUGH COUNCIL,http://opendatacommunities.org/id/unitary-authority/warrington ,FWB,Care Purchase Budget,54490,CP Free Nursing Care External,443500,10-Jan-18,1900282107,620.00,HC-One Limited Callands,109640
WARRINGTON BOROUGH COUNCIL,http://opendatacommunities.org/id/unitary-authority/warrington ,FWB,Care Purchase West Team,54080,CP Nursing EMI,441105,10-Jan-18,1900282109,2260.00,HC-One Limited Callands,109640
WARRINGTON BOROUGH COUNCIL,http://opendatacommunities.org/id/unitary-authority/warrington ,FWB,Care Purchase Budget,54490,CP Free Nursing Care External,443500,10-Jan-18,1900282055,620.00,HC-One Limited Callands,109640
WARRINGTON BOROUGH COUNCIL,http://opendatacommunities.org/id/unitary-authority/warrington ,FWB,Care Purchase South Team,54070,CP-Nursing Care-External,441200,10-Jan-18,1900282168,2136.00,HC-One Limited Callands,109640
WARRINGTON BOROUGH COUNCIL,http://opendatacommunities.org/id/unitary-authority/warrington ,FWB,Care Purchase Budget,54490,CP Free Nursing Care External,443500,10-Jan-18,1900282201,620.00,HC-One Limited Callands,109640
WARRINGTON BOROUGH COUNCIL,http://opendatacommunities.org/id/unitary-authority/warrington ,FWB,Care Purchase West Team,54080,CP-Nursing Care-External,441200,10-Jan-18,1900282169,2396.00,HC-One Limited Callands,109640
WARRINGTON BOROUGH COUNCIL,http://opendatacommunities.org/id/unitary-authority/warrington ,FWB,Care Purchase Budget,54490,CP Free Nursing Care External,443500,10-Jan-18,1900282136,620.00,HC-One Limited Callands,109640
WARRINGTON BOROUGH COUNCIL,http://opendatacommunities.org/id/unitary-authority/warrington ,FWB,Care Purchase Central Team,54050,CP-Nursing Care-External,441200,10-Jan-18,1900282591,2136.00,HC-One Limited Callands,109640
WARRINGTON BOROUGH COUNCIL,http://opendatacommunities.org/id/unitary-authority/warrington ,FWB,Care Purchase Budget,54490,CP Free Nursing Care External,443500,10-Jan-18,1900282516,620.00,HC-One Limited Callands,109640
WARRINGTON BOROUGH COUNCIL,http://opendatacommunities.org/id/unitary-authority/warrington ,FWB,Care Purchase West Team,54080,CP-Nursing Care-External,441200,10-Jan-18,1900282600,2136.00,HC-One Limited Callands,109640
WARRINGTON BOROUGH COUNCIL,http://opendatacommunities.org/id/unitary-authority/warrington ,FWB,Care Purchase Budget,54490,CP Free Nursing Care External,443500,10-Jan-18,1900282601,620.00,HC-One Limited Callands,109640
WARRINGTON BOROUGH COUNCIL,http://opendatacommunities.org/id/unitary-authority/warrington ,FWB,Care Purchase West Team,54080,CP Nursing EMI,441105,10-Jan-18,1900282211,2260.00,HC-One Limited Callands,109640
WARRINGTON BOROUGH COUNCIL,http://opendatacommunities.org/id/unitary-authority/warrington ,FWB,Care Purchase Budget,54490,CP Free Nursing Care External,443500,10-Jan-18,1900282142,620.00,HC-One Limited Callands,109640
WARRINGTON BOROUGH COUNCIL,http://opendatacommunities.org/id/unitary-authority/warrington ,FWB,Care Purchase West Team,54080,CP-Nursing Care-External,441200,10-Jan-18,1900282180,2136.00,HC-One Limited Callands,109640
WARRINGTON BOROUGH COUNCIL,http://opendatacommunities.org/id/unitary-authority/warrington ,FWB,Care Purchase Budget,54490,CP Free Nursing Care External,443500,10-Jan-18,1900282181,620.00,HC-One Limited Callands,109640
WARRINGTON BOROUGH COUNCIL,http://opendatacommunities.org/id/unitary-authority/warrington ,FWB,Care Purchase West Team,54080,CP-Nursing Care-External,441200,10-Jan-18,1900282148,2136.00,HC-One Limited Callands,109640
WARRINGTON BOROUGH COUNCIL,http://opendatacommunities.org/id/unitary-authority/warrington ,FWB,Care Purchase Budget,54490,CP Free Nursing Care External,443500,10-Jan-18,1900282219,620.00,HC-One Limited Callands,109640
WARRINGTON BOROUGH COUNCIL,http://opendatacommunities.org/id/unitary-authority/warrington ,FWB,Care Purchase East Team,54060,CP-Nursing Care-External,441200,10-Jan-18,1900282598,2136.00,HC-One Limited Callands,109640
WARRINGTON BOROUGH COUNCIL,http://opendatacommunities.org/id/unitary-authority/warrington ,FWB,Care Purchase Budget,54490,CP Free Nursing Care External,443500,10-Jan-18,1900282521,620.00,HC-One Limited Callands,109640
WARRINGTON BOROUGH COUNCIL,http://opendatacommunities.org/id/unitary-authority/warrington ,FWB,Care Purchase West Team,54080,CP Residential EMI,441110,10-Jan-18,1900282484,1172.00,HC-One Limited Callands,109640
WARRINGTON BOROUGH COUNCIL,http://opendatacommunities.org/id/unitary-authority/warrington ,FWB,Care Purchase East Team,54060,CP-Nursing Care-External,441200,10-Jan-18,1900282507,2136.00,HC-One Limited Callands,109640
WARRINGTON BOROUGH COUNCIL,http://opendatacommunities.org/id/unitary-authority/warrington ,FWB,Care Purchase Budget,54490,CP Free Nursing Care External,443500,10-Jan-18,1900282513,620.00,HC-One Limited Callands,109640
WARRINGTON BOROUGH COUNCIL,http://opendatacommunities.org/id/unitary-authority/warrington ,FWB,Care Purchase East Team,54060,CP-Nursing Care-External,441200,10-Jan-18,1900282155,2136.00,HC-One Limited Callands,109640
WARRINGTON BOROUGH COUNCIL,http://opendatacommunities.org/id/unitary-authority/warrington ,FWB,Care Purchase Budget,54490,CP Free Nursing Care External,443500,10-Jan-18,1900282226,620.00,HC-One Limited Callands,109640
WARRINGTON BOROUGH COUNCIL,http://opendatacommunities.org/id/unitary-authority/warrington ,FWB,Care Purchase West Team,54080,CP Nursing EMI,441105,10-Jan-18,1900282428,2260.00,HC-One Limited Callands,109640
WARRINGTON BOROUGH COUNCIL,http://opendatacommunities.org/id/unitary-authority/warrington ,FWB,Care Purchase Budget,54490,CP Free Nursing Care External,443500,10-Jan-18,1900282509,620.00,HC-One Limited Callands,109640
WARRINGTON BOROUGH COUNCIL,http://opendatacommunities.org/id/unitary-authority/warrington ,FWB,Care Purchase West Team,54080,CP-Nursing Care-External,441200,10-Jan-18,1900282249,2136.00,HC-One Limited Callands,109640
WARRINGTON BOROUGH COUNCIL,http://opendatacommunities.org/id/unitary-authority/warrington ,FWB,Care Purchase Budget,54490,CP Free Nursing Care External,443500,10-Jan-18,1900282157,620.00,HC-One Limited Callands,109640
WARRINGTON BOROUGH COUNCIL,http://opendatacommunities.org/id/unitary-authority/warrington ,FWB,Care Purchase West Team,54080,CP Nursing EMI,441105,10-Jan-18,1900282329,2260.00,HC-One Limited Callands,109640
WARRINGTON BOROUGH COUNCIL,http://opendatacommunities.org/id/unitary-authority/warrington ,FWB,Care Purchase Budget,54490,CP Free Nursing Care External,443500,10-Jan-18,1900282159,620.00,HC-One Limited Callands,109640
WARRINGTON BOROUGH COUNCIL,http://opendatacommunities.org/id/unitary-authority/warrington ,FWB,Care Purchase West Team,54080,CP Nursing EMI,441105,10-Jan-18,1900282606,2260.00,HC-One Limited Callands,109640
WARRINGTON BOROUGH COUNCIL,http://opendatacommunities.org/id/unitary-authority/warrington ,FWB,Care Purchase Budget,54490,CP Free Nursing Care External,443500,10-Jan-18,1900282605,620.00,HC-One Limited Callands,109640
WARRINGTON BOROUGH COUNCIL,http://opendatacommunities.org/id/unitary-authority/warrington ,FWB,Care Purchase West Team,54080,CP-LongStayExternal,441150,10-Jan-18,1900282164,1940.00,HC-One Limited Callands,109640
WARRINGTON BOROUGH COUNCIL,http://opendatacommunities.org/id/unitary-authority/warrington ,FWB,Care Purchase West Team,54080,CP Nursing EMI,441105,10-Jan-18,1900282255,2260.00,HC-One Limited Callands,109640
WARRINGTON BOROUGH COUNCIL,http://opendatacommunities.org/id/unitary-authority/warrington ,FWB,Care Purchase Budget,54490,CP Free Nursing Care External,443500,10-Jan-18,1900282256,620.00,HC-One Limited Callands,109640
WARRINGTON BOROUGH COUNCIL,http://opendatacommunities.org/id/unitary-authority/warrington ,FWB,Care Purchase West Team,54080,CP Residential EMI,441110,10-Jan-18,1900281864,2204.00,Ashberry Healthcare,101061
WARRINGTON BOROUGH COUNCIL,http://opendatacommunities.org/id/unitary-authority/warrington ,FWB,Care Purchase West Team,54080,CP Residential EMI,441110,10-Jan-18,1900281979,2204.00,Ashberry Healthcare,101061
WARRINGTON BOROUGH COUNCIL,http://opendatacommunities.org/id/unitary-authority/warrington ,FWB,Care Purchase West Team,54080,CP Residential EMI,441110,10-Jan-18,1900281802,2204.00,Ashberry Healthcare,101061
WARRINGTON BOROUGH COUNCIL,http://opendatacommunities.org/id/unitary-authority/warrington ,FWB,Care Purchase West Team,54080,CP Residential EMI,441110,10-Jan-18,1900281885,2204.00,Ashberry Healthcare,101061
WARRINGTON BOROUGH COUNCIL,http://opendatacommunities.org/id/unitary-authority/warrington ,FWB,Care Purchase East Team,54060,CP-Nursing Care-External,441200,10-Jan-18,1900282089,2136.00,Ashberry Healthcare Ltd,104776
WARRINGTON BOROUGH COUNCIL,http://opendatacommunities.org/id/unitary-authority/warrington ,FWB,Care Purchase Budget,54490,CP Free Nursing Care External,443500,10-Jan-18,1900282377,620.00,Ashberry Healthcare Ltd,104776
WARRINGTON BOROUGH COUNCIL,http://opendatacommunities.org/id/unitary-authority/warrington ,FWB,Care Purchase Central Team,54050,CP-LongStayExternal,441150,10-Jan-18,1900282058,1940.00,Ashberry Healthcare Ltd,104776
WARRINGTON BOROUGH COUNCIL,http://opendatacommunities.org/id/unitary-authority/warrington ,FWB,Care Purchase East Team,54060,CP-Nursing Care-External,441200,10-Jan-18,1900282072,2136.00,Ashberry Healthcare Ltd,104776
WARRINGTON BOROUGH COUNCIL,http://opendatacommunities.org/id/unitary-authority/warrington ,FWB,Care Purchase Budget,54490,CP Free Nursing Care External,443500,10-Jan-18,1900282073,620.00,Ashberry Healthcare Ltd,104776
WARRINGTON BOROUGH COUNCIL,http://opendatacommunities.org/id/unitary-authority/warrington ,FWB,Care Purchase East Team,54060,CP Residential EMI,441110,10-Jan-18,1900282125,2204.00,Ashberry Healthcare Ltd,104776
WARRINGTON BOROUGH COUNCIL,http://opendatacommunities.org/id/unitary-authority/warrington ,FWB,Care Purchase East Team,54060,CP Residential EMI,441110,10-Jan-18,1900282102,2204.00,Ashberry Healthcare Ltd,104776
WARRINGTON BOROUGH COUNCIL,http://opendatacommunities.org/id/unitary-authority/warrington ,FWB,Care Purchase East Team,54060,CP-LongStayExternal,441150,10-Jan-18,1900282078,1940.00,Ashberry Healthcare Ltd,104776
WARRINGTON BOROUGH COUNCIL,http://opendatacommunities.org/id/unitary-authority/warrington ,FWB,Care Purchase East Team,54060,CP-LongStayExternal,441150,10-Jan-18,1900282054,1940.00,Ashberry Healthcare Ltd,104776
WARRINGTON BOROUGH COUNCIL,http://opendatacommunities.org/id/unitary-authority/warrington ,FWB,Care Purchase East Team,54060,CP Residential EMI,441110,10-Jan-18,1900282596,2204.00,Ashberry Healthcare Ltd,104776
WARRINGTON BOROUGH COUNCIL,http://opendatacommunities.org/id/unitary-authority/warrington ,FWB,Care Purchase East Team,54060,CP-Nursing Care-External,441200,10-Jan-18,1900282508,2396.00,Ashberry Healthcare Ltd,104776
WARRINGTON BOROUGH COUNCIL,http://opendatacommunities.org/id/unitary-authority/warrington ,FWB,Care Purchase Budget,54490,CP Free Nursing Care External,443500,10-Jan-18,1900282465,620.00,Ashberry Healthcare Ltd,104776
WARRINGTON BOROUGH COUNCIL,http://opendatacommunities.org/id/unitary-authority/warrington ,FWB,Care Purchase East Team,54060,CP-LongStayExternal,441150,10-Jan-18,1900282084,955.00,Ashberry Healthcare Ltd,104776
WARRINGTON BOROUGH COUNCIL,http://opendatacommunities.org/id/unitary-authority/warrington ,FWB,Care Purchase East Team,54060,CP-Nursing Care-External,441200,10-Jan-18,1900282170,2356.00,Ashberry Healthcare Ltd,104776
WARRINGTON BOROUGH COUNCIL,http://opendatacommunities.org/id/unitary-authority/warrington ,FWB,Care Purchase Budget,54490,CP Free Nursing Care External,443500,10-Jan-18,1900282418,620.00,Ashberry Healthcare Ltd,104776
WARRINGTON BOROUGH COUNCIL,http://opendatacommunities.org/id/unitary-authority/warrington ,FWB,Care Purchase East Team,54060,CP Residential EMI,441110,10-Jan-18,1900282232,2204.00,Ashberry Healthcare Ltd,104776
WARRINGTON BOROUGH COUNCIL,http://opendatacommunities.org/id/unitary-authority/warrington ,FWB,Care Purchase Central Team,54050,CP-Nursing Care-External,441200,10-Jan-18,1900282029,2136.00,Ashberry Healthcare Ltd,104776
WARRINGTON BOROUGH COUNCIL,http://opendatacommunities.org/id/unitary-authority/warrington ,FWB,Care Purchase Budget,54490,CP Free Nursing Care External,443500,10-Jan-18,1900282459,620.00,Ashberry Healthcare Ltd,104776
WARRINGTON BOROUGH COUNCIL,http://opendatacommunities.org/id/unitary-authority/warrington ,FWB,Care Purchase East Team,54060,CP Residential EMI,441110,10-Jan-18,1900282176,2204.00,Ashberry Healthcare Ltd,104776
WARRINGTON BOROUGH COUNCIL,http://opendatacommunities.org/id/unitary-authority/warrington ,FWB,Care Purchase Central Team,54050,CP-Nursing Care-External,441200,10-Jan-18,1900282477,5382.00,Ashberry Healthcare Ltd,104776
WARRINGTON BOROUGH COUNCIL,http://opendatacommunities.org/id/unitary-authority/warrington ,FWB,Care Purchase Budget,54490,CP Free Nursing Care External,443500,10-Jan-18,1900282501,1395.00,Ashberry Healthcare Ltd,104776
WARRINGTON BOROUGH COUNCIL,http://opendatacommunities.org/id/unitary-authority/warrington ,FWB,Care Purchase East Team,54060,CP-LongStayExternal,441150,10-Jan-18,1900282147,1940.00,Ashberry Healthcare Ltd,104776
WARRINGTON BOROUGH COUNCIL,http://opendatacommunities.org/id/unitary-authority/warrington ,FWB,Care Purchase East Team,54060,CP Residential EMI,441110,10-Jan-18,1900282244,2204.00,Ashberry Healthcare Ltd,104776
WARRINGTON BOROUGH COUNCIL,http://opendatacommunities.org/id/unitary-authority/warrington ,FWB,Care Purchase East Team,54060,CP Residential EMI,441110,10-Jan-18,1900282151,2204.00,Ashberry Healthcare Ltd,104776
WARRINGTON BOROUGH COUNCIL,http://opendatacommunities.org/id/unitary-authority/warrington ,FWB,Care Purchase East Team,54060,CP-LongStayExternal,441150,10-Jan-18,1900282152,1940.00,Ashberry Healthcare Ltd,104776
WARRINGTON BOROUGH COUNCIL,http://opendatacommunities.org/id/unitary-authority/warrington ,FWB,Care Purchase East Team,54060,CP Residential EMI,441110,10-Jan-18,1900282183,2204.00,Ashberry Healthcare Ltd,104776
WARRINGTON BOROUGH COUNCIL,http://opendatacommunities.org/id/unitary-authority/warrington ,FWB,Care Purchase East Team,54060,CP-LongStayExternal,441150,10-Jan-18,1900282481,5119.00,Ashberry Healthcare Ltd,104776
WARRINGTON BOROUGH COUNCIL,http://opendatacommunities.org/id/unitary-authority/warrington ,FWB,Care Purchase East Team,54060,CP Residential EMI,441110,10-Jan-18,1900282328,2204.00,Ashberry Healthcare Ltd,104776
WARRINGTON BOROUGH COUNCIL,http://opendatacommunities.org/id/unitary-authority/warrington ,FWB,Care Purchase East Team,54060,CP-LongStayExternal,441150,10-Jan-18,1900282466,1940.00,Ashberry Healthcare Ltd,104776
WARRINGTON BOROUGH COUNCIL,http://opendatacommunities.org/id/unitary-authority/warrington ,FWB,Care Purchase East Team,54060,CP-LongStayExternal,441150,10-Jan-18,1900282253,1940.00,Ashberry Healthcare Ltd,104776
WARRINGTON BOROUGH COUNCIL,http://opendatacommunities.org/id/unitary-authority/warrington ,FWB,Care Purchase East Team,54060,CP Residential EMI,441110,10-Jan-18,1900282263,2204.00,Ashberry Healthcare Ltd,104776
WARRINGTON BOROUGH COUNCIL,http://opendatacommunities.org/id/unitary-authority/warrington ,FWB,Care Purchase East Team,54060,CP-Nursing Care-External,441200,10-Jan-18,1900282344,2136.00,Ashberry Healthcare Ltd,104776
WARRINGTON BOROUGH COUNCIL,http://opendatacommunities.org/id/unitary-authority/warrington ,FWB,Care Purchase Budget,54490,CP Free Nursing Care External,443500,10-Jan-18,1900282345,620.00,Ashberry Healthcare Ltd,104776
WARRINGTON BOROUGH COUNCIL,http://opendatacommunities.org/id/unitary-authority/warrington ,FWB,Care Purchase East Team,54060,CP Nursing EMI,441105,10-Jan-18,1900282289,2260.00,Ashberry Healthcare Ltd,104776
WARRINGTON BOROUGH COUNCIL,http://opendatacommunities.org/id/unitary-authority/warrington ,FWB,Care Purchase Budget,54490,CP Free Nursing Care External,443500,10-Jan-18,1900282290,620.00,Ashberry Healthcare Ltd,104776
WARRINGTON BOROUGH COUNCIL,http://opendatacommunities.org/id/unitary-authority/warrington ,FWB,Care Purchase East Team,54060,CP-LongStayExternal,441150,10-Jan-18,1900282295,1940.00,Ashberry Healthcare Ltd,104776
WARRINGTON BOROUGH COUNCIL,http://opendatacommunities.org/id/unitary-authority/warrington ,FWB,Care Purchase East Team,54060,CP Residential EMI,441110,10-Jan-18,1900282296,2204.00,Ashberry Healthcare Ltd,104776
WARRINGTON BOROUGH COUNCIL,http://opendatacommunities.org/id/unitary-authority/warrington ,FWB,Care Purchase East Team,54060,CP-LongStayExternal,441150,10-Jan-18,1900282538,1940.00,Ashberry Healthcare Ltd,104776
WARRINGTON BOROUGH COUNCIL,http://opendatacommunities.org/id/unitary-authority/warrington ,FWB,Care Purchase East Team,54060,CP Nursing EMI,441105,10-Jan-18,1900282354,2260.00,Ashberry Healthcare Ltd,104776
WARRINGTON BOROUGH COUNCIL,http://opendatacommunities.org/id/unitary-authority/warrington ,FWB,Care Purchase Budget,54490,CP Free Nursing Care External,443500,10-Jan-18,1900282540,620.00,Ashberry Healthcare Ltd,104776
WARRINGTON BOROUGH COUNCIL,http://opendatacommunities.org/id/unitary-authority/warrington ,FWB,Care Purchase East Team,54060,CP Residential EMI,441110,10-Jan-18,1900282380,2204.00,Ashberry Healthcare Ltd,104776
WARRINGTON BOROUGH COUNCIL,http://opendatacommunities.org/id/unitary-authority/warrington ,FWB,Care Purchase East Team,54060,CP Residential EMI,441110,10-Jan-18,1900282358,2204.00,Ashberry Healthcare Ltd,104776
WARRINGTON BOROUGH COUNCIL,http://opendatacommunities.org/id/unitary-authority/warrington ,FWB,Care Purchase East Team,54060,CP-Nursing Care-External,441200,10-Jan-18,1900282310,2136.00,Ashberry Healthcare Ltd,104776
WARRINGTON BOROUGH COUNCIL,http://opendatacommunities.org/id/unitary-authority/warrington ,FWB,Care Purchase Budget,54490,CP Free Nursing Care External,443500,10-Jan-18,1900282311,620.00,Ashberry Healthcare Ltd,104776
WARRINGTON BOROUGH COUNCIL,http://opendatacommunities.org/id/unitary-authority/warrington ,FWB,Care Purchase South Team,54070,CP Nursing EMI,441105,10-Jan-18,1900282547,2880.00,Ashberry Healthcare Ltd,104776
WARRINGTON BOROUGH COUNCIL,http://opendatacommunities.org/id/unitary-authority/warrington ,FWB,Care Purchase West Team,54080,CP Nursing EMI,441105,10-Jan-18,1900282320,2260.00,Ashberry Healthcare Ltd,104776
WARRINGTON BOROUGH COUNCIL,http://opendatacommunities.org/id/unitary-authority/warrington ,FWB,Care Purchase Budget,54490,CP Free Nursing Care External,443500,10-Jan-18,1900282321,620.00,Ashberry Healthcare Ltd,104776
WARRINGTON BOROUGH COUNCIL,http://opendatacommunities.org/id/unitary-authority/warrington ,FWB,Care Purchase East Team,54060,CP-LongStayExternal,441150,10-Jan-18,1900282554,1940.00,Ashberry Healthcare Ltd,104776
WARRINGTON BOROUGH COUNCIL,http://opendatacommunities.org/id/unitary-authority/warrington ,FWB,Care Purchase East Team,54060,CP Residential EMI,441110,10-Jan-18,1900282360,2204.00,Ashberry Healthcare Ltd,104776
WARRINGTON BOROUGH COUNCIL,http://opendatacommunities.org/id/unitary-authority/warrington ,FWB,Care Purchase Central Team,54050,CP Nursing EMI,441105,10-Jan-18,1900282423,2260.00,Ashberry Healthcare Ltd,104776
WARRINGTON BOROUGH COUNCIL,http://opendatacommunities.org/id/unitary-authority/warrington ,FWB,Care Purchase Budget,54490,CP Free Nursing Care External,443500,10-Jan-18,1900282424,620.00,Ashberry Healthcare Ltd,104776
WARRINGTON BOROUGH COUNCIL,http://opendatacommunities.org/id/unitary-authority/warrington ,FWB,Care Purchase East Team,54060,CP-LongStayExternal,441150,10-Jan-18,1900282087,1940.00,Ashberry Healthcare Ltd,104776
WARRINGTON BOROUGH COUNCIL,http://opendatacommunities.org/id/unitary-authority/warrington ,FWB,Care Purchase Budget,54490,CP Free Nursing Care External,443500,22-Jan-18,1900285775,7088.00,Ashberry Healthcare Ltd,104776
WARRINGTON BOROUGH COUNCIL,http://opendatacommunities.org/id/unitary-authority/warrington ,FWB,Care Purchase Budget,54490,CP Free Nursing Care External,443500,22-Jan-18,1900285773,5272.00,Ashberry Healthcare Ltd,104776
WARRINGTON BOROUGH COUNCIL,http://opendatacommunities.org/id/unitary-authority/warrington ,FWB,Care Purchase South Team,54070,CP-LongStayExternal,441150,10-Jan-18,1900281807,2298.00,Ashley House Residential Home,103045
WARRINGTON BOROUGH COUNCIL,http://opendatacommunities.org/id/unitary-authority/warrington ,FWB,Care Purchase West Team,54080,CP-Domicil.External,440950,23-Jan-18,1900285988,8288.00,Aspirations Care Limited,113707
WARRINGTON BOROUGH COUNCIL,http://opendatacommunities.org/id/unitary-authority/warrington ,FWB,Care Purchase West Team,54080,CP-Domicil.External,440950,26-Jan-18,1900286817,8288.00,Aspirations Care Limited,113707
WARRINGTON BOROUGH COUNCIL,http://opendatacommunities.org/id/unitary-authority/warrington ,FWB,Care Purchase South Team,54070,CP-Domicil.External,440950,11-Jan-18,1900282628,30008.00,Autism Care UK Ltd,115964
WARRINGTON BOROUGH COUNCIL,http://opendatacommunities.org/id/unitary-authority/warrington ,FWB,Care Purchase Central Team,54050,CP-LongStayExternal,441150,10-Jan-18,1900281628,9588.00,Autism Care UK North West Ltd,116043
WARRINGTON BOROUGH COUNCIL,http://opendatacommunities.org/id/unitary-authority/warrington ,FWB,Care Purchase West Team,54080,CP-Domicil.External,440950,26-Jan-18,1900286821,765.00,Autism Initiatives,104503
WARRINGTON BOROUGH COUNCIL,http://opendatacommunities.org/id/unitary-authority/warrington ,FWB,Care Purchase West Team,54080,CP-Domicil.External,440950,26-Jan-18,1900286822,966.00,Autism Initiatives,104503
WARRINGTON BOROUGH COUNCIL,http://opendatacommunities.org/id/unitary-authority/warrington ,FWB,Care Purchase West Team,54080,CP-Domicil.External,440950,26-Jan-18,1900286824,1074.00,Autism Initiatives,104503
WARRINGTON BOROUGH COUNCIL,http://opendatacommunities.org/id/unitary-authority/warrington ,FWB,Care Purchase Central Team,54050,CP-Day Care-External,441100,09-Jan-18,1900279532,2638.00,Autism Initiatives,104503
WARRINGTON BOROUGH COUNCIL,http://opendatacommunities.org/id/unitary-authority/warrington ,FWB,Care Purchase West Team,54080,CP-Day Care-External,441100,09-Jan-18,1900279523,2638.00,Autism Initiatives,104503
WARRINGTON BOROUGH COUNCIL,http://opendatacommunities.org/id/unitary-authority/warrington ,FWB,Care Purchase West Team,54080,CP-Day Care-External,441100,09-Jan-18,1900279527,1552.00,Autism Initiatives,104503
WARRINGTON BOROUGH COUNCIL,http://opendatacommunities.org/id/unitary-authority/warrington ,FWB,Care Purchase West Team,54080,CP-Domicil.External,440950,09-Jan-18,1900279526,7120.00,Autism Initiatives,104503
WARRINGTON BOROUGH COUNCIL,http://opendatacommunities.org/id/unitary-authority/warrington ,FWB,Care Purchase West Team,54080,CP-Nursing Care-External,441200,10-Jan-18,1900282337,2756.00,HC-One Limited Callands,109640
WARRINGTON BOROUGH COUNCIL,http://opendatacommunities.org/id/unitary-authority/warrington ,FWB,Care Purchase West Team,54080,CP Nursing EMI,441105,10-Jan-18,1900282580,2260.00,HC-One Limited Callands,109640
WARRINGTON BOROUGH COUNCIL,http://opendatacommunities.org/id/unitary-authority/warrington ,FWB,Care Purchase Budget,54490,CP Free Nursing Care External,443500,10-Jan-18,1900282195,620.00,HC-One Limited Callands,109640
WARRINGTON BOROUGH COUNCIL,http://opendatacommunities.org/id/unitary-authority/warrington ,FWB,Care Purchase West Team,54080,CP-Nursing Care-External,441200,10-Jan-18,1900282196,2136.00,HC-One Limited Callands,109640
WARRINGTON BOROUGH COUNCIL,http://opendatacommunities.org/id/unitary-authority/warrington ,FWB,Care Purchase Budget,54490,CP Free Nursing Care External,443500,10-Jan-18,1900282342,620.00,HC-One Limited Callands,109640
WARRINGTON BOROUGH COUNCIL,http://opendatacommunities.org/id/unitary-authority/warrington ,FWB,Care Purchase West Team,54080,CP-Nursing Care-External,441200,10-Jan-18,1900282581,2136.00,HC-One Limited Callands,109640
WARRINGTON BOROUGH COUNCIL,http://opendatacommunities.org/id/unitary-authority/warrington ,FWB,Care Purchase Budget,54490,CP Free Nursing Care External,443500,10-Jan-18,1900282197,620.00,HC-One Limited Callands,109640
WARRINGTON BOROUGH COUNCIL,http://opendatacommunities.org/id/unitary-authority/warrington ,FWB,Care Purchase West Team,54080,CP Residential EMI,441110,10-Jan-18,1900282264,2204.00,HC-One Limited Callands,109640
WARRINGTON BOROUGH COUNCIL,http://opendatacommunities.org/id/unitary-authority/warrington ,FWB,Care Purchase South Team,54070,CP Residential EMI,441110,10-Jan-18,1900282592,2204.00,HC-One Limited Callands,109640
WARRINGTON BOROUGH COUNCIL,http://opendatacommunities.org/id/unitary-authority/warrington ,FWB,Care Purchase West Team,54080,CP-Nursing Care-External,441200,10-Jan-18,1900282343,2136.00,HC-One Limited Callands,109640
WARRINGTON BOROUGH COUNCIL,http://opendatacommunities.org/id/unitary-authority/warrington ,FWB,Care Purchase Budget,54490,CP Free Nursing Care External,443500,10-Jan-18,1900282199,620.00,HC-One Limited Callands,109640
WARRINGTON BOROUGH COUNCIL,http://opendatacommunities.org/id/unitary-authority/warrington ,FWB,Care Purchase West Team,54080,CP-Nursing Care-External,441200,10-Jan-18,1900282586,2136.00,HC-One Limited Callands,109640
WARRINGTON BOROUGH COUNCIL,http://opendatacommunities.org/id/unitary-authority/warrington ,FWB,Care Purchase Budget,54490,CP Free Nursing Care External,443500,10-Jan-18,1900282431,620.00,HC-One Limited Callands,109640
WARRINGTON BOROUGH COUNCIL,http://opendatacommunities.org/id/unitary-authority/warrington ,FWB,Care Purchase West Team,54080,CP-Nursing Care-External,441200,10-Jan-18,1900282534,2136.00,HC-One Limited Callands,109640
WARRINGTON BOROUGH COUNCIL,http://opendatacommunities.org/id/unitary-authority/warrington ,FWB,Care Purchase Budget,54490,CP Free Nursing Care External,443500,10-Jan-18,1900282266,620.00,HC-One Limited Callands,109640
